Body Name,Body,Service Label,Service Code,CIPFA Detailed Expenditure Type,CIPFA Detailed Expenditure Code,Date,Transaction Number,Net Amount,Supplier Name
Nottinghamshire County Council,1111/1001,Surplus or Deficit from Trading Undertak,TRADING,Supplies & Services,DDA,06/06/2016,03-10001,"1,672.08",Hamelin Paperbrands Ltd
Nottinghamshire County Council,1111/1001,Surplus or Deficit from Trading Undertak,TRADING,Supplies & Services,DDA,06/06/2016,03-10001,"4,339.84",Hamelin Paperbrands Ltd
Nottinghamshire County Council,1111/1001,Surplus or Deficit from Trading Undertak,TRADING,Supplies & Services,DDA,08/06/2016,03-10001,"4,450.67",Hamelin Paperbrands Ltd
Nottinghamshire County Council,1111/1001,Surplus or Deficit from Trading Undertak,TRADING,Supplies & Services,DDA,08/06/2016,03-10001,755.23,Hamelin Paperbrands Ltd
Nottinghamshire County Council,1111/1001,Surplus or Deficit from Trading Undertak,TRADING,Supplies & Services,DDA,21/06/2016,03-10001,"6,323.29",Hamelin Paperbrands Ltd
Nottinghamshire County Council,1111/1001,Surplus or Deficit from Trading Undertak,TRADING,Supplies & Services,DDA,28/06/2016,03-10001,"5,174.69",Hamelin Paperbrands Ltd
Nottinghamshire County Council,1111/1001,Surplus or Deficit from Trading Undertak,TRADING,Supplies & Services,DDA,28/06/2016,03-10001,"1,514.48",Hamelin Paperbrands Ltd
Nottinghamshire County Council,1111/1001,Surplus or Deficit from Trading Undertak,TRADING,Supplies & Services,DDA,15/06/2016,03-10001,900,Hardy & Hanson Ltd
Nottinghamshire County Council,1111/1001,Surplus or Deficit from Trading Undertak,TRADING,Supplies & Services,DDA,30/06/2016,03-10001,517.8,Decree Thermo Ltd
Nottinghamshire County Council,1111/1001,Surplus or Deficit from Trading Undertak,TRADING,Supplies & Services,DDA,14/06/2016,03-10001,809.28,Plastoreg Smidt Gmbh
Nottinghamshire County Council,1111/1001,Surplus or Deficit from Trading Undertak,TRADING,Supplies & Services,DDA,15/06/2016,03-10001,538.56,Plastoreg Smidt Gmbh
Nottinghamshire County Council,1111/1001,Surplus or Deficit from Trading Undertak,TRADING,Supplies & Services,DDA,02/06/2016,03-10001,"2,701.92",Henkel Loctite Adhesives Ltd
Nottinghamshire County Council,1111/1001,Surplus or Deficit from Trading Undertak,TRADING,Supplies & Services,DDA,08/06/2016,03-10001,890.2,Henkel Loctite Adhesives Ltd
Nottinghamshire County Council,1111/1001,Surplus or Deficit from Trading Undertak,TRADING,Supplies & Services,DDA,08/06/2016,03-10001,"6,884.36",Henkel Loctite Adhesives Ltd
Nottinghamshire County Council,1111/1001,Surplus or Deficit from Trading Undertak,TRADING,Supplies & Services,DDA,22/06/2016,03-10001,"1,211.90",Henkel Loctite Adhesives Ltd
Nottinghamshire County Council,1111/1001,Surplus or Deficit from Trading Undertak,TRADING,Supplies & Services,DDA,24/06/2016,03-10001,"5,282.76",Henkel Loctite Adhesives Ltd
Nottinghamshire County Council,1111/1001,Surplus or Deficit from Trading Undertak,TRADING,Supplies & Services,DAA,22/06/2016,03-10001,"1,163.48",Bostik Ltd
Nottinghamshire County Council,1111/1001,Surplus or Deficit from Trading Undertak,TRADING,Supplies & Services,DAA,24/06/2016,03-10001,632.8,Reliance Medical Ltd
Nottinghamshire County Council,1111/1001,Surplus or Deficit from Trading Undertak,TRADING,Supplies & Services,DFA,23/06/2016,03-10001,"1,470.00",Capita Business Services Ltd
Nottinghamshire County Council,1111/1001,Surplus or Deficit from Trading Undertak,TRADING,Supplies & Services,DAA,14/06/2016,03-10001,658,Stuff-Uk-Net
Nottinghamshire County Council,1111/1001,Surplus or Deficit from Trading Undertak,TRADING,Supplies & Services,DAA,08/06/2016,03-10001,904,Flip File Ltd
Nottinghamshire County Council,1111/1001,Surplus or Deficit from Trading Undertak,TRADING,Supplies & Services,DAA,21/06/2016,03-10001,648.7,Flip File Ltd
Nottinghamshire County Council,1111/1001,Surplus or Deficit from Trading Undertak,TRADING,Supplies & Services,DAA,28/06/2016,03-10001,700,Flip File Ltd
Nottinghamshire County Council,1111/1001,Surplus or Deficit from Trading Undertak,TRADING,Supplies & Services,DAA,08/06/2016,03-10001,541.42,Vivid Laminating Technologies Ltd
Nottinghamshire County Council,1111/1001,Surplus or Deficit from Trading Undertak,TRADING,Supplies & Services,DAA,17/06/2016,03-10001,"2,346.55",Vivid Laminating Technologies Ltd
Nottinghamshire County Council,1111/1001,Surplus or Deficit from Trading Undertak,TRADING,Supplies & Services,DAA,06/06/2016,03-10001,609.04,Banner
Nottinghamshire County Council,1111/1001,Surplus or Deficit from Trading Undertak,TRADING,Supplies & Services,DAA,08/06/2016,03-10001,573.39,Banner
Nottinghamshire County Council,1111/1001,Surplus or Deficit from Trading Undertak,TRADING,Supplies & Services,DAA,08/06/2016,03-10001,921.58,Banner
Nottinghamshire County Council,1111/1001,Surplus or Deficit from Trading Undertak,TRADING,Supplies & Services,DAA,08/06/2016,03-10001,680.74,Banner
Nottinghamshire County Council,1111/1001,Surplus or Deficit from Trading Undertak,TRADING,Supplies & Services,DAA,14/06/2016,03-10001,567.68,Banner
Nottinghamshire County Council,1111/1001,Surplus or Deficit from Trading Undertak,TRADING,Supplies & Services,DAA,22/06/2016,03-10001,768.74,Banner
Nottinghamshire County Council,1111/1001,Surplus or Deficit from Trading Undertak,TRADING,Supplies & Services,DAA,24/06/2016,03-10001,659.8,Banner
Nottinghamshire County Council,1111/1001,Surplus or Deficit from Trading Undertak,TRADING,Supplies & Services,DAA,30/06/2016,03-10001,"1,320.00",Premier Paper Group Ltd
Nottinghamshire County Council,1111/1001,Surplus or Deficit from Trading Undertak,TRADING,Supplies & Services,DAA,09/06/2016,03-10001,600,Sterling Solutions
Nottinghamshire County Council,1111/1001,Surplus or Deficit from Trading Undertak,TRADING,Supplies & Services,DAA,01/06/2016,03-10001,696.6,Antalis Key Accounts
Nottinghamshire County Council,1111/1001,Surplus or Deficit from Trading Undertak,TRADING,Supplies & Services,DAA,08/06/2016,03-10001,"1,019.60",Antalis Key Accounts
Nottinghamshire County Council,1111/1001,Surplus or Deficit from Trading Undertak,TRADING,Supplies & Services,DAA,15/06/2016,03-10001,788,Antalis Key Accounts
Nottinghamshire County Council,1111/1001,Surplus or Deficit from Trading Undertak,TRADING,Supplies & Services,DAA,22/06/2016,03-10001,"1,366.63",Antalis Key Accounts
Nottinghamshire County Council,1111/1001,Surplus or Deficit from Trading Undertak,TRADING,Supplies & Services,DAA,30/06/2016,03-10001,"1,145.80",Antalis Key Accounts
Nottinghamshire County Council,1111/1001,Surplus or Deficit from Trading Undertak,TRADING,Supplies & Services,DAA,29/06/2016,03-10001,503,Rotatrim Ltd
Nottinghamshire County Council,1111/1001,Surplus or Deficit from Trading Undertak,TRADING,Supplies & Services,DAA,06/06/2016,03-10001,882,Amp Electrical
Nottinghamshire County Council,1111/1001,Surplus or Deficit from Trading Undertak,TRADING,Supplies & Services,DAA,21/06/2016,03-10001,654,Amp Electrical
Nottinghamshire County Council,1111/1001,Surplus or Deficit from Trading Undertak,TRADING,Premises Related,BAA,14/06/2016,03-10001,513.24,Flexiform Business Furniture
Nottinghamshire County Council,1111/1001,Surplus or Deficit from Trading Undertak,TRADING,Premises Related,BAA,14/06/2016,03-10001,"1,303.16",Flexiform Business Furniture
Nottinghamshire County Council,1111/1001,Surplus or Deficit from Trading Undertak,TRADING,Premises Related,BAA,08/06/2016,03-10001,821.28,Helix Trading Ltd
Nottinghamshire County Council,1111/1001,Surplus or Deficit from Trading Undertak,TRADING,Premises Related,BJA,08/06/2016,03-10001,515.7,Freudenberg Household Products Lp
Nottinghamshire County Council,1111/1001,Surplus or Deficit from Trading Undertak,TRADING,Premises Related,BJA,07/06/2016,03-10001,"3,254.58",Polystar Plastics Ltd
Nottinghamshire County Council,1111/1001,Surplus or Deficit from Trading Undertak,TRADING,Premises Related,BJA,17/06/2016,03-10001,"1,404.48",Polystar Plastics Ltd
Nottinghamshire County Council,1111/1001,Surplus or Deficit from Trading Undertak,TRADING,Premises Related,BJA,20/06/2016,03-10001,"1,982.37",Polystar Plastics Ltd
Nottinghamshire County Council,1111/1001,Surplus or Deficit from Trading Undertak,TRADING,Premises Related,BJA,02/06/2016,03-10001,804.6,Kimberley Clark European Services Ltd
Nottinghamshire County Council,1111/1001,Surplus or Deficit from Trading Undertak,TRADING,Premises Related,BJA,02/06/2016,03-10001,"1,314.40",Kimberley Clark European Services Ltd
Nottinghamshire County Council,1111/1001,Surplus or Deficit from Trading Undertak,TRADING,Premises Related,BJA,14/06/2016,03-10001,"1,450.85",Kimberley Clark European Services Ltd
Nottinghamshire County Council,1111/1001,Surplus or Deficit from Trading Undertak,TRADING,Premises Related,BJA,22/06/2016,03-10001,"1,123.40",Kimberley Clark European Services Ltd
Nottinghamshire County Council,1111/1001,Surplus or Deficit from Trading Undertak,TRADING,Premises Related,BJA,28/06/2016,03-10001,"1,704.00",Kimberley Clark European Services Ltd
Nottinghamshire County Council,1111/1001,Surplus or Deficit from Trading Undertak,TRADING,Premises Related,BJA,30/06/2016,03-10001,571.98,Linton Metalware Ltd
Nottinghamshire County Council,1111/1001,Surplus or Deficit from Trading Undertak,TRADING,Premises Related,BJA,01/06/2016,03-10001,559.2,Greenspeed Nv/Sa
Nottinghamshire County Council,1111/1001,Surplus or Deficit from Trading Undertak,TRADING,Premises Related,BJA,08/06/2016,03-10001,577.87,Greenspeed Nv/Sa
Nottinghamshire County Council,1111/1001,Surplus or Deficit from Trading Undertak,TRADING,Premises Related,BJA,22/06/2016,03-10001,778.41,Greenspeed Nv/Sa
Nottinghamshire County Council,1111/1001,Surplus or Deficit from Trading Undertak,TRADING,Premises Related,BJA,28/06/2016,03-10001,745.8,Midland Wiper Manufacturing Co Ltd
Nottinghamshire County Council,1111/1001,Surplus or Deficit from Trading Undertak,TRADING,Premises Related,BJA,24/06/2016,03-10001,607.06,Evans Vanodine International Ltd
Nottinghamshire County Council,1111/1001,Surplus or Deficit from Trading Undertak,TRADING,Premises Related,BJA,06/06/2016,03-10001,"2,387.40",Johnson Diversey
Nottinghamshire County Council,1111/1001,Surplus or Deficit from Trading Undertak,TRADING,Premises Related,BJA,08/06/2016,03-10001,986.22,Johnson Diversey
Nottinghamshire County Council,1111/1001,Surplus or Deficit from Trading Undertak,TRADING,Premises Related,BJA,16/06/2016,03-10001,534.68,Johnson Diversey
Nottinghamshire County Council,1111/1001,Surplus or Deficit from Trading Undertak,TRADING,Premises Related,BJA,16/06/2016,03-10001,939.15,Johnson Diversey
Nottinghamshire County Council,1111/1001,Surplus or Deficit from Trading Undertak,TRADING,Premises Related,BJA,16/06/2016,03-10001,"1,984.84",Johnson Diversey
Nottinghamshire County Council,1111/1001,Surplus or Deficit from Trading Undertak,TRADING,Premises Related,BJA,03/06/2016,03-10001,"2,770.65",Premiere Products (James Briggs Ltd)
Nottinghamshire County Council,1111/1001,Surplus or Deficit from Trading Undertak,TRADING,Premises Related,BJA,03/06/2016,03-10001,860.8,Premiere Products (James Briggs Ltd)
Nottinghamshire County Council,1111/1001,Surplus or Deficit from Trading Undertak,TRADING,Premises Related,BJA,03/06/2016,03-10001,"1,374.30",Premiere Products (James Briggs Ltd)
Nottinghamshire County Council,1111/1001,Surplus or Deficit from Trading Undertak,TRADING,Premises Related,BJA,03/06/2016,03-10001,"4,440.49",Premiere Products (James Briggs Ltd)
Nottinghamshire County Council,1111/1001,Surplus or Deficit from Trading Undertak,TRADING,Premises Related,BJA,10/06/2016,03-10001,"2,512.80",Premiere Products (James Briggs Ltd)
Nottinghamshire County Council,1111/1001,Surplus or Deficit from Trading Undertak,TRADING,Premises Related,BJA,24/06/2016,03-10001,964.92,Premiere Products (James Briggs Ltd)
Nottinghamshire County Council,1111/1001,Surplus or Deficit from Trading Undertak,TRADING,Premises Related,BJA,29/06/2016,03-10001,"1,116.90",Premiere Products (James Briggs Ltd)
Nottinghamshire County Council,1111/1001,Surplus or Deficit from Trading Undertak,TRADING,Premises Related,BJA,30/06/2016,03-10001,"2,081.80",Scot Young Research
Nottinghamshire County Council,1111/1001,Surplus or Deficit from Trading Undertak,TRADING,Premises Related,BJA,30/06/2016,03-10001,533.2,Granwax Products Ltd
Nottinghamshire County Council,1111/1001,Surplus or Deficit from Trading Undertak,TRADING,Premises Related,BJA,01/06/2016,03-10001,790,Candor Services
Nottinghamshire County Council,1111/1001,Surplus or Deficit from Trading Undertak,TRADING,Premises Related,BJA,08/06/2016,03-10001,"1,235.25",Candor Services
Nottinghamshire County Council,1111/1001,Surplus or Deficit from Trading Undertak,TRADING,Premises Related,BJA,08/06/2016,03-10001,790,Candor Services
Nottinghamshire County Council,1111/1001,Surplus or Deficit from Trading Undertak,TRADING,Supplies & Services,DAA,08/06/2016,03-10001,606.26,A.M. Packaging (Mansfield) Ltd
Nottinghamshire County Council,1111/1001,Surplus or Deficit from Trading Undertak,TRADING,Supplies & Services,DAA,14/06/2016,03-10001,664.04,W V Howe (Hardware) Ltd
Nottinghamshire County Council,1111/1001,Surplus or Deficit from Trading Undertak,TRADING,Supplies & Services,DAA,28/06/2016,03-10001,548.2,W V Howe (Hardware) Ltd
Nottinghamshire County Council,1111/1001,Surplus or Deficit from Trading Undertak,TRADING,Supplies & Services,DAA,06/06/2016,03-10001,645.18,Catering Supplies (Wakefield) Ltd
Nottinghamshire County Council,1111/1001,Surplus or Deficit from Trading Undertak,TRADING,Supplies & Services,DAA,08/06/2016,03-10001,519.32,Catering Supplies (Wakefield) Ltd
Nottinghamshire County Council,1111/1001,Surplus or Deficit from Trading Undertak,TRADING,Supplies & Services,DAA,28/06/2016,03-10001,975,Catering Supplies (Wakefield) Ltd
Nottinghamshire County Council,1111/1001,Surplus or Deficit from Trading Undertak,TRADING,Supplies & Services,DAA,02/06/2016,03-10001,"1,070.61",Sca Hygiene
Nottinghamshire County Council,1111/1001,Surplus or Deficit from Trading Undertak,TRADING,Supplies & Services,DAA,02/06/2016,03-10001,"6,331.48",Sca Hygiene
Nottinghamshire County Council,1111/1001,Surplus or Deficit from Trading Undertak,TRADING,Supplies & Services,DAA,02/06/2016,03-10001,"1,759.20",Sca Hygiene
Nottinghamshire County Council,1111/1001,Surplus or Deficit from Trading Undertak,TRADING,Supplies & Services,DAA,08/06/2016,03-10001,"1,512.73",Sca Hygiene
Nottinghamshire County Council,1111/1001,Surplus or Deficit from Trading Undertak,TRADING,Supplies & Services,DAA,17/06/2016,03-10001,"3,046.72",Sca Hygiene
Nottinghamshire County Council,1111/1001,Surplus or Deficit from Trading Undertak,TRADING,Supplies & Services,DAA,21/06/2016,03-10001,"2,979.38",Sca Hygiene
Nottinghamshire County Council,1111/1001,Surplus or Deficit from Trading Undertak,TRADING,Supplies & Services,DAA,06/06/2016,03-10001,"3,300.00",Stearn Electric Company Ltd
Nottinghamshire County Council,1111/1001,Surplus or Deficit from Trading Undertak,TRADING,Supplies & Services,DAA,08/06/2016,03-10001,600,Stearn Electric Company Ltd
Nottinghamshire County Council,1111/1001,Surplus or Deficit from Trading Undertak,TRADING,Supplies & Services,DAA,08/06/2016,03-10001,600,Stearn Electric Company Ltd
Nottinghamshire County Council,1111/1001,Surplus or Deficit from Trading Undertak,TRADING,Supplies & Services,DCA,01/06/2016,03-10001,"1,521.40",Shermond
Nottinghamshire County Council,1111/1001,Surplus or Deficit from Trading Undertak,TRADING,Supplies & Services,DCA,14/06/2016,03-10001,"2,792.20",Shermond
Nottinghamshire County Council,1111/1001,Surplus or Deficit from Trading Undertak,TRADING,Supplies & Services,DCA,14/06/2016,03-10001,"3,960.20",Shermond
Nottinghamshire County Council,1111/1001,Surplus or Deficit from Trading Undertak,TRADING,Supplies & Services,DCA,28/06/2016,03-10001,625.05,Shermond
Nottinghamshire County Council,1111/1001,Surplus or Deficit from Trading Undertak,TRADING,Supplies & Services,DKA,14/06/2016,03-10001,537.9,Bunzl Cleaning & Hygiene Supplies
Nottinghamshire County Council,1111/1001,Surplus or Deficit from Trading Undertak,TRADING,Supplies & Services,DKA,14/06/2016,03-10001,579,Bunzl Cleaning & Hygiene Supplies
Nottinghamshire County Council,1111/1001,Surplus or Deficit from Trading Undertak,TRADING,Supplies & Services,DKA,23/06/2016,03-10001,"1,075.80",Bunzl Cleaning & Hygiene Supplies
Nottinghamshire County Council,1111/1001,Surplus or Deficit from Trading Undertak,TRADING,Supplies & Services,DKA,29/06/2016,03-10001,537.9,Bunzl Cleaning & Hygiene Supplies
Nottinghamshire County Council,1111/1001,Surplus or Deficit from Trading Undertak,TRADING,Supplies & Services,DKA,30/06/2016,03-10001,908.74,Bunzl Cleaning & Hygiene Supplies
Nottinghamshire County Council,1111/1001,Surplus or Deficit from Trading Undertak,TRADING,Supplies & Services,DAA,03/06/2016,03-10001,"1,893.00",R Scott & Sons Ltd
Nottinghamshire County Council,1111/1001,Surplus or Deficit from Trading Undertak,TRADING,Supplies & Services,DAA,10/06/2016,03-10001,"1,795.80",R Scott & Sons Ltd
Nottinghamshire County Council,1111/1001,Surplus or Deficit from Trading Undertak,TRADING,Supplies & Services,DAA,10/06/2016,03-10001,"2,038.60",R Scott & Sons Ltd
Nottinghamshire County Council,1111/1001,Surplus or Deficit from Trading Undertak,TRADING,Supplies & Services,DAA,20/06/2016,03-10001,771.6,R Scott & Sons Ltd
Nottinghamshire County Council,1111/1001,Surplus or Deficit from Trading Undertak,TRADING,Supplies & Services,DAA,14/06/2016,03-10001,570,Office Innovations
Nottinghamshire County Council,1111/1001,Surplus or Deficit from Trading Undertak,TRADING,Supplies & Services,DAA,17/06/2016,03-10001,746.7,Office Innovations
Nottinghamshire County Council,1111/1001,Surplus or Deficit from Trading Undertak,TRADING,Supplies & Services,DAA,06/06/2016,03-10001,622.7,Principal Furniture
Nottinghamshire County Council,1111/1001,Surplus or Deficit from Trading Undertak,TRADING,Supplies & Services,DAA,14/06/2016,03-10001,511.4,Principal Furniture
Nottinghamshire County Council,1111/1001,Surplus or Deficit from Trading Undertak,TRADING,Supplies & Services,DAA,14/06/2016,03-10001,671.2,Principal Furniture
Nottinghamshire County Council,1111/1001,Surplus or Deficit from Trading Undertak,TRADING,Supplies & Services,DAA,14/06/2016,03-10001,541.1,Principal Furniture
Nottinghamshire County Council,1111/1001,Surplus or Deficit from Trading Undertak,TRADING,Supplies & Services,DAA,15/06/2016,03-10001,712.5,Advanced Moulds Ltd
Nottinghamshire County Council,1111/1001,Surplus or Deficit from Trading Undertak,TRADING,Supplies & Services,DAA,08/06/2016,03-10001,645.28,Qmp
Nottinghamshire County Council,1111/1001,Surplus or Deficit from Trading Undertak,TRADING,Supplies & Services,DAA,29/06/2016,03-10001,"1,310.49",Qmp
Nottinghamshire County Council,1111/1001,Surplus or Deficit from Trading Undertak,TRADING,Supplies & Services,DAA,22/06/2016,03-10001,"1,426.00",Hille Education Products Ltd
Nottinghamshire County Council,1111/1001,Surplus or Deficit from Trading Undertak,TRADING,Supplies & Services,DAA,28/06/2016,03-10001,528.98,Hille Education Products Ltd
Nottinghamshire County Council,1111/1001,Surplus or Deficit from Trading Undertak,TRADING,Supplies & Services,DAA,29/06/2016,03-10001,523,Hille Education Products Ltd
Nottinghamshire County Council,1111/1001,Surplus or Deficit from Trading Undertak,TRADING,Supplies & Services,DAA,06/06/2016,03-10001,"1,244.24",Denis Rawlins Ltd
Nottinghamshire County Council,1111/1001,Surplus or Deficit from Trading Undertak,TRADING,Supplies & Services,DAA,14/06/2016,03-10001,732.74,Gopak Ltd
Nottinghamshire County Council,1111/1001,Surplus or Deficit from Trading Undertak,TRADING,Supplies & Services,DAA,28/06/2016,03-10001,"1,113.35",Metroplan Limited
Nottinghamshire County Council,1111/1001,Surplus or Deficit from Trading Undertak,TRADING,Supplies & Services,DAA,28/06/2016,03-10001,537.5,Victoria Grant Ltd
Nottinghamshire County Council,1111/1001,Surplus or Deficit from Trading Undertak,TRADING,Supplies & Services,DAA,08/06/2016,03-10001,"1,859.55",Kent County Supplies
Nottinghamshire County Council,1111/1001,Surplus or Deficit from Trading Undertak,TRADING,Supplies & Services,DAA,22/06/2016,03-10001,688,Kent County Supplies
Nottinghamshire County Council,1111/1001,Surplus or Deficit from Trading Undertak,TRADING,Supplies & Services,DAA,22/06/2016,03-10001,"1,401.90",Kent County Supplies
Nottinghamshire County Council,1111/1001,Surplus or Deficit from Trading Undertak,TRADING,Supplies & Services,DAA,24/06/2016,03-10001,916.95,Kent County Supplies
Nottinghamshire County Council,1111/1001,Surplus or Deficit from Trading Undertak,TRADING,Supplies & Services,DAA,08/06/2016,03-10001,592.9,Craftpacks
Nottinghamshire County Council,1111/1001,Surplus or Deficit from Trading Undertak,TRADING,Supplies & Services,DAA,22/06/2016,03-10001,"15,080.00",Grosvenor House Papers Ltd
Nottinghamshire County Council,1111/1001,Surplus or Deficit from Trading Undertak,TRADING,Supplies & Services,DAA,22/06/2016,03-10001,"1,055.20",Grosvenor House Papers Ltd
Nottinghamshire County Council,1111/1001,Surplus or Deficit from Trading Undertak,TRADING,Supplies & Services,DAA,08/06/2016,03-10001,510,Tiger Stationery Ltd
Nottinghamshire County Council,1111/1001,Surplus or Deficit from Trading Undertak,TRADING,Supplies & Services,DAA,02/06/2016,03-10001,"1,375.94",Newell Rubbermaid
Nottinghamshire County Council,1111/1001,Surplus or Deficit from Trading Undertak,TRADING,Supplies & Services,DAA,06/06/2016,03-10001,"2,875.60",Newell Rubbermaid
Nottinghamshire County Council,1111/1001,Surplus or Deficit from Trading Undertak,TRADING,Supplies & Services,DAA,14/06/2016,03-10001,"3,249.70",Newell Rubbermaid
Nottinghamshire County Council,1111/1001,Surplus or Deficit from Trading Undertak,TRADING,Supplies & Services,DAA,16/06/2016,03-10001,807.6,Newell Rubbermaid
Nottinghamshire County Council,1111/1001,Surplus or Deficit from Trading Undertak,TRADING,Supplies & Services,DAA,17/06/2016,03-10001,"4,362.98",Newell Rubbermaid
Nottinghamshire County Council,1111/1001,Surplus or Deficit from Trading Undertak,TRADING,Supplies & Services,DAA,24/06/2016,03-10001,"1,948.41",Newell Rubbermaid
Nottinghamshire County Council,1111/1001,Surplus or Deficit from Trading Undertak,TRADING,Supplies & Services,DAA,30/06/2016,03-10001,"4,468.46",Newell Rubbermaid
Nottinghamshire County Council,1111/1001,Surplus or Deficit from Trading Undertak,TRADING,Supplies & Services,DAA,17/06/2016,03-10001,"1,108.80",Acco-Rexel Ltd
Nottinghamshire County Council,1111/1001,Surplus or Deficit from Trading Undertak,TRADING,Supplies & Services,DAA,28/06/2016,03-10001,655.33,Swan Stabilo Ltd
Nottinghamshire County Council,1111/1001,Surplus or Deficit from Trading Undertak,TRADING,Supplies & Services,DAA,24/06/2016,03-10001,"1,692.02",R.H.Ritchings Ltd
Nottinghamshire County Council,1111/1001,Surplus or Deficit from Trading Undertak,TRADING,Supplies & Services,DAA,24/06/2016,03-10001,836.4,R.H.Ritchings Ltd
Nottinghamshire County Council,1111/1001,Surplus or Deficit from Trading Undertak,TRADING,Supplies & Services,DAA,24/06/2016,03-10001,"1,700.70",R.H.Ritchings Ltd
Nottinghamshire County Council,1111/1001,Surplus or Deficit from Trading Undertak,TRADING,Supplies & Services,DAA,01/06/2016,03-10001,"1,145.25",Staedtler (Uk) Ltd
Nottinghamshire County Council,1111/1001,Surplus or Deficit from Trading Undertak,TRADING,Supplies & Services,DAA,08/06/2016,03-10001,839.5,Staedtler (Uk) Ltd
Nottinghamshire County Council,1111/1001,Surplus or Deficit from Trading Undertak,TRADING,Supplies & Services,DAA,08/06/2016,03-10001,"2,188.00",Staedtler (Uk) Ltd
Nottinghamshire County Council,1111/1001,Surplus or Deficit from Trading Undertak,TRADING,Supplies & Services,DAA,14/06/2016,03-10001,"1,334.64",Staedtler (Uk) Ltd
Nottinghamshire County Council,1111/1001,Surplus or Deficit from Trading Undertak,TRADING,Supplies & Services,DAA,14/06/2016,03-10001,523.96,Staedtler (Uk) Ltd
Nottinghamshire County Council,1111/1001,Surplus or Deficit from Trading Undertak,TRADING,Supplies & Services,DAA,21/06/2016,03-10001,582.89,Staedtler (Uk) Ltd
Nottinghamshire County Council,1111/1001,Surplus or Deficit from Trading Undertak,TRADING,Supplies & Services,DAA,28/06/2016,03-10001,972.72,Staedtler (Uk) Ltd
Nottinghamshire County Council,1111/1001,Surplus or Deficit from Trading Undertak,TRADING,Supplies & Services,DAA,01/06/2016,03-10001,"1,188.99",Bic U.K. Ltd
Nottinghamshire County Council,1111/1001,Surplus or Deficit from Trading Undertak,TRADING,Supplies & Services,DAA,02/06/2016,03-10001,610.78,Bic U.K. Ltd
Nottinghamshire County Council,1111/1001,Surplus or Deficit from Trading Undertak,TRADING,Supplies & Services,DAA,06/06/2016,03-10001,548.3,Bic U.K. Ltd
Nottinghamshire County Council,1111/1001,Surplus or Deficit from Trading Undertak,TRADING,Supplies & Services,DAA,22/06/2016,03-10001,595.48,Bic U.K. Ltd
Nottinghamshire County Council,1111/1001,Surplus or Deficit from Trading Undertak,TRADING,Supplies & Services,DAA,23/06/2016,03-10001,762.32,Bic U.K. Ltd
Nottinghamshire County Council,1111/1001,Surplus or Deficit from Trading Undertak,TRADING,Supplies & Services,DAA,02/06/2016,03-10001,524,Edding Uk Ltd
Nottinghamshire County Council,1111/1001,Surplus or Deficit from Trading Undertak,TRADING,Supplies & Services,DAA,16/06/2016,03-10001,"2,270.00",Edding Uk Ltd
Nottinghamshire County Council,1111/1001,Surplus or Deficit from Trading Undertak,TRADING,Supplies & Services,DAA,28/06/2016,03-10001,592.48,Rapesco Office Products Plc
Nottinghamshire County Council,1111/1001,Surplus or Deficit from Trading Undertak,TRADING,Supplies & Services,DAA,22/06/2016,03-10001,"2,325.12",Allen Glenold Ltd
Nottinghamshire County Council,1111/1001,Surplus or Deficit from Trading Undertak,TRADING,Supplies & Services,DAA,22/06/2016,03-10001,508.4,Allen Glenold Ltd
Nottinghamshire County Council,1111/1001,Surplus or Deficit from Trading Undertak,TRADING,Supplies & Services,DAA,14/06/2016,03-10001,"3,330.72",Higher Kings Mill Ltd
Nottinghamshire County Council,1111/1001,Surplus or Deficit from Trading Undertak,TRADING,Supplies & Services,DAA,08/06/2016,03-10001,952.2,Slater Harrison & Co Ltd
Nottinghamshire County Council,1111/1001,Surplus or Deficit from Trading Undertak,TRADING,Supplies & Services,DAA,08/06/2016,03-10001,"1,677.36",Slater Harrison & Co Ltd
Nottinghamshire County Council,1111/1001,Surplus or Deficit from Trading Undertak,TRADING,Supplies & Services,DAA,08/06/2016,03-10001,955.81,Slater Harrison & Co Ltd
Nottinghamshire County Council,1111/1001,Surplus or Deficit from Trading Undertak,TRADING,Supplies & Services,DAA,14/06/2016,03-10001,614.55,Slater Harrison & Co Ltd
Nottinghamshire County Council,1111/1001,Surplus or Deficit from Trading Undertak,TRADING,Supplies & Services,DAA,14/06/2016,03-10001,957.62,Slater Harrison & Co Ltd
Nottinghamshire County Council,1111/1001,Surplus or Deficit from Trading Undertak,TRADING,Supplies & Services,DAA,16/06/2016,03-10001,"1,686.80",Slater Harrison & Co Ltd
Nottinghamshire County Council,1111/1001,Surplus or Deficit from Trading Undertak,TRADING,Supplies & Services,DAA,30/06/2016,03-10001,"2,080.58",Slater Harrison & Co Ltd
Nottinghamshire County Council,1111/1001,Surplus or Deficit from Trading Undertak,TRADING,Supplies & Services,DAA,30/06/2016,03-10001,603.5,Slater Harrison & Co Ltd
Nottinghamshire County Council,1111/1001,Surplus or Deficit from Trading Undertak,TRADING,Supplies & Services,DAA,29/06/2016,03-10001,551.12,E V Naish Ltd
Nottinghamshire County Council,1111/1001,Surplus or Deficit from Trading Undertak,TRADING,Supplies & Services,DAA,02/06/2016,03-10001,850,Lucy Friend Paper Co
Nottinghamshire County Council,1111/1001,Surplus or Deficit from Trading Undertak,TRADING,Supplies & Services,DAA,06/06/2016,03-10001,926.91,Creativity International Ltd
Nottinghamshire County Council,1111/1001,Surplus or Deficit from Trading Undertak,TRADING,Supplies & Services,DAA,14/06/2016,03-10001,860.44,Creativity International Ltd
Nottinghamshire County Council,1111/1001,Surplus or Deficit from Trading Undertak,TRADING,Supplies & Services,DAA,14/06/2016,03-10001,"1,065.96",Creativity International Ltd
Nottinghamshire County Council,1111/1001,Surplus or Deficit from Trading Undertak,TRADING,Supplies & Services,DAA,22/06/2016,03-10001,"1,444.61",Creativity International Ltd
Nottinghamshire County Council,1111/1001,Surplus or Deficit from Trading Undertak,TRADING,Supplies & Services,DAA,22/06/2016,03-10001,"1,057.36",Creativity International Ltd
Nottinghamshire County Council,1111/1001,Surplus or Deficit from Trading Undertak,TRADING,Supplies & Services,DAA,06/06/2016,03-10001,"1,241.54",Valentine Clays
Nottinghamshire County Council,1111/1001,Surplus or Deficit from Trading Undertak,TRADING,Supplies & Services,DAA,08/06/2016,03-10001,881.44,Bright Ideas Marketing Ltd
Nottinghamshire County Council,1111/1001,Surplus or Deficit from Trading Undertak,TRADING,Supplies & Services,DAA,10/06/2016,03-10001,804.49,Primo Play Ltd
Nottinghamshire County Council,1111/1001,Surplus or Deficit from Trading Undertak,TRADING,Supplies & Services,DAA,08/06/2016,03-10001,"5,721.72",Eastpoint
Nottinghamshire County Council,1111/1001,Surplus or Deficit from Trading Undertak,TRADING,Supplies & Services,DAA,22/06/2016,03-10001,"3,947.97",Eastpoint
Nottinghamshire County Council,1111/1001,Surplus or Deficit from Trading Undertak,TRADING,Supplies & Services,DAA,22/06/2016,03-10001,"1,694.78",Eastpoint
Nottinghamshire County Council,1111/1001,Surplus or Deficit from Trading Undertak,TRADING,Supplies & Services,DAA,22/06/2016,03-10001,"5,132.54",Eastpoint
Nottinghamshire County Council,1111/1001,Surplus or Deficit from Trading Undertak,TRADING,Supplies & Services,DAA,22/06/2016,03-10001,668.98,Eastpoint
Nottinghamshire County Council,1111/1001,Surplus or Deficit from Trading Undertak,TRADING,Supplies & Services,DAA,28/06/2016,03-10001,870.63,Eastpoint
Nottinghamshire County Council,1111/1001,Surplus or Deficit from Trading Undertak,TRADING,Supplies & Services,DAA,28/06/2016,03-10001,"1,757.97",Eastpoint
Nottinghamshire County Council,1111/1001,Surplus or Deficit from Trading Undertak,TRADING,Supplies & Services,DAA,02/06/2016,03-10001,"2,100.00",Deco-Pak Ltd
Nottinghamshire County Council,1111/1001,Surplus or Deficit from Trading Undertak,TRADING,Supplies & Services,DAA,16/06/2016,03-10001,"1,076.40",Westland
Nottinghamshire County Council,1111/1001,Surplus or Deficit from Trading Undertak,TRADING,Supplies & Services,DAA,10/06/2016,03-10001,648.65,Brian Clegg (Educational Products) Ltd
Nottinghamshire County Council,1111/1001,Surplus or Deficit from Trading Undertak,TRADING,Supplies & Services,DAA,22/06/2016,03-10001,634.26,Brian Clegg (Educational Products) Ltd
Nottinghamshire County Council,1111/1001,Surplus or Deficit from Trading Undertak,TRADING,Supplies & Services,DAA,22/06/2016,03-10001,658.21,Brian Clegg (Educational Products) Ltd
Nottinghamshire County Council,1111/1001,Surplus or Deficit from Trading Undertak,TRADING,Supplies & Services,DAA,06/06/2016,03-10001,551,Profile Education Ltd
Nottinghamshire County Council,1111/1001,Surplus or Deficit from Trading Undertak,TRADING,Supplies & Services,DAA,21/06/2016,03-10001,808.36,Profile Education Ltd
Nottinghamshire County Council,1111/1001,Surplus or Deficit from Trading Undertak,TRADING,Supplies & Services,DAA,23/06/2016,03-10001,655.64,Profile Education Ltd
Nottinghamshire County Council,1111/1001,Surplus or Deficit from Trading Undertak,TRADING,Supplies & Services,DAA,06/06/2016,03-10001,563.64,Monarch Computer Furniture
Nottinghamshire County Council,1111/1001,Surplus or Deficit from Trading Undertak,TRADING,Supplies & Services,DAA,06/06/2016,03-10001,897.4,Monarch Computer Furniture
Nottinghamshire County Council,1111/1001,Surplus or Deficit from Trading Undertak,TRADING,Supplies & Services,DAA,06/06/2016,03-10001,"2,212.75",Monarch Computer Furniture
Nottinghamshire County Council,1111/1001,Surplus or Deficit from Trading Undertak,TRADING,Supplies & Services,DAA,14/06/2016,03-10001,525.18,Monarch Computer Furniture
Nottinghamshire County Council,1111/1001,Surplus or Deficit from Trading Undertak,TRADING,Supplies & Services,DAA,17/06/2016,03-10001,652.24,Monarch Computer Furniture
Nottinghamshire County Council,1111/1001,Surplus or Deficit from Trading Undertak,TRADING,Supplies & Services,DAA,29/06/2016,03-10001,731.64,Monarch Computer Furniture
Nottinghamshire County Council,1111/1001,Surplus or Deficit from Trading Undertak,TRADING,Employee Related,AAA,03/06/2016,03-10001,616.31,A&T Active Recruitment
Nottinghamshire County Council,1111/1001,Children and Young People,CYP,Employee Related,ABA,09/06/2016,03-12201,"5,485.00",Local World Ltd
Nottinghamshire County Council,1111/1001,Children and Young People,CYP,Employee Related,ABA,09/06/2016,03-12202,780,Local World Ltd
Nottinghamshire County Council,1111/1001,Children and Young People,CYP,Premises Related,BAA,09/06/2016,03-12187,"12,000.00",Bassetlaw District Council
Nottinghamshire County Council,1111/1001,Children and Young People,CYP,Premises Related,BBA,03/06/2016,03-17310,"3,351.00",Crestra Ltd
Nottinghamshire County Council,1111/1001,Children and Young People,CYP,Premises Related,BDA,02/06/2016,03-10002,"5,862.49",Making It! Enterprises Ltd
Nottinghamshire County Council,1111/1001,Children and Young People,CYP,Premises Related,BDA,02/06/2016,03-10013,605,High Peak Borough Council
Nottinghamshire County Council,1111/1001,Children and Young People,CYP,Premises Related,BDA,02/06/2016,03-10014,"2,320.65",Diocese of Hallam Trustee
Nottinghamshire County Council,1111/1001,Children and Young People,CYP,Premises Related,BDA,02/06/2016,03-10016,"4,768.26",Making It! Enterprises Ltd
Nottinghamshire County Council,1111/1001,Children and Young People,CYP,Premises Related,BDA,02/06/2016,03-10021,606.67,J Sedoo t/a Sedoo Investments
Nottinghamshire County Council,1111/1001,Children and Young People,CYP,Premises Related,BDA,02/06/2016,03-10022,606.67,J Sedoo t/a Sedoo Investments
Nottinghamshire County Council,1111/1001,Children and Young People,CYP,Premises Related,BDA,02/06/2016,03-10023,606.67,J Sedoo t/a Sedoo Investments
Nottinghamshire County Council,1111/1001,Children and Young People,CYP,Premises Related,BDA,02/06/2016,03-10025,"4,600.00",Bauland Properties Limited
Nottinghamshire County Council,1111/1001,Children and Young People,CYP,Premises Related,BDA,02/06/2016,03-10026,805,Bauland Properties Limited
Nottinghamshire County Council,1111/1001,Children and Young People,CYP,Premises Related,BDA,02/06/2016,03-10028,675,[Redacted]
Nottinghamshire County Council,1111/1001,Children and Young People,CYP,Premises Related,BDA,02/06/2016,03-10029,"1,559.56",Refuge
Nottinghamshire County Council,1111/1001,Children and Young People,CYP,Premises Related,BDA,02/06/2016,03-10030,"1,334.67",Capland Properties Ltd
Nottinghamshire County Council,1111/1001,Children and Young People,CYP,Premises Related,BDA,02/06/2016,03-10031,"8,274.24",Ekmw Summit Centre
Nottinghamshire County Council,1111/1001,Children and Young People,CYP,Premises Related,BDA,02/06/2016,03-10032,575,Jillings Estates Ltd
Nottinghamshire County Council,1111/1001,Children and Young People,CYP,Premises Related,BDA,09/06/2016,03-10033,"3,876.21",Midlands Women'S Aid
Nottinghamshire County Council,1111/1001,Children and Young People,CYP,Premises Related,BDA,10/06/2016,03-10034,975,[Redacted]
Nottinghamshire County Council,1111/1001,Children and Young People,CYP,Premises Related,BDA,21/06/2016,03-10038,"1,179.35",Diocese of Hallam Trustee
Nottinghamshire County Council,1111/1001,Children and Young People,CYP,Transport Related,CCA,03/06/2016,03-10316,"1,384.75",Southside Cars
Nottinghamshire County Council,1111/1001,Children and Young People,CYP,Transport Related,CCA,03/06/2016,03-10317,"1,394.00",Southside Cars
Nottinghamshire County Council,1111/1001,Children and Young People,CYP,Transport Related,CCA,03/06/2016,03-10318,"1,876.80",Southside Cars
Nottinghamshire County Council,1111/1001,Children and Young People,CYP,Transport Related,CCA,03/06/2016,03-10319,"1,932.00",Southside Cars
Nottinghamshire County Council,1111/1001,Children and Young People,CYP,Transport Related,CCA,03/06/2016,03-10320,936.98,Southside Cars
Nottinghamshire County Council,1111/1001,Children and Young People,CYP,Transport Related,CCA,03/06/2016,03-10322,850,Southside Cars
Nottinghamshire County Council,1111/1001,Children and Young People,CYP,Transport Related,CCA,03/06/2016,03-10325,"1,992.19",All Wayz Travel
Nottinghamshire County Council,1111/1001,Children and Young People,CYP,Transport Related,CCA,03/06/2016,03-10330,606,SJW (Muskham) Ltd T/A Z Cars
Nottinghamshire County Council,1111/1001,Children and Young People,CYP,Transport Related,CCA,03/06/2016,03-10332,919.1,SJW (Muskham) Ltd T/A Z Cars
Nottinghamshire County Council,1111/1001,Children and Young People,CYP,Transport Related,CCA,03/06/2016,03-10334,"1,151.40",Alpha Cars
Nottinghamshire County Council,1111/1001,Children and Young People,CYP,Transport Related,CCA,03/06/2016,03-10337,"1,677.00",Alpha Cars
Nottinghamshire County Council,1111/1001,Children and Young People,CYP,Transport Related,CCA,03/06/2016,03-10339,"1,938.00",Arrow Specialised Transport Ltd
Nottinghamshire County Council,1111/1001,Children and Young People,CYP,Transport Related,CCA,03/06/2016,03-10340,"2,277.15",Arrow Specialised Transport Ltd
Nottinghamshire County Council,1111/1001,Children and Young People,CYP,Transport Related,CCA,03/06/2016,03-10341,"1,983.98",Arrow Specialised Transport Ltd
Nottinghamshire County Council,1111/1001,Children and Young People,CYP,Transport Related,CCA,03/06/2016,03-10342,"1,830.65",Arrow Specialised Transport Ltd
Nottinghamshire County Council,1111/1001,Children and Young People,CYP,Transport Related,CCA,03/06/2016,03-10343,"2,264.61",Arrow Specialised Transport Ltd
Nottinghamshire County Council,1111/1001,Children and Young People,CYP,Transport Related,CCA,03/06/2016,03-10344,"2,726.69",Arrow Specialised Transport Ltd
Nottinghamshire County Council,1111/1001,Children and Young People,CYP,Transport Related,CCA,03/06/2016,03-10345,"3,174.90",Arrow Specialised Transport Ltd
Nottinghamshire County Council,1111/1001,Children and Young People,CYP,Transport Related,CCA,03/06/2016,03-10346,"1,961.18",Arrow Specialised Transport Ltd
Nottinghamshire County Council,1111/1001,Children and Young People,CYP,Transport Related,CCA,03/06/2016,03-10347,"1,855.35",Arrow Specialised Transport Ltd
Nottinghamshire County Council,1111/1001,Children and Young People,CYP,Transport Related,CCA,03/06/2016,03-10348,"1,674.00",Arrow Specialised Transport Ltd
Nottinghamshire County Council,1111/1001,Children and Young People,CYP,Transport Related,CCA,03/06/2016,03-10349,"1,881.00",Arrow Specialised Transport Ltd
Nottinghamshire County Council,1111/1001,Children and Young People,CYP,Transport Related,CCA,03/06/2016,03-10350,"1,854.00",Arrow Specialised Transport Ltd
Nottinghamshire County Council,1111/1001,Children and Young People,CYP,Transport Related,CCA,03/06/2016,03-10351,"1,890.00",Arrow Specialised Transport Ltd
Nottinghamshire County Council,1111/1001,Children and Young People,CYP,Transport Related,CCA,03/06/2016,03-10352,"1,872.00",Arrow Specialised Transport Ltd
Nottinghamshire County Council,1111/1001,Children and Young People,CYP,Transport Related,CCA,03/06/2016,03-10353,"2,265.30",Arrow Specialised Transport Ltd
Nottinghamshire County Council,1111/1001,Children and Young People,CYP,Transport Related,CCA,03/06/2016,03-10354,"2,088.00",Arrow Specialised Transport Ltd
Nottinghamshire County Council,1111/1001,Children and Young People,CYP,Transport Related,CCA,03/06/2016,03-10355,"1,728.00",Arrow Specialised Transport Ltd
Nottinghamshire County Council,1111/1001,Children and Young People,CYP,Transport Related,CCA,03/06/2016,03-10356,"2,160.00",Arrow Specialised Transport Ltd
Nottinghamshire County Council,1111/1001,Children and Young People,CYP,Transport Related,CCA,03/06/2016,03-10357,"2,088.00",Arrow Specialised Transport Ltd
Nottinghamshire County Council,1111/1001,Children and Young People,CYP,Transport Related,CCA,03/06/2016,03-10358,"2,160.00",Arrow Specialised Transport Ltd
Nottinghamshire County Council,1111/1001,Children and Young People,CYP,Transport Related,CCA,03/06/2016,03-10359,"2,304.00",Arrow Specialised Transport Ltd
Nottinghamshire County Council,1111/1001,Children and Young People,CYP,Transport Related,CCA,03/06/2016,03-10361,"1,957.00",Arrow Specialised Transport Ltd
Nottinghamshire County Council,1111/1001,Children and Young People,CYP,Transport Related,CCA,03/06/2016,03-10362,"1,976.00",Arrow Specialised Transport Ltd
Nottinghamshire County Council,1111/1001,Children and Young People,CYP,Transport Related,CCA,03/06/2016,03-10363,"2,732.39",Arrow Specialised Transport Ltd
Nottinghamshire County Council,1111/1001,Children and Young People,CYP,Transport Related,CCA,03/06/2016,03-10364,"1,824.00",Arrow Specialised Transport Ltd
Nottinghamshire County Council,1111/1001,Children and Young People,CYP,Transport Related,CCA,03/06/2016,03-10365,541.5,Arrow Specialised Transport Ltd
Nottinghamshire County Council,1111/1001,Children and Young People,CYP,Transport Related,CCA,03/06/2016,03-10366,"1,729.00",Arrow Specialised Transport Ltd
Nottinghamshire County Council,1111/1001,Children and Young People,CYP,Transport Related,CCA,03/06/2016,03-10367,"1,995.76",Arrow Specialised Transport Ltd
Nottinghamshire County Council,1111/1001,Children and Young People,CYP,Transport Related,CCA,03/06/2016,03-10368,"3,054.24",Arrow Specialised Transport Ltd
Nottinghamshire County Council,1111/1001,Children and Young People,CYP,Transport Related,CCA,03/06/2016,03-10369,"9,392.65",Arrow Specialised Transport Ltd
Nottinghamshire County Council,1111/1001,Children and Young People,CYP,Transport Related,CCA,03/06/2016,03-10370,"2,475.51",Arrow Specialised Transport Ltd
Nottinghamshire County Council,1111/1001,Children and Young People,CYP,Transport Related,CCA,03/06/2016,03-10371,"2,565.00",Arrow Specialised Transport Ltd
Nottinghamshire County Council,1111/1001,Children and Young People,CYP,Transport Related,CCA,03/06/2016,03-10372,"1,454.40",Arrow Specialised Transport Ltd
Nottinghamshire County Council,1111/1001,Children and Young People,CYP,Transport Related,CCA,03/06/2016,03-10373,"2,418.32",Arrow Specialised Transport Ltd
Nottinghamshire County Council,1111/1001,Children and Young People,CYP,Transport Related,CCA,03/06/2016,03-10375,"2,549.24",Arrow Specialised Transport Ltd
Nottinghamshire County Council,1111/1001,Children and Young People,CYP,Transport Related,CCA,03/06/2016,03-10377,"1,123.53",Arrow Specialised Transport Ltd
Nottinghamshire County Council,1111/1001,Children and Young People,CYP,Transport Related,CCA,03/06/2016,03-10379,"1,899.81",Arrow Specialised Transport Ltd
Nottinghamshire County Council,1111/1001,Children and Young People,CYP,Transport Related,CCA,03/06/2016,03-10380,"2,283.61",Arrow Specialised Transport Ltd
Nottinghamshire County Council,1111/1001,Children and Young People,CYP,Transport Related,CCA,03/06/2016,03-10382,"1,541.70",Arrow Specialised Transport Ltd
Nottinghamshire County Council,1111/1001,Children and Young People,CYP,Transport Related,CCA,03/06/2016,03-10383,"2,662.09",Arrow Specialised Transport Ltd
Nottinghamshire County Council,1111/1001,Children and Young People,CYP,Transport Related,CCA,03/06/2016,03-10385,"2,090.00",Arrow Specialised Transport Ltd
Nottinghamshire County Council,1111/1001,Children and Young People,CYP,Transport Related,CCA,03/06/2016,03-10386,"2,097.60",Arrow Specialised Transport Ltd
Nottinghamshire County Council,1111/1001,Children and Young People,CYP,Transport Related,CCA,03/06/2016,03-10387,"2,513.89",Arrow Specialised Transport Ltd
Nottinghamshire County Council,1111/1001,Children and Young People,CYP,Transport Related,CCA,03/06/2016,03-10388,"1,431.46",Arrow Specialised Transport Ltd
Nottinghamshire County Council,1111/1001,Children and Young People,CYP,Transport Related,CCA,03/06/2016,03-10389,"2,446.82",Arrow Specialised Transport Ltd
Nottinghamshire County Council,1111/1001,Children and Young People,CYP,Transport Related,CCA,03/06/2016,03-10390,"1,742.11",Arrow Specialised Transport Ltd
Nottinghamshire County Council,1111/1001,Children and Young People,CYP,Transport Related,CCA,03/06/2016,03-10391,"2,172.65",Arrow Specialised Transport Ltd
Nottinghamshire County Council,1111/1001,Children and Young People,CYP,Transport Related,CCA,03/06/2016,03-10392,"2,456.32",Arrow Specialised Transport Ltd
Nottinghamshire County Council,1111/1001,Children and Young People,CYP,Transport Related,CCA,03/06/2016,03-10393,"1,633.43",Arrow Specialised Transport Ltd
Nottinghamshire County Council,1111/1001,Children and Young People,CYP,Transport Related,CCA,03/06/2016,03-10394,730.93,Arrow Specialised Transport Ltd
Nottinghamshire County Council,1111/1001,Children and Young People,CYP,Transport Related,CCA,03/06/2016,03-10396,"1,713.99",Arrow Specialised Transport Ltd
Nottinghamshire County Council,1111/1001,Children and Young People,CYP,Transport Related,CCA,03/06/2016,03-10397,"1,892.59",Arrow Specialised Transport Ltd
Nottinghamshire County Council,1111/1001,Children and Young People,CYP,Transport Related,CCA,03/06/2016,03-10398,"1,908.17",Arrow Specialised Transport Ltd
Nottinghamshire County Council,1111/1001,Children and Young People,CYP,Transport Related,CCA,03/06/2016,03-10399,"1,385.67",Arrow Specialised Transport Ltd
Nottinghamshire County Council,1111/1001,Children and Young People,CYP,Transport Related,CCA,03/06/2016,03-10402,"2,177.78",Arrow Specialised Transport Ltd
Nottinghamshire County Council,1111/1001,Children and Young People,CYP,Transport Related,CCA,03/06/2016,03-10403,"2,266.13",Arrow Specialised Transport Ltd
Nottinghamshire County Council,1111/1001,Children and Young People,CYP,Transport Related,CCA,03/06/2016,03-10404,"2,840.12",Arrow Specialised Transport Ltd
Nottinghamshire County Council,1111/1001,Children and Young People,CYP,Transport Related,CCA,03/06/2016,03-10405,"1,976.00",Arrow Specialised Transport Ltd
Nottinghamshire County Council,1111/1001,Children and Young People,CYP,Transport Related,CCA,03/06/2016,03-10406,"1,899.81",Arrow Specialised Transport Ltd
Nottinghamshire County Council,1111/1001,Children and Young People,CYP,Transport Related,CCA,03/06/2016,03-10407,"2,110.90",Arrow Specialised Transport Ltd
Nottinghamshire County Council,1111/1001,Children and Young People,CYP,Transport Related,CCA,03/06/2016,03-10408,"2,149.28",Arrow Specialised Transport Ltd
Nottinghamshire County Council,1111/1001,Children and Young People,CYP,Transport Related,CCA,03/06/2016,03-10410,"1,785.00",Fozcabs Newark Taxis
Nottinghamshire County Council,1111/1001,Children and Young People,CYP,Transport Related,CCA,03/06/2016,03-10411,"2,072.52",Fozcabs Newark Taxis
Nottinghamshire County Council,1111/1001,Children and Young People,CYP,Transport Related,CCA,03/06/2016,03-10412,874,Fozcabs Newark Taxis
Nottinghamshire County Council,1111/1001,Children and Young People,CYP,Transport Related,CCA,03/06/2016,03-10415,"2,110.90",Horizon Travel
Nottinghamshire County Council,1111/1001,Children and Young People,CYP,Transport Related,CCA,03/06/2016,03-10416,"2,275.37",Horizon Travel
Nottinghamshire County Council,1111/1001,Children and Young People,CYP,Transport Related,CCA,03/06/2016,03-10433,834.86,P & P Taxis
Nottinghamshire County Council,1111/1001,Children and Young People,CYP,Transport Related,CCA,03/06/2016,03-10435,"1,120.00",P & P Taxis
Nottinghamshire County Council,1111/1001,Children and Young People,CYP,Transport Related,CCA,03/06/2016,03-10454,792,Forest Cars
Nottinghamshire County Council,1111/1001,Children and Young People,CYP,Transport Related,CCA,03/06/2016,03-10457,"1,862.00",Forest Cars
Nottinghamshire County Council,1111/1001,Children and Young People,CYP,Transport Related,CCA,03/06/2016,03-10458,600.4,Forest Cars
Nottinghamshire County Council,1111/1001,Children and Young People,CYP,Transport Related,CCA,03/06/2016,03-10459,"1,764.00",Forest Cars
Nottinghamshire County Council,1111/1001,Children and Young People,CYP,Transport Related,CCA,03/06/2016,03-10460,"1,216.00",Forest Cars
Nottinghamshire County Council,1111/1001,Children and Young People,CYP,Transport Related,CCA,03/06/2016,03-10461,572.8,Forest Cars
Nottinghamshire County Council,1111/1001,Children and Young People,CYP,Transport Related,CCA,03/06/2016,03-10463,"1,406.00",Forest Cars
Nottinghamshire County Council,1111/1001,Children and Young People,CYP,Transport Related,CCA,03/06/2016,03-10464,"1,330.00",Sean's Taxi Services
Nottinghamshire County Council,1111/1001,Children and Young People,CYP,Transport Related,CCA,03/06/2016,03-10465,"1,833.50",Taxicover Uk Ltd
Nottinghamshire County Council,1111/1001,Children and Young People,CYP,Transport Related,CCA,03/06/2016,03-10466,"3,002.00",Taxicover Uk Ltd
Nottinghamshire County Council,1111/1001,Children and Young People,CYP,Transport Related,CCA,03/06/2016,03-10467,"2,763.36",Taxicover Uk Ltd
Nottinghamshire County Council,1111/1001,Children and Young People,CYP,Transport Related,CCA,03/06/2016,03-10468,"3,607.72",Taxicover Uk Ltd
Nottinghamshire County Council,1111/1001,Children and Young People,CYP,Transport Related,CCA,03/06/2016,03-10469,"3,581.46",Taxicover Uk Ltd
Nottinghamshire County Council,1111/1001,Children and Young People,CYP,Transport Related,CCA,03/06/2016,03-10470,"3,705.00",Taxicover Uk Ltd
Nottinghamshire County Council,1111/1001,Children and Young People,CYP,Transport Related,CCA,03/06/2016,03-10471,"2,838.60",Taxicover Uk Ltd
Nottinghamshire County Council,1111/1001,Children and Young People,CYP,Transport Related,CCA,03/06/2016,03-10472,"3,019.10",Taxicover Uk Ltd
Nottinghamshire County Council,1111/1001,Children and Young People,CYP,Transport Related,CCA,03/06/2016,03-10473,"3,496.00",Taxicover Uk Ltd
Nottinghamshire County Council,1111/1001,Children and Young People,CYP,Transport Related,CCA,03/06/2016,03-10474,"3,496.00",Taxicover Uk Ltd
Nottinghamshire County Council,1111/1001,Children and Young People,CYP,Transport Related,CCA,03/06/2016,03-10476,"2,974.45",Taxicover Uk Ltd
Nottinghamshire County Council,1111/1001,Children and Young People,CYP,Transport Related,CCA,03/06/2016,03-10477,"2,667.41",Taxicover Uk Ltd
Nottinghamshire County Council,1111/1001,Children and Young People,CYP,Transport Related,CCA,03/06/2016,03-10478,"2,840.12",Taxicover Uk Ltd
Nottinghamshire County Council,1111/1001,Children and Young People,CYP,Transport Related,CCA,03/06/2016,03-10479,"3,223.92",Taxicover Uk Ltd
Nottinghamshire County Council,1111/1001,Children and Young People,CYP,Transport Related,CCA,03/06/2016,03-10480,"2,993.64",Taxicover Uk Ltd
Nottinghamshire County Council,1111/1001,Children and Young People,CYP,Transport Related,CCA,03/06/2016,03-10481,"3,002.00",Taxicover Uk Ltd
Nottinghamshire County Council,1111/1001,Children and Young People,CYP,Transport Related,CCA,03/06/2016,03-10482,744,200 Cars Ltd
Nottinghamshire County Council,1111/1001,Children and Young People,CYP,Transport Related,CCA,03/06/2016,03-10483,684,200 Cars Ltd
Nottinghamshire County Council,1111/1001,Children and Young People,CYP,Transport Related,CCA,03/06/2016,03-10484,760,200 Cars Ltd
Nottinghamshire County Council,1111/1001,Children and Young People,CYP,Transport Related,CCA,03/06/2016,03-10486,950,Acorn Contracts
Nottinghamshire County Council,1111/1001,Children and Young People,CYP,Transport Related,CCA,03/06/2016,03-10488,730.32,Acorn Contracts
Nottinghamshire County Council,1111/1001,Children and Young People,CYP,Transport Related,CCA,03/06/2016,03-10490,"1,627.35",Arrow Specialised Transport Ltd
Nottinghamshire County Council,1111/1001,Children and Young People,CYP,Transport Related,CCA,03/06/2016,03-10491,"1,995.00",Arrow Specialised Transport Ltd
Nottinghamshire County Council,1111/1001,Children and Young People,CYP,Transport Related,CCA,03/06/2016,03-10492,"1,862.00",Arrow Specialised Transport Ltd
Nottinghamshire County Council,1111/1001,Children and Young People,CYP,Transport Related,CCA,03/06/2016,03-10494,"2,470.00",Arrow Specialised Transport Ltd
Nottinghamshire County Council,1111/1001,Children and Young People,CYP,Transport Related,CCA,03/06/2016,03-10495,"2,755.00",Arrow Specialised Transport Ltd
Nottinghamshire County Council,1111/1001,Children and Young People,CYP,Transport Related,CCA,03/06/2016,03-10496,"2,755.00",Arrow Specialised Transport Ltd
Nottinghamshire County Council,1111/1001,Children and Young People,CYP,Transport Related,CCA,03/06/2016,03-10497,"2,128.00",Arrow Specialised Transport Ltd
Nottinghamshire County Council,1111/1001,Children and Young People,CYP,Transport Related,CCA,03/06/2016,03-10498,"2,033.00",Arrow Specialised Transport Ltd
Nottinghamshire County Council,1111/1001,Children and Young People,CYP,Transport Related,CCA,03/06/2016,03-10499,"2,270.50",Arrow Specialised Transport Ltd
Nottinghamshire County Council,1111/1001,Children and Young People,CYP,Transport Related,CCA,03/06/2016,03-10500,"1,656.80",Arrow Specialised Transport Ltd
Nottinghamshire County Council,1111/1001,Children and Young People,CYP,Transport Related,CCA,03/06/2016,03-10501,"1,805.00",Arrow Specialised Transport Ltd
Nottinghamshire County Council,1111/1001,Children and Young People,CYP,Transport Related,CCA,03/06/2016,03-10502,"2,071.00",Arrow Specialised Transport Ltd
Nottinghamshire County Council,1111/1001,Children and Young People,CYP,Transport Related,CCA,03/06/2016,03-10503,"2,565.00",Arrow Specialised Transport Ltd
Nottinghamshire County Council,1111/1001,Children and Young People,CYP,Transport Related,CCA,03/06/2016,03-10504,"1,805.00",Arrow Specialised Transport Ltd
Nottinghamshire County Council,1111/1001,Children and Young People,CYP,Transport Related,CCA,03/06/2016,03-10505,"1,501.00",Arrow Specialised Transport Ltd
Nottinghamshire County Council,1111/1001,Children and Young People,CYP,Transport Related,CCA,03/06/2016,03-10506,"3,228.29",Arrow Specialised Transport Ltd
Nottinghamshire County Council,1111/1001,Children and Young People,CYP,Transport Related,CCA,03/06/2016,03-10507,"2,733.34",Arrow Specialised Transport Ltd
Nottinghamshire County Council,1111/1001,Children and Young People,CYP,Transport Related,CCA,03/06/2016,03-10508,"1,705.63",Arrow Specialised Transport Ltd
Nottinghamshire County Council,1111/1001,Children and Young People,CYP,Transport Related,CCA,03/06/2016,03-10509,"1,173.44",Arrow Specialised Transport Ltd
Nottinghamshire County Council,1111/1001,Children and Young People,CYP,Transport Related,CCA,03/06/2016,03-10516,"1,446.32",Bridges Transport Services
Nottinghamshire County Council,1111/1001,Children and Young People,CYP,Transport Related,CCA,03/06/2016,03-10519,"1,919.00",Bridges Transport Services
Nottinghamshire County Council,1111/1001,Children and Young People,CYP,Transport Related,CCA,03/06/2016,03-10520,"2,394.00",Bridges Transport Services
Nottinghamshire County Council,1111/1001,Children and Young People,CYP,Transport Related,CCA,03/06/2016,03-10521,"1,615.00",Bridges Transport Services
Nottinghamshire County Council,1111/1001,Children and Young People,CYP,Transport Related,CCA,03/06/2016,03-10522,"1,277.75",Bridges Transport Services
Nottinghamshire County Council,1111/1001,Children and Young People,CYP,Transport Related,CCA,03/06/2016,03-10523,"1,567.50",Bridges Transport Services
Nottinghamshire County Council,1111/1001,Children and Young People,CYP,Transport Related,CCA,03/06/2016,03-10524,"1,234.05",Bridges Transport Services
Nottinghamshire County Council,1111/1001,Children and Young People,CYP,Transport Related,CCA,03/06/2016,03-10525,829.98,Bridges Transport Services
Nottinghamshire County Council,1111/1001,Children and Young People,CYP,Transport Related,CCA,03/06/2016,03-10526,"1,162.80",Bridges Transport Services
Nottinghamshire County Council,1111/1001,Children and Young People,CYP,Transport Related,CCA,03/06/2016,03-10527,"2,986.99",Bridges Transport Services
Nottinghamshire County Council,1111/1001,Children and Young People,CYP,Transport Related,CCA,03/06/2016,03-10528,"1,753.51",Bridges Transport Services
Nottinghamshire County Council,1111/1001,Children and Young People,CYP,Transport Related,CCA,03/06/2016,03-10529,"4,135.35",Bridges Transport Services
Nottinghamshire County Council,1111/1001,Children and Young People,CYP,Transport Related,CCA,03/06/2016,03-10530,"2,660.00",Bridges Transport Services
Nottinghamshire County Council,1111/1001,Children and Young People,CYP,Transport Related,CCA,03/06/2016,03-10531,"1,981.89",Bridges Transport Services
Nottinghamshire County Council,1111/1001,Children and Young People,CYP,Transport Related,CCA,03/06/2016,03-10532,"2,681.28",Bridges Transport Services
Nottinghamshire County Council,1111/1001,Children and Young People,CYP,Transport Related,CCA,03/06/2016,03-10533,"2,748.16",Bridges Transport Services
Nottinghamshire County Council,1111/1001,Children and Young People,CYP,Transport Related,CCA,03/06/2016,03-10534,"1,394.60",Bridges Transport Services
Nottinghamshire County Council,1111/1001,Children and Young People,CYP,Transport Related,CCA,03/06/2016,03-10535,973.61,Bridges Transport Services
Nottinghamshire County Council,1111/1001,Children and Young People,CYP,Transport Related,CCA,03/06/2016,03-10537,"1,125.00",Bridges Transport Services
Nottinghamshire County Council,1111/1001,Children and Young People,CYP,Transport Related,CCA,03/06/2016,03-10538,"1,881.00",Bridges Transport Services
Nottinghamshire County Council,1111/1001,Children and Young People,CYP,Transport Related,CCA,03/06/2016,03-10539,"2,162.01",Bridges Transport Services
Nottinghamshire County Council,1111/1001,Children and Young People,CYP,Transport Related,CCA,03/06/2016,03-10540,"2,270.50",Bridges Transport Services
Nottinghamshire County Council,1111/1001,Children and Young People,CYP,Transport Related,CCA,03/06/2016,03-10541,"2,605.66",Bridges Transport Services
Nottinghamshire County Council,1111/1001,Children and Young People,CYP,Transport Related,CCA,03/06/2016,03-10542,"2,508.00",Bridges Transport Services
Nottinghamshire County Council,1111/1001,Children and Young People,CYP,Transport Related,CCA,03/06/2016,03-10546,"3,118.47",Ja Travel Ltd
Nottinghamshire County Council,1111/1001,Children and Young People,CYP,Transport Related,CCA,03/06/2016,03-10547,"3,070.40",Ja Travel Ltd
Nottinghamshire County Council,1111/1001,Children and Young People,CYP,Transport Related,CCA,03/06/2016,03-10548,"1,697.46",Ja Travel Ltd
Nottinghamshire County Council,1111/1001,Children and Young People,CYP,Transport Related,CCA,03/06/2016,03-10551,"2,280.00",Sprays Transport Ltd
Nottinghamshire County Council,1111/1001,Children and Young People,CYP,Transport Related,CCA,03/06/2016,03-10552,"1,725.00",Sprays Transport Ltd
Nottinghamshire County Council,1111/1001,Children and Young People,CYP,Transport Related,CCA,03/06/2016,03-10553,"1,859.53",Sprays Transport Ltd
Nottinghamshire County Council,1111/1001,Children and Young People,CYP,Transport Related,CCA,03/06/2016,03-10554,"3,262.30",Vallances Coaches
Nottinghamshire County Council,1111/1001,Children and Young People,CYP,Transport Related,CCA,03/06/2016,03-10556,"2,840.12",Vallances Coaches
Nottinghamshire County Council,1111/1001,Children and Young People,CYP,Transport Related,CCA,03/06/2016,03-10557,"2,570.89",Vallances Coaches
Nottinghamshire County Council,1111/1001,Children and Young People,CYP,Transport Related,CCA,03/06/2016,03-10558,"2,485.20",K & S Coaches
Nottinghamshire County Council,1111/1001,Children and Young People,CYP,Transport Related,CCA,03/06/2016,03-10559,"1,520.00",D G Private Hire Ltd
Nottinghamshire County Council,1111/1001,Children and Young People,CYP,Transport Related,CCA,03/06/2016,03-10560,"1,721.34",D G Private Hire Ltd
Nottinghamshire County Council,1111/1001,Children and Young People,CYP,Transport Related,CCA,03/06/2016,03-10561,665,D G Private Hire Ltd
Nottinghamshire County Council,1111/1001,Children and Young People,CYP,Transport Related,CCA,03/06/2016,03-10562,"1,140.00",D G Private Hire Ltd
Nottinghamshire County Council,1111/1001,Children and Young People,CYP,Transport Related,CCA,03/06/2016,03-10563,"1,140.00",D G Private Hire Ltd
Nottinghamshire County Council,1111/1001,Children and Young People,CYP,Transport Related,CCA,03/06/2016,03-10564,"1,272.24",D G Private Hire Ltd
Nottinghamshire County Council,1111/1001,Children and Young People,CYP,Transport Related,CCA,03/06/2016,03-10565,"1,535.20",D G Private Hire Ltd
Nottinghamshire County Council,1111/1001,Children and Young People,CYP,Transport Related,CCA,03/06/2016,03-10566,"1,060.50",D G Private Hire Ltd
Nottinghamshire County Council,1111/1001,Children and Young People,CYP,Transport Related,CCA,03/06/2016,03-10568,"1,247.54",Abacus Cars
Nottinghamshire County Council,1111/1001,Children and Young People,CYP,Transport Related,CCA,03/06/2016,03-10577,"1,343.30",Abacus Cars
Nottinghamshire County Council,1111/1001,Children and Young People,CYP,Transport Related,CCA,03/06/2016,03-10578,"1,748.00",Abacus Cars
Nottinghamshire County Council,1111/1001,Children and Young People,CYP,Transport Related,CCA,03/06/2016,03-10580,"1,615.00",Abacus Cars
Nottinghamshire County Council,1111/1001,Children and Young People,CYP,Transport Related,CCA,03/06/2016,03-10581,"1,615.00",Abacus Cars
Nottinghamshire County Council,1111/1001,Children and Young People,CYP,Transport Related,CCA,03/06/2016,03-10583,"1,368.00",Abacus Cars
Nottinghamshire County Council,1111/1001,Children and Young People,CYP,Transport Related,CCA,03/06/2016,03-10585,540.9,Abacus Cars
Nottinghamshire County Council,1111/1001,Children and Young People,CYP,Transport Related,CCA,03/06/2016,03-10586,"3,070.40",Abacus Cars
Nottinghamshire County Council,1111/1001,Children and Young People,CYP,Transport Related,CCA,03/06/2016,03-10588,"1,520.00",Abacus Cars
Nottinghamshire County Council,1111/1001,Children and Young People,CYP,Transport Related,CCA,03/06/2016,03-10589,"1,343.30",Abacus Cars
Nottinghamshire County Council,1111/1001,Children and Young People,CYP,Transport Related,CCA,03/06/2016,03-10591,"1,277.94",Abacus Cars
Nottinghamshire County Council,1111/1001,Children and Young People,CYP,Transport Related,CCA,03/06/2016,03-10606,640,C W Moxon Ltd
Nottinghamshire County Council,1111/1001,Children and Young People,CYP,Transport Related,CCA,03/06/2016,03-10614,"1,595.00",Town Cars (UK) Ltd
Nottinghamshire County Council,1111/1001,Children and Young People,CYP,Transport Related,CCA,03/06/2016,03-10615,587.29,Town Cars (UK) Ltd
Nottinghamshire County Council,1111/1001,Children and Young People,CYP,Transport Related,CCA,03/06/2016,03-10616,367.78,Town Cars (UK) Ltd
Nottinghamshire County Council,1111/1001,Children and Young People,CYP,Transport Related,CCA,03/06/2016,03-10618,684,Town Cars (UK) Ltd
Nottinghamshire County Council,1111/1001,Children and Young People,CYP,Transport Related,CCA,03/06/2016,03-10619,"1,102.00",Town Cars (UK) Ltd
Nottinghamshire County Council,1111/1001,Children and Young People,CYP,Transport Related,CCA,03/06/2016,03-10621,"2,559.30",L A Travel
Nottinghamshire County Council,1111/1001,Children and Young People,CYP,Transport Related,CCA,03/06/2016,03-10622,"4,333.65",Target Taxis
Nottinghamshire County Council,1111/1001,Children and Young People,CYP,Transport Related,CCA,06/06/2016,03-10642,947,Mars Cars Ltd
Nottinghamshire County Council,1111/1001,Children and Young People,CYP,Transport Related,CCA,06/06/2016,03-10643,"1,778.40",Southside Cars
Nottinghamshire County Council,1111/1001,Children and Young People,CYP,Transport Related,CCA,06/06/2016,03-10644,"2,206.47",F4Control Ltd (t/a First4care)
Nottinghamshire County Council,1111/1001,Children and Young People,CYP,Transport Related,CCA,06/06/2016,03-10647,"2,158.02",F4Control Ltd (t/a First4care)
Nottinghamshire County Council,1111/1001,Children and Young People,CYP,Transport Related,CCA,06/06/2016,03-10649,"2,390.04",F4Control Ltd (t/a First4care)
Nottinghamshire County Council,1111/1001,Children and Young People,CYP,Transport Related,CCA,06/06/2016,03-10651,"2,575.26",F4Control Ltd (t/a First4care)
Nottinghamshire County Council,1111/1001,Children and Young People,CYP,Transport Related,CCA,06/06/2016,03-10652,"1,510.99",F4Control Ltd (t/a First4care)
Nottinghamshire County Council,1111/1001,Children and Young People,CYP,Transport Related,CCA,06/06/2016,03-10655,"2,264.42",F4Control Ltd (t/a First4care)
Nottinghamshire County Council,1111/1001,Children and Young People,CYP,Transport Related,CCA,06/06/2016,03-10656,"2,283.61",F4Control Ltd (t/a First4care)
Nottinghamshire County Council,1111/1001,Children and Young People,CYP,Transport Related,CCA,06/06/2016,03-10657,"2,149.28",F4Control Ltd (t/a First4care)
Nottinghamshire County Council,1111/1001,Children and Young People,CYP,Transport Related,CCA,06/06/2016,03-10658,"2,141.87",F4Control Ltd (t/a First4care)
Nottinghamshire County Council,1111/1001,Children and Young People,CYP,Transport Related,CCA,06/06/2016,03-10659,"2,335.14",F4Control Ltd (t/a First4care)
Nottinghamshire County Council,1111/1001,Children and Young People,CYP,Transport Related,CCA,06/06/2016,03-10660,"2,031.48",F4Control Ltd (t/a First4care)
Nottinghamshire County Council,1111/1001,Children and Young People,CYP,Transport Related,CCA,06/06/2016,03-10661,"2,177.02",F4Control Ltd (t/a First4care)
Nottinghamshire County Council,1111/1001,Children and Young People,CYP,Transport Related,CCA,06/06/2016,03-10662,"2,200.77",F4Control Ltd (t/a First4care)
Nottinghamshire County Council,1111/1001,Children and Young People,CYP,Transport Related,CCA,06/06/2016,03-10663,"2,388.87",F4Control Ltd (t/a First4care)
Nottinghamshire County Council,1111/1001,Children and Young People,CYP,Transport Related,CCA,06/06/2016,03-10664,"2,232.12",F4Control Ltd (t/a First4care)
Nottinghamshire County Council,1111/1001,Children and Young People,CYP,Transport Related,CCA,06/06/2016,03-10665,572,200 Cars Ltd
Nottinghamshire County Council,1111/1001,Children and Young People,CYP,Transport Related,CCA,06/06/2016,03-10666,874,Ace Of Mansfield Ltd
Nottinghamshire County Council,1111/1001,Children and Young People,CYP,Transport Related,CCA,06/06/2016,03-10668,"1,380.00",Ace Of Mansfield Ltd
Nottinghamshire County Council,1111/1001,Children and Young People,CYP,Transport Related,CCA,06/06/2016,03-10669,"2,326.86",Fozcabs Newark Taxis
Nottinghamshire County Council,1111/1001,Children and Young People,CYP,Transport Related,CCA,06/06/2016,03-10671,"3,619.31",Galaxy Cabs
Nottinghamshire County Council,1111/1001,Children and Young People,CYP,Transport Related,CCA,06/06/2016,03-10672,"1,174.39",Galaxy Cabs
Nottinghamshire County Council,1111/1001,Children and Young People,CYP,Transport Related,CCA,06/06/2016,03-10674,"1,140.00",Galaxy Cabs
Nottinghamshire County Council,1111/1001,Children and Young People,CYP,Transport Related,CCA,06/06/2016,03-10675,"1,512.00",Headland Taxi Services
Nottinghamshire County Council,1111/1001,Children and Young People,CYP,Transport Related,CCA,06/06/2016,03-10677,"1,820.00",Ng11 Cars
Nottinghamshire County Council,1111/1001,Children and Young People,CYP,Transport Related,CCA,06/06/2016,03-10678,"1,360.00",Ng11 Cars
Nottinghamshire County Council,1111/1001,Children and Young People,CYP,Transport Related,CCA,06/06/2016,03-10679,684,Ng11 Cars
Nottinghamshire County Council,1111/1001,Children and Young People,CYP,Transport Related,CCA,06/06/2016,03-10680,900,Ng11 Cars
Nottinghamshire County Council,1111/1001,Children and Young People,CYP,Transport Related,CCA,06/06/2016,03-10681,"1,026.00",Ng11 Cars
Nottinghamshire County Council,1111/1001,Children and Young People,CYP,Transport Related,CCA,06/06/2016,03-10682,"1,330.00",Ng11 Cars
Nottinghamshire County Council,1111/1001,Children and Young People,CYP,Transport Related,CCA,06/06/2016,03-10683,"2,264.42",Sprays Transport Ltd
Nottinghamshire County Council,1111/1001,Children and Young People,CYP,Transport Related,CCA,06/06/2016,03-10684,"1,956.62",Sprays Transport Ltd
Nottinghamshire County Council,1111/1001,Children and Young People,CYP,Transport Related,CCA,06/06/2016,03-10685,"1,862.00",Sprays Transport Ltd
Nottinghamshire County Council,1111/1001,Children and Young People,CYP,Transport Related,CCA,06/06/2016,03-10686,"2,086.20",Sprays Transport Ltd
Nottinghamshire County Council,1111/1001,Children and Young People,CYP,Transport Related,CCA,06/06/2016,03-10688,"1,800.82",Sprays Transport Ltd
Nottinghamshire County Council,1111/1001,Children and Young People,CYP,Transport Related,CCA,06/06/2016,03-10689,"1,814.88",Sprays Transport Ltd
Nottinghamshire County Council,1111/1001,Children and Young People,CYP,Transport Related,CCA,06/06/2016,03-10690,"2,110.90",Sprays Transport Ltd
Nottinghamshire County Council,1111/1001,Children and Young People,CYP,Transport Related,CCA,06/06/2016,03-10691,"2,014.95",Sprays Transport Ltd
Nottinghamshire County Council,1111/1001,Children and Young People,CYP,Transport Related,CCA,06/06/2016,03-10692,"2,072.52",Sprays Transport Ltd
Nottinghamshire County Council,1111/1001,Children and Young People,CYP,Transport Related,CCA,06/06/2016,03-10694,"2,072.52",Sprays Transport Ltd
Nottinghamshire County Council,1111/1001,Children and Young People,CYP,Transport Related,CCA,06/06/2016,03-10695,"2,086.20",Sprays Transport Ltd
Nottinghamshire County Council,1111/1001,Children and Young People,CYP,Transport Related,CCA,06/06/2016,03-10698,"1,830.00",Sprays Transport Ltd
Nottinghamshire County Council,1111/1001,Children and Young People,CYP,Transport Related,CCA,06/06/2016,03-10701,504,Elkingtons Park Garage
Nottinghamshire County Council,1111/1001,Children and Young People,CYP,Transport Related,CCA,06/06/2016,03-10702,"2,847.45",BN Gibson Ltd
Nottinghamshire County Council,1111/1001,Children and Young People,CYP,Transport Related,CCA,06/06/2016,03-10703,"2,378.70",BN Gibson Ltd
Nottinghamshire County Council,1111/1001,Children and Young People,CYP,Transport Related,CCA,06/06/2016,03-10718,"1,319.55",Rio Cabs
Nottinghamshire County Council,1111/1001,Children and Young People,CYP,Transport Related,CCA,06/06/2016,03-10720,679.92,Rio Cabs
Nottinghamshire County Council,1111/1001,Children and Young People,CYP,Transport Related,CCA,06/06/2016,03-10722,"2,907.00",Wallis Coachways
Nottinghamshire County Council,1111/1001,Children and Young People,CYP,Transport Related,CCA,06/06/2016,03-10724,720,Cable Cars Taxis Nottm Ltd
Nottinghamshire County Council,1111/1001,Children and Young People,CYP,Transport Related,CCA,06/06/2016,03-10727,"1,244.32",Eurocab 2000 Ltd
Nottinghamshire County Council,1111/1001,Children and Young People,CYP,Transport Related,CCA,06/06/2016,03-10728,"1,020.00",Eurocab 2000 Ltd
Nottinghamshire County Council,1111/1001,Children and Young People,CYP,Transport Related,CCA,06/06/2016,03-10730,617.5,Eurocab 2000 Ltd
Nottinghamshire County Council,1111/1001,Children and Young People,CYP,Transport Related,CCA,06/06/2016,03-10733,"1,900.00",Trevor Bailey t/a Trevor Bailey Tra
Nottinghamshire County Council,1111/1001,Children and Young People,CYP,Transport Related,CCA,07/06/2016,03-11698,874.5,Tiger European Uk Ltd
Nottinghamshire County Council,1111/1001,Children and Young People,CYP,Transport Related,CCA,08/06/2016,03-12052,"2,303.10",F4Control Ltd (t/a First4care)
Nottinghamshire County Council,1111/1001,Children and Young People,CYP,Transport Related,CCA,08/06/2016,03-12053,710.12,F4Control Ltd (t/a First4care)
Nottinghamshire County Council,1111/1001,Children and Young People,CYP,Transport Related,CCA,08/06/2016,03-12055,"1,899.05",F4Control Ltd (t/a First4care)
Nottinghamshire County Council,1111/1001,Children and Young People,CYP,Transport Related,CCA,08/06/2016,03-12057,"2,869.00",Johnson Bros Tours Ltd
Nottinghamshire County Council,1111/1001,Children and Young People,CYP,Transport Related,CCA,08/06/2016,03-12065,"2,978.63",CBC Taxis Ltd
Nottinghamshire County Council,1111/1001,Children and Young People,CYP,Transport Related,CCA,08/06/2016,03-12066,"1,520.00",CBC Taxis Ltd
Nottinghamshire County Council,1111/1001,Children and Young People,CYP,Transport Related,CCA,08/06/2016,03-12067,"1,387.00",CBC Taxis Ltd
Nottinghamshire County Council,1111/1001,Children and Young People,CYP,Transport Related,CCA,08/06/2016,03-12071,"1,140.00",CBC Taxis Ltd
Nottinghamshire County Council,1111/1001,Children and Young People,CYP,Transport Related,CCA,08/06/2016,03-12072,"1,710.00",CBC Taxis Ltd
Nottinghamshire County Council,1111/1001,Children and Young People,CYP,Transport Related,CCA,08/06/2016,03-12073,"2,090.00",CBC Taxis Ltd
Nottinghamshire County Council,1111/1001,Children and Young People,CYP,Transport Related,CCA,08/06/2016,03-12074,665,CBC Taxis Ltd
Nottinghamshire County Council,1111/1001,Children and Young People,CYP,Transport Related,CCA,08/06/2016,03-12075,412.5,CBC Taxis Ltd
Nottinghamshire County Council,1111/1001,Children and Young People,CYP,Transport Related,CCA,08/06/2016,03-12077,990,CBC Taxis Ltd
Nottinghamshire County Council,1111/1001,Children and Young People,CYP,Transport Related,CCA,08/06/2016,03-12078,"1,980.00",CBC Taxis Ltd
Nottinghamshire County Council,1111/1001,Children and Young People,CYP,Transport Related,CCA,08/06/2016,03-12079,900,CBC Taxis Ltd
Nottinghamshire County Council,1111/1001,Children and Young People,CYP,Transport Related,CCA,08/06/2016,03-12082,800,CBC Taxis Ltd
Nottinghamshire County Council,1111/1001,Children and Young People,CYP,Transport Related,CCA,08/06/2016,03-12083,"1,520.00",CBC Taxis Ltd
Nottinghamshire County Council,1111/1001,Children and Young People,CYP,Transport Related,CCA,08/06/2016,03-12085,720,Ace Of Mansfield Ltd
Nottinghamshire County Council,1111/1001,Children and Young People,CYP,Transport Related,CCA,08/06/2016,03-12086,900,Ace Of Mansfield Ltd
Nottinghamshire County Council,1111/1001,Children and Young People,CYP,Transport Related,CCA,08/06/2016,03-12088,"1,080.00",Ace Of Mansfield Ltd
Nottinghamshire County Council,1111/1001,Children and Young People,CYP,Transport Related,CCA,08/06/2016,03-12089,614.08,Ace Of Mansfield Ltd
Nottinghamshire County Council,1111/1001,Children and Young People,CYP,Transport Related,CCA,08/06/2016,03-12092,"1,949.30",Ace Of Mansfield Ltd
Nottinghamshire County Council,1111/1001,Children and Young People,CYP,Transport Related,CCA,08/06/2016,03-12093,"1,665.00",Ace Of Mansfield Ltd
Nottinghamshire County Council,1111/1001,Children and Young People,CYP,Transport Related,CCA,08/06/2016,03-12095,"1,875.61",Arrow Specialised Transport Ltd
Nottinghamshire County Council,1111/1001,Children and Young People,CYP,Transport Related,CCA,08/06/2016,03-12096,"2,525.48",Arrow Specialised Transport Ltd
Nottinghamshire County Council,1111/1001,Children and Young People,CYP,Transport Related,CCA,08/06/2016,03-12097,"2,215.97",D G Private Hire Ltd
Nottinghamshire County Council,1111/1001,Children and Young People,CYP,Transport Related,CCA,08/06/2016,03-12098,"2,288.70",D G Private Hire Ltd
Nottinghamshire County Council,1111/1001,Children and Young People,CYP,Transport Related,CCA,08/06/2016,03-12099,"2,158.21",Erewash Community Transport
Nottinghamshire County Council,1111/1001,Children and Young People,CYP,Transport Related,CCA,08/06/2016,03-12100,"13,343.76",Erewash Community Transport
Nottinghamshire County Council,1111/1001,Children and Young People,CYP,Transport Related,CCA,08/06/2016,03-12104,"2,578.68",F4Control Ltd (t/a First4care)
Nottinghamshire County Council,1111/1001,Children and Young People,CYP,Transport Related,CCA,08/06/2016,03-12106,"2,491.85",Midfield Travel
Nottinghamshire County Council,1111/1001,Children and Young People,CYP,Transport Related,CCA,08/06/2016,03-12107,"2,552.27",D G Private Hire Ltd
Nottinghamshire County Council,1111/1001,Children and Young People,CYP,Transport Related,CCA,08/06/2016,03-12113,"1,962.90",Nunns Cars
Nottinghamshire County Council,1111/1001,Children and Young People,CYP,Transport Related,CCA,08/06/2016,03-12156,"2,675.39",Travel Wright Ltd
Nottinghamshire County Council,1111/1001,Children and Young People,CYP,Transport Related,CCA,08/06/2016,03-12166,"1,190.00",Travel Wright Ltd
Nottinghamshire County Council,1111/1001,Children and Young People,CYP,Transport Related,CCA,08/06/2016,03-12167,"1,533.12",Travel Wright Ltd
Nottinghamshire County Council,1111/1001,Children and Young People,CYP,Transport Related,CCA,08/06/2016,03-12169,"3,040.00",K Matthews Travel
Nottinghamshire County Council,1111/1001,Children and Young People,CYP,Transport Related,CCA,08/06/2016,03-12170,"3,230.00",K Matthews Travel
Nottinghamshire County Council,1111/1001,Children and Young People,CYP,Transport Related,CCA,08/06/2016,03-12171,"2,609.84",K Matthews Travel
Nottinghamshire County Council,1111/1001,Children and Young People,CYP,Transport Related,CCA,08/06/2016,03-12175,767.6,A2B Licensed Taxis
Nottinghamshire County Council,1111/1001,Children and Young People,CYP,Transport Related,CCA,08/06/2016,03-12177,412.5,Nottingham Cars Ltd
Nottinghamshire County Council,1111/1001,Children and Young People,CYP,Transport Related,CCA,08/06/2016,03-12179,558,Nottingham Cars Ltd
Nottinghamshire County Council,1111/1001,Children and Young People,CYP,Transport Related,CCA,08/06/2016,03-12180,"1,520.00",Nottingham Cars Ltd
Nottinghamshire County Council,1111/1001,Children and Young People,CYP,Transport Related,CCA,13/06/2016,03-12268,"2,375.00",Central Cars Nottm Ltd
Nottinghamshire County Council,1111/1001,Children and Young People,CYP,Transport Related,CCA,13/06/2016,03-12269,"1,111.94",Central Cars Nottm Ltd
Nottinghamshire County Council,1111/1001,Children and Young People,CYP,Transport Related,CCA,13/06/2016,03-12271,"1,696.89",Central Cars Nottm Ltd
Nottinghamshire County Council,1111/1001,Children and Young People,CYP,Transport Related,CCA,13/06/2016,03-12272,"2,092.47",Central Cars Nottm Ltd
Nottinghamshire County Council,1111/1001,Children and Young People,CYP,Transport Related,CCA,13/06/2016,03-12273,"2,331.68",Central Cars Nottm Ltd
Nottinghamshire County Council,1111/1001,Children and Young People,CYP,Transport Related,CCA,13/06/2016,03-12274,"2,231.25",Johnson Bros Tours Ltd
Nottinghamshire County Council,1111/1001,Children and Young People,CYP,Transport Related,CCA,13/06/2016,03-12275,"2,341.18",Martins Travel
Nottinghamshire County Council,1111/1001,Children and Young People,CYP,Transport Related,CCA,13/06/2016,03-12277,755.48,D G Private Hire Ltd
Nottinghamshire County Council,1111/1001,Children and Young People,CYP,Transport Related,CCA,13/06/2016,03-12279,687,D G Private Hire Ltd
Nottinghamshire County Council,1111/1001,Children and Young People,CYP,Transport Related,CCA,13/06/2016,03-12280,690.84,D G Private Hire Ltd
Nottinghamshire County Council,1111/1001,Children and Young People,CYP,Transport Related,CCA,13/06/2016,03-12287,767.6,D G Private Hire Ltd
Nottinghamshire County Council,1111/1001,Children and Young People,CYP,Transport Related,CCA,13/06/2016,03-12288,"1,545.30",D G Private Hire Ltd
Nottinghamshire County Council,1111/1001,Children and Young People,CYP,Transport Related,CCA,13/06/2016,03-12289,"1,545.00",D G Private Hire Ltd
Nottinghamshire County Council,1111/1001,Children and Young People,CYP,Transport Related,CCA,13/06/2016,03-12292,505,D G Private Hire Ltd
Nottinghamshire County Council,1111/1001,Children and Young People,CYP,Transport Related,CCA,13/06/2016,03-12302,"2,090.00",AAA Cabs
Nottinghamshire County Council,1111/1001,Children and Young People,CYP,Transport Related,CCA,14/06/2016,03-14996,"15,295.00",Sharpes Of Nottingham
Nottinghamshire County Council,1111/1001,Children and Young People,CYP,Transport Related,CCA,14/06/2016,03-14998,"1,710.00",Arrow Specialised Transport Ltd
Nottinghamshire County Council,1111/1001,Children and Young People,CYP,Transport Related,CCA,14/06/2016,03-15000,"3,243.11",Butler Brothers Ltd
Nottinghamshire County Council,1111/1001,Children and Young People,CYP,Transport Related,CCA,14/06/2016,03-15001,"1,064.00",Shelleys Taxis Ltd
Nottinghamshire County Council,1111/1001,Children and Young People,CYP,Transport Related,CCA,14/06/2016,03-15002,"1,620.00",Shelleys Taxis Ltd
Nottinghamshire County Council,1111/1001,Children and Young People,CYP,Transport Related,CCA,14/06/2016,03-15003,565.6,Shelleys Taxis Ltd
Nottinghamshire County Council,1111/1001,Children and Young People,CYP,Transport Related,CCA,14/06/2016,03-15004,681.75,Shelleys Taxis Ltd
Nottinghamshire County Council,1111/1001,Children and Young People,CYP,Transport Related,CCA,14/06/2016,03-15005,"1,060.50",Shelleys Taxis Ltd
Nottinghamshire County Council,1111/1001,Children and Young People,CYP,Transport Related,CCA,14/06/2016,03-15006,"1,710.00",Shelleys Taxis Ltd
Nottinghamshire County Council,1111/1001,Children and Young People,CYP,Transport Related,CCA,14/06/2016,03-15007,"1,343.30",Shelleys Taxis Ltd
Nottinghamshire County Council,1111/1001,Children and Young People,CYP,Transport Related,CCA,14/06/2016,03-15008,"1,900.00",Shelleys Taxis Ltd
Nottinghamshire County Council,1111/1001,Children and Young People,CYP,Transport Related,CCA,14/06/2016,03-15009,"1,113.02",Shelleys Taxis Ltd
Nottinghamshire County Council,1111/1001,Children and Young People,CYP,Transport Related,CCA,14/06/2016,03-15011,995.5,Shelleys Taxis Ltd
Nottinghamshire County Council,1111/1001,Children and Young People,CYP,Transport Related,CCA,14/06/2016,03-15013,863.55,Shelleys Taxis Ltd
Nottinghamshire County Council,1111/1001,Children and Young People,CYP,Transport Related,CCA,14/06/2016,03-15015,"1,254.00",Shelleys Taxis Ltd
Nottinghamshire County Council,1111/1001,Children and Young People,CYP,Transport Related,CCA,14/06/2016,03-15016,"1,330.00",Shelleys Taxis Ltd
Nottinghamshire County Council,1111/1001,Children and Young People,CYP,Transport Related,CCA,14/06/2016,03-15019,"3,733.31",BN Gibson Ltd
Nottinghamshire County Council,1111/1001,Children and Young People,CYP,Transport Related,CCA,14/06/2016,03-15020,"4,356.89",BN Gibson Ltd
Nottinghamshire County Council,1111/1001,Children and Young People,CYP,Transport Related,CCA,14/06/2016,03-15021,"2,218.63",BN Gibson Ltd
Nottinghamshire County Council,1111/1001,Children and Young People,CYP,Transport Related,CCA,14/06/2016,03-15022,"2,284.94",BN Gibson Ltd
Nottinghamshire County Council,1111/1001,Children and Young People,CYP,Transport Related,CCA,14/06/2016,03-15023,"2,003.93",BN Gibson Ltd
Nottinghamshire County Council,1111/1001,Children and Young People,CYP,Transport Related,CCA,14/06/2016,03-15024,"4,320.98",BN Gibson Ltd
Nottinghamshire County Council,1111/1001,Children and Young People,CYP,Transport Related,CCA,14/06/2016,03-15025,"2,835.18",BN Gibson Ltd
Nottinghamshire County Council,1111/1001,Children and Young People,CYP,Transport Related,CCA,14/06/2016,03-15026,"3,642.87",BN Gibson Ltd
Nottinghamshire County Council,1111/1001,Children and Young People,CYP,Transport Related,CCA,14/06/2016,03-15027,"3,346.47",BN Gibson Ltd
Nottinghamshire County Council,1111/1001,Children and Young People,CYP,Transport Related,CCA,14/06/2016,03-15028,"3,013.02",BN Gibson Ltd
Nottinghamshire County Council,1111/1001,Children and Young People,CYP,Transport Related,CCA,14/06/2016,03-15029,"3,123.72",BN Gibson Ltd
Nottinghamshire County Council,1111/1001,Children and Young People,CYP,Transport Related,CCA,14/06/2016,03-15030,"3,054.96",BN Gibson Ltd
Nottinghamshire County Council,1111/1001,Children and Young People,CYP,Transport Related,CCA,14/06/2016,03-15031,"4,253.04",BN Gibson Ltd
Nottinghamshire County Council,1111/1001,Children and Young People,CYP,Transport Related,CCA,14/06/2016,03-15032,"2,881.08",BN Gibson Ltd
Nottinghamshire County Council,1111/1001,Children and Young People,CYP,Transport Related,CCA,14/06/2016,03-15033,"4,638.47",BN Gibson Ltd
Nottinghamshire County Council,1111/1001,Children and Young People,CYP,Transport Related,CCA,14/06/2016,03-15034,"3,518.80",BN Gibson Ltd
Nottinghamshire County Council,1111/1001,Children and Young People,CYP,Transport Related,CCA,14/06/2016,03-15035,"3,040.00",BN Gibson Ltd
Nottinghamshire County Council,1111/1001,Children and Young People,CYP,Transport Related,CCA,14/06/2016,03-15036,"2,399.51",BN Gibson Ltd
Nottinghamshire County Council,1111/1001,Children and Young People,CYP,Transport Related,CCA,14/06/2016,03-15037,"3,768.84",BN Gibson Ltd
Nottinghamshire County Council,1111/1001,Children and Young People,CYP,Transport Related,CCA,14/06/2016,03-15038,"2,242.57",BN Gibson Ltd
Nottinghamshire County Council,1111/1001,Children and Young People,CYP,Transport Related,CCA,14/06/2016,03-15039,"1,671.05",BN Gibson Ltd
Nottinghamshire County Council,1111/1001,Children and Young People,CYP,Transport Related,CCA,14/06/2016,03-15040,"4,531.50",BN Gibson Ltd
Nottinghamshire County Council,1111/1001,Children and Young People,CYP,Transport Related,CCA,14/06/2016,03-15041,"1,782.58",BN Gibson Ltd
Nottinghamshire County Council,1111/1001,Children and Young People,CYP,Transport Related,CCA,14/06/2016,03-15042,"2,526.24",BN Gibson Ltd
Nottinghamshire County Council,1111/1001,Children and Young People,CYP,Transport Related,CCA,14/06/2016,03-15043,"1,789.23",BN Gibson Ltd
Nottinghamshire County Council,1111/1001,Children and Young People,CYP,Transport Related,CCA,14/06/2016,03-15044,"1,643.88",BN Gibson Ltd
Nottinghamshire County Council,1111/1001,Children and Young People,CYP,Transport Related,CCA,14/06/2016,03-15046,"2,880.97",BN Gibson Ltd
Nottinghamshire County Council,1111/1001,Children and Young People,CYP,Transport Related,CCA,14/06/2016,03-15047,"2,794.14",BN Gibson Ltd
Nottinghamshire County Council,1111/1001,Children and Young People,CYP,Transport Related,CCA,14/06/2016,03-15048,"2,130.85",BN Gibson Ltd
Nottinghamshire County Council,1111/1001,Children and Young People,CYP,Transport Related,CCA,14/06/2016,03-15049,"2,533.46",BN Gibson Ltd
Nottinghamshire County Council,1111/1001,Children and Young People,CYP,Transport Related,CCA,14/06/2016,03-15050,"2,433.33",BN Gibson Ltd
Nottinghamshire County Council,1111/1001,Children and Young People,CYP,Transport Related,CCA,14/06/2016,03-15051,905.52,Gem Mini Travel Ltd
Nottinghamshire County Council,1111/1001,Children and Young People,CYP,Transport Related,CCA,14/06/2016,03-15052,"5,765.06",Gem Mini Travel Ltd
Nottinghamshire County Council,1111/1001,Children and Young People,CYP,Transport Related,CCA,14/06/2016,03-15067,"3,275.03",Marshalls Of Sutton On Trent Ltd
Nottinghamshire County Council,1111/1001,Children and Young People,CYP,Transport Related,CCA,14/06/2016,03-15075,"3,378.20",Marshalls Of Sutton On Trent Ltd
Nottinghamshire County Council,1111/1001,Children and Young People,CYP,Transport Related,CCA,14/06/2016,03-15076,"2,014.00",Silverdale Tours Nottm Ltd
Nottinghamshire County Council,1111/1001,Children and Young People,CYP,Transport Related,CCA,14/06/2016,03-15079,643.14,Bassetlaw Action Centre
Nottinghamshire County Council,1111/1001,Children and Young People,CYP,Transport Related,CCA,14/06/2016,03-15080,511.29,Bassetlaw Action Centre
Nottinghamshire County Council,1111/1001,Children and Young People,CYP,Transport Related,CCA,14/06/2016,03-15086,504.11,Diamond Cars
Nottinghamshire County Council,1111/1001,Children and Young People,CYP,Transport Related,CCA,16/06/2016,03-15375,"1,510.50",Tiger European Uk Ltd
Nottinghamshire County Council,1111/1001,Children and Young People,CYP,Transport Related,CCA,17/06/2016,03-15394,"1,533.00",6 Five 2s
Nottinghamshire County Council,1111/1001,Children and Young People,CYP,Transport Related,CCA,17/06/2016,03-15395,"1,191.00",6 Five 2s
Nottinghamshire County Council,1111/1001,Children and Young People,CYP,Transport Related,CCA,17/06/2016,03-15396,777.6,6 Five 2s
Nottinghamshire County Council,1111/1001,Children and Young People,CYP,Transport Related,CCA,17/06/2016,03-15397,660,6 Five 2s
Nottinghamshire County Council,1111/1001,Children and Young People,CYP,Transport Related,CCA,17/06/2016,03-15398,968,6 Five 2s
Nottinghamshire County Council,1111/1001,Children and Young People,CYP,Transport Related,CCA,17/06/2016,03-15399,"1,140.00",6 Five 2s
Nottinghamshire County Council,1111/1001,Children and Young People,CYP,Transport Related,CCA,17/06/2016,03-15400,"1,672.00",6 Five 2s
Nottinghamshire County Council,1111/1001,Children and Young People,CYP,Transport Related,CCA,17/06/2016,03-15405,396,200 Cars Ltd
Nottinghamshire County Council,1111/1001,Children and Young People,CYP,Transport Related,CCA,17/06/2016,03-15409,"2,147.00",Sprays Transport Ltd
Nottinghamshire County Council,1111/1001,Children and Young People,CYP,Transport Related,CCA,17/06/2016,03-15410,"2,020.46",Sprays Transport Ltd
Nottinghamshire County Council,1111/1001,Children and Young People,CYP,Transport Related,CCA,17/06/2016,03-15416,"1,072.00",Abacus Cars
Nottinghamshire County Council,1111/1001,Children and Young People,CYP,Transport Related,CCA,17/06/2016,03-15417,"1,556.00",Abacus Cars
Nottinghamshire County Council,1111/1001,Children and Young People,CYP,Transport Related,CCA,17/06/2016,03-15420,678.72,Town Cars (UK) Ltd
Nottinghamshire County Council,1111/1001,Children and Young People,CYP,Transport Related,CCA,17/06/2016,03-15421,909.16,I Can Charity
Nottinghamshire County Council,1111/1001,Children and Young People,CYP,Transport Related,CCA,17/06/2016,03-15422,680,I Can Charity
Nottinghamshire County Council,1111/1001,Children and Young People,CYP,Transport Related,CCA,21/06/2016,03-15748,"2,144.00",Ace Cars
Nottinghamshire County Council,1111/1001,Children and Young People,CYP,Transport Related,CCA,21/06/2016,03-15749,"1,352.00",Ace Cars
Nottinghamshire County Council,1111/1001,Children and Young People,CYP,Transport Related,CCA,21/06/2016,03-15750,"1,912.00",Ace Cars
Nottinghamshire County Council,1111/1001,Children and Young People,CYP,Transport Related,CCA,21/06/2016,03-15751,"1,296.75",Ace Cars
Nottinghamshire County Council,1111/1001,Children and Young People,CYP,Transport Related,CCA,21/06/2016,03-15752,504.11,Diamond Cars
Nottinghamshire County Council,1111/1001,Children and Young People,CYP,Transport Related,CCA,21/06/2016,03-15757,"14,845.25",Travel Wright Ltd
Nottinghamshire County Council,1111/1001,Children and Young People,CYP,Transport Related,CCA,23/06/2016,03-15876,675,Sharpes Of Nottingham
Nottinghamshire County Council,1111/1001,Children and Young People,CYP,Transport Related,CCA,23/06/2016,03-15877,900,Sharpes Of Nottingham
Nottinghamshire County Council,1111/1001,Children and Young People,CYP,Transport Related,CCA,23/06/2016,03-15884,"1,142.13",6 Five 2s
Nottinghamshire County Council,1111/1001,Children and Young People,CYP,Transport Related,CCA,23/06/2016,03-15885,933.24,6 Five 2s
Nottinghamshire County Council,1111/1001,Children and Young People,CYP,Transport Related,CCA,23/06/2016,03-15886,"1,135.42",6 Five 2s
Nottinghamshire County Council,1111/1001,Children and Young People,CYP,Transport Related,CCA,23/06/2016,03-15887,"1,044.34",6 Five 2s
Nottinghamshire County Council,1111/1001,Children and Young People,CYP,Transport Related,CCA,23/06/2016,03-15888,622.16,6 Five 2s
Nottinghamshire County Council,1111/1001,Children and Young People,CYP,Transport Related,CCA,23/06/2016,03-15889,"1,151.04",6 Five 2s
Nottinghamshire County Council,1111/1001,Children and Young People,CYP,Transport Related,CCA,23/06/2016,03-15890,"1,972.77",6 Five 2s
Nottinghamshire County Council,1111/1001,Children and Young People,CYP,Transport Related,CCA,23/06/2016,03-15891,"1,611.96",6 Five 2s
Nottinghamshire County Council,1111/1001,Children and Young People,CYP,Transport Related,CCA,23/06/2016,03-15892,"1,961.18",6 Five 2s
Nottinghamshire County Council,1111/1001,Children and Young People,CYP,Transport Related,CCA,23/06/2016,03-15893,"1,803.86",6 Five 2s
Nottinghamshire County Council,1111/1001,Children and Young People,CYP,Transport Related,CCA,23/06/2016,03-15894,"1,074.64",6 Five 2s
Nottinghamshire County Council,1111/1001,Children and Young People,CYP,Transport Related,CCA,23/06/2016,03-15895,"1,988.16",6 Five 2s
Nottinghamshire County Council,1111/1001,Children and Young People,CYP,Transport Related,CCA,23/06/2016,03-15896,798.76,6 Five 2s
Nottinghamshire County Council,1111/1001,Children and Young People,CYP,Transport Related,CCA,23/06/2016,03-15897,706.86,6 Five 2s
Nottinghamshire County Council,1111/1001,Children and Young People,CYP,Transport Related,CCA,23/06/2016,03-15907,"1,777.60",Ng11 Cars
Nottinghamshire County Council,1111/1001,Children and Young People,CYP,Transport Related,CCA,23/06/2016,03-15908,"1,483.00",Travel Wright Ltd
Nottinghamshire County Council,1111/1001,Children and Young People,CYP,Transport Related,CCA,23/06/2016,03-15909,"1,512.00",Ace Cars
Nottinghamshire County Council,1111/1001,Children and Young People,CYP,Transport Related,CCA,23/06/2016,03-15911,"1,817.60",Ace Cars
Nottinghamshire County Council,1111/1001,Children and Young People,CYP,Transport Related,CCA,23/06/2016,03-15912,"1,713.60",Ace Cars
Nottinghamshire County Council,1111/1001,Children and Young People,CYP,Transport Related,CCA,23/06/2016,03-15913,"2,352.00",Ace Cars
Nottinghamshire County Council,1111/1001,Children and Young People,CYP,Transport Related,CCA,23/06/2016,03-15915,"2,185.00",Eurocab 2000 Ltd
Nottinghamshire County Council,1111/1001,Children and Young People,CYP,Transport Related,CCA,24/06/2016,03-15899,"1,151.40",SJW (Muskham) Ltd T/A Z Cars
Nottinghamshire County Council,1111/1001,Children and Young People,CYP,Transport Related,CCA,24/06/2016,03-15901,896.4,SJW (Muskham) Ltd T/A Z Cars
Nottinghamshire County Council,1111/1001,Children and Young People,CYP,Transport Related,CCA,24/06/2016,03-15902,"1,378.65",SJW (Muskham) Ltd T/A Z Cars
Nottinghamshire County Council,1111/1001,Children and Young People,CYP,Transport Related,CCA,27/06/2016,03-16067,"1,790.82",F4Control Ltd (t/a First4care)
Nottinghamshire County Council,1111/1001,Children and Young People,CYP,Transport Related,CCA,27/06/2016,03-16068,888.8,Alpha Cars
Nottinghamshire County Council,1111/1001,Children and Young People,CYP,Transport Related,CCA,27/06/2016,03-16069,"2,040.00",Sprays Transport Ltd
Nottinghamshire County Council,1111/1001,Children and Young People,CYP,Transport Related,CCA,27/06/2016,03-16070,"2,400.07",BN Gibson Ltd
Nottinghamshire County Council,1111/1001,Children and Young People,CYP,Transport Related,CCA,27/06/2016,03-16071,"1,061.36",BN Gibson Ltd
Nottinghamshire County Council,1111/1001,Children and Young People,CYP,Transport Related,CCA,27/06/2016,03-16072,"1,980.20",BN Gibson Ltd
Nottinghamshire County Council,1111/1001,Children and Young People,CYP,Transport Related,CCA,27/06/2016,03-16073,"4,818.00",Freeway Coaches Ltd
Nottinghamshire County Council,1111/1001,Children and Young People,CYP,Transport Related,CCA,27/06/2016,03-16074,"1,948.00",Freeway Coaches Ltd
Nottinghamshire County Council,1111/1001,Children and Young People,CYP,Transport Related,CCA,27/06/2016,03-16075,"1,598.00",Freeway Coaches Ltd
Nottinghamshire County Council,1111/1001,Children and Young People,CYP,Transport Related,CCA,27/06/2016,03-16076,"3,838.00",Freeway Coaches Ltd
Nottinghamshire County Council,1111/1001,Children and Young People,CYP,Transport Related,CCA,27/06/2016,03-16077,"2,995.50",Freeway Coaches Ltd
Nottinghamshire County Council,1111/1001,Children and Young People,CYP,Transport Related,CCA,30/06/2016,03-17253,646,Alert Cars Ltd
Nottinghamshire County Council,1111/1001,Children and Young People,CYP,Transport Related,CCA,30/06/2016,03-17256,504.11,Diamond Cars
Nottinghamshire County Council,1111/1001,Children and Young People,CYP,Transport Related,CDA,03/06/2016,03-10320,264.27,Southside Cars
Nottinghamshire County Council,1111/1001,Children and Young People,CYP,Transport Related,CDA,03/06/2016,03-10335,353.5,Alpha Cars
Nottinghamshire County Council,1111/1001,Children and Young People,CYP,Transport Related,CDA,03/06/2016,03-10381,"1,308.60",Arrow Specialised Transport Ltd
Nottinghamshire County Council,1111/1001,Children and Young People,CYP,Transport Related,CDA,03/06/2016,03-10399,"1,385.67",Arrow Specialised Transport Ltd
Nottinghamshire County Council,1111/1001,Children and Young People,CYP,Transport Related,CDA,03/06/2016,03-10412,874,Fozcabs Newark Taxis
Nottinghamshire County Council,1111/1001,Children and Young People,CYP,Transport Related,CDA,03/06/2016,03-10416,449.61,Horizon Travel
Nottinghamshire County Council,1111/1001,Children and Young People,CYP,Transport Related,CDA,03/06/2016,03-10418,"3,427.60",AOT Coaches
Nottinghamshire County Council,1111/1001,Children and Young People,CYP,Transport Related,CDA,03/06/2016,03-10421,"1,546.60",AOT Coaches
Nottinghamshire County Council,1111/1001,Children and Young People,CYP,Transport Related,CDA,03/06/2016,03-10422,"2,090.00",AOT Coaches
Nottinghamshire County Council,1111/1001,Children and Young People,CYP,Transport Related,CDA,03/06/2016,03-10429,"2,660.00",Nottingham Minibuses & Coaches
Nottinghamshire County Council,1111/1001,Children and Young People,CYP,Transport Related,CDA,03/06/2016,03-10430,"2,470.00",Nottingham Minibuses & Coaches
Nottinghamshire County Council,1111/1001,Children and Young People,CYP,Transport Related,CDA,03/06/2016,03-10431,"1,805.00",Nottingham Minibuses & Coaches
Nottinghamshire County Council,1111/1001,Children and Young People,CYP,Transport Related,CDA,03/06/2016,03-10432,"2,686.60",Nottingham Minibuses & Coaches
Nottinghamshire County Council,1111/1001,Children and Young People,CYP,Transport Related,CDA,03/06/2016,03-10434,870.96,P & P Taxis
Nottinghamshire County Council,1111/1001,Children and Young People,CYP,Transport Related,CDA,03/06/2016,03-10436,"1,596.00",P & P Taxis
Nottinghamshire County Council,1111/1001,Children and Young People,CYP,Transport Related,CDA,03/06/2016,03-10455,940.5,Forest Cars
Nottinghamshire County Council,1111/1001,Children and Young People,CYP,Transport Related,CDA,03/06/2016,03-10492,266,Arrow Specialised Transport Ltd
Nottinghamshire County Council,1111/1001,Children and Young People,CYP,Transport Related,CDA,03/06/2016,03-10535,486.73,Bridges Transport Services
Nottinghamshire County Council,1111/1001,Children and Young People,CYP,Transport Related,CDA,03/06/2016,03-10594,"2,971.60",Nottingham Minibuses & Coaches
Nottinghamshire County Council,1111/1001,Children and Young People,CYP,Transport Related,CDA,03/06/2016,03-10595,"2,375.00",Nottingham Minibuses & Coaches
Nottinghamshire County Council,1111/1001,Children and Young People,CYP,Transport Related,CDA,03/06/2016,03-10597,"2,470.00",Nottingham Minibuses & Coaches
Nottinghamshire County Council,1111/1001,Children and Young People,CYP,Transport Related,CDA,03/06/2016,03-10599,"8,171.90",Nottingham Minibuses & Coaches
Nottinghamshire County Council,1111/1001,Children and Young People,CYP,Transport Related,CDA,06/06/2016,03-10672,"1,174.39",Galaxy Cabs
Nottinghamshire County Council,1111/1001,Children and Young People,CYP,Transport Related,CDA,06/06/2016,03-10692,230.28,Sprays Transport Ltd
Nottinghamshire County Council,1111/1001,Children and Young People,CYP,Transport Related,CDA,06/06/2016,03-10699,"2,693.05",Sprays Transport Ltd
Nottinghamshire County Council,1111/1001,Children and Young People,CYP,Transport Related,CDA,06/06/2016,03-10718,"1,319.55",Rio Cabs
Nottinghamshire County Council,1111/1001,Children and Young People,CYP,Transport Related,CDA,06/06/2016,03-10725,"1,425.00",Eurocab 2000 Ltd
Nottinghamshire County Council,1111/1001,Children and Young People,CYP,Transport Related,CDA,06/06/2016,03-10726,"1,045.00",Eurocab 2000 Ltd
Nottinghamshire County Council,1111/1001,Children and Young People,CYP,Transport Related,CDA,06/06/2016,03-10728,"1,020.00",Eurocab 2000 Ltd
Nottinghamshire County Council,1111/1001,Children and Young People,CYP,Transport Related,CDA,06/06/2016,03-10730,617.5,Eurocab 2000 Ltd
Nottinghamshire County Council,1111/1001,Children and Young People,CYP,Transport Related,CDA,06/06/2016,03-10732,"2,290.00",Eurocab 2000 Ltd
Nottinghamshire County Council,1111/1001,Children and Young People,CYP,Transport Related,CDA,08/06/2016,03-12053,"1,474.88",F4Control Ltd (t/a First4care)
Nottinghamshire County Council,1111/1001,Children and Young People,CYP,Transport Related,CDA,08/06/2016,03-12075,412.5,CBC Taxis Ltd
Nottinghamshire County Council,1111/1001,Children and Young People,CYP,Transport Related,CDA,08/06/2016,03-12084,"1,301.40",Ace Of Mansfield Ltd
Nottinghamshire County Council,1111/1001,Children and Young People,CYP,Transport Related,CDA,08/06/2016,03-12091,594,Ace Of Mansfield Ltd
Nottinghamshire County Council,1111/1001,Children and Young People,CYP,Transport Related,CDA,08/06/2016,03-12111,382.05,Nunns Cars
Nottinghamshire County Council,1111/1001,Children and Young People,CYP,Transport Related,CDA,08/06/2016,03-12114,882.4,Nunns Cars
Nottinghamshire County Council,1111/1001,Children and Young People,CYP,Transport Related,CDA,08/06/2016,03-12177,412.5,Nottingham Cars Ltd
Nottinghamshire County Council,1111/1001,Children and Young People,CYP,Transport Related,CDA,08/06/2016,03-12181,"3,505.00",Nottingham Cars Ltd
Nottinghamshire County Council,1111/1001,Children and Young People,CYP,Transport Related,CDA,13/06/2016,03-12269,"1,175.03",Central Cars Nottm Ltd
Nottinghamshire County Council,1111/1001,Children and Young People,CYP,Transport Related,CDA,13/06/2016,03-12284,"2,210.00",D G Private Hire Ltd
Nottinghamshire County Council,1111/1001,Children and Young People,CYP,Transport Related,CDA,13/06/2016,03-12290,909,D G Private Hire Ltd
Nottinghamshire County Council,1111/1001,Children and Young People,CYP,Transport Related,CDA,13/06/2016,03-12291,"1,565.98",D G Private Hire Ltd
Nottinghamshire County Council,1111/1001,Children and Young People,CYP,Transport Related,CDA,13/06/2016,03-12293,261,D G Private Hire Ltd
Nottinghamshire County Council,1111/1001,Children and Young People,CYP,Transport Related,CDA,13/06/2016,03-12295,"2,131.80",AOT Coaches
Nottinghamshire County Council,1111/1001,Children and Young People,CYP,Transport Related,CDA,14/06/2016,03-15017,950,Shelleys Taxis Ltd
Nottinghamshire County Council,1111/1001,Children and Young People,CYP,Transport Related,CDA,14/06/2016,03-15044,234.84,BN Gibson Ltd
Nottinghamshire County Council,1111/1001,Children and Young People,CYP,Transport Related,CDA,14/06/2016,03-15110,"3,500.64",Paul S Winson Coaches
Nottinghamshire County Council,1111/1001,Children and Young People,CYP,Transport Related,CDA,16/06/2016,03-15373,"6,046.56",Paul S Winson Coaches
Nottinghamshire County Council,1111/1001,Children and Young People,CYP,Transport Related,CDA,16/06/2016,03-15374,"21,902.80",Travel Wright Ltd
Nottinghamshire County Council,1111/1001,Children and Young People,CYP,Transport Related,CDA,16/06/2016,03-15376,"5,021.29",Travel Wright Ltd
Nottinghamshire County Council,1111/1001,Children and Young People,CYP,Transport Related,CDA,17/06/2016,03-15405,396,200 Cars Ltd
Nottinghamshire County Council,1111/1001,Children and Young People,CYP,Transport Related,CDA,17/06/2016,03-15407,"1,680.00",Ng11 Cars
Nottinghamshire County Council,1111/1001,Children and Young People,CYP,Transport Related,CDA,17/06/2016,03-15408,"3,040.00",Ng11 Cars
Nottinghamshire County Council,1111/1001,Children and Young People,CYP,Transport Related,CDA,17/06/2016,03-15418,886.38,Abacus Cars
Nottinghamshire County Council,1111/1001,Children and Young People,CYP,Supplies & Services,DAA,03/06/2016,03-17337,793.8,Intricon UK Ltd T/A PC Werth
Nottinghamshire County Council,1111/1001,Children and Young People,CYP,Supplies & Services,DBA,01/06/2016,03-10093,56.26,Brake Bros Ltd
Nottinghamshire County Council,1111/1001,Children and Young People,CYP,Supplies & Services,DBA,01/06/2016,03-10096,554.58,Brake Bros Ltd
Nottinghamshire County Council,1111/1001,Children and Young People,CYP,Supplies & Services,DBA,01/06/2016,03-10118,327.85,Brake Bros Ltd
Nottinghamshire County Council,1111/1001,Children and Young People,CYP,Supplies & Services,DBA,01/06/2016,03-10126,550.12,Brake Bros Ltd
Nottinghamshire County Council,1111/1001,Children and Young People,CYP,Supplies & Services,DBA,02/06/2016,03-10291,423.57,John Palin (Wholesale) Ltd
Nottinghamshire County Council,1111/1001,Children and Young People,CYP,Supplies & Services,DBA,02/06/2016,03-10295,183.78,John Palin (Wholesale) Ltd
Nottinghamshire County Council,1111/1001,Children and Young People,CYP,Supplies & Services,DBA,03/06/2016,03-10623,141.08,Brake Bros Ltd
Nottinghamshire County Council,1111/1001,Children and Young People,CYP,Supplies & Services,DBA,03/06/2016,03-10626,447.92,Brake Bros Ltd
Nottinghamshire County Council,1111/1001,Children and Young People,CYP,Supplies & Services,DBA,03/06/2016,03-10632,400.74,Brake Bros Ltd
Nottinghamshire County Council,1111/1001,Children and Young People,CYP,Supplies & Services,DBA,03/06/2016,03-10636,490.24,Brake Bros Ltd
Nottinghamshire County Council,1111/1001,Children and Young People,CYP,Supplies & Services,DBA,09/06/2016,03-12204,230.9,Brake Bros Ltd
Nottinghamshire County Council,1111/1001,Children and Young People,CYP,Supplies & Services,DBA,09/06/2016,03-12207,89.57,Brake Bros Ltd
Nottinghamshire County Council,1111/1001,Children and Young People,CYP,Supplies & Services,DBA,09/06/2016,03-12211,602.03,Brake Bros Ltd
Nottinghamshire County Council,1111/1001,Children and Young People,CYP,Supplies & Services,DBA,09/06/2016,03-12228,260.64,Brake Bros Ltd
Nottinghamshire County Council,1111/1001,Children and Young People,CYP,Supplies & Services,DBA,14/06/2016,03-15095,73.84,Brake Bros Ltd
Nottinghamshire County Council,1111/1001,Children and Young People,CYP,Supplies & Services,DBA,14/06/2016,03-15102,92.19,Brake Bros Ltd
Nottinghamshire County Council,1111/1001,Children and Young People,CYP,Supplies & Services,DBA,17/06/2016,03-15423,444.81,Brake Bros Ltd
Nottinghamshire County Council,1111/1001,Children and Young People,CYP,Supplies & Services,DBA,17/06/2016,03-15429,77.73,M Maloney Country Butchers & B Ltd
Nottinghamshire County Council,1111/1001,Children and Young People,CYP,Supplies & Services,DBA,17/06/2016,03-15433,139.45,M Maloney Country Butchers & B Ltd
Nottinghamshire County Council,1111/1001,Children and Young People,CYP,Supplies & Services,DBA,17/06/2016,03-15437,343.52,Brake Bros Ltd
Nottinghamshire County Council,1111/1001,Children and Young People,CYP,Supplies & Services,DBA,17/06/2016,03-15440,141.51,Brake Bros Ltd
Nottinghamshire County Council,1111/1001,Children and Young People,CYP,Supplies & Services,DBA,17/06/2016,03-15444,297.58,Brake Bros Ltd
Nottinghamshire County Council,1111/1001,Children and Young People,CYP,Supplies & Services,DBA,24/06/2016,03-16053,68.73,M Maloney Country Butchers & B Ltd
Nottinghamshire County Council,1111/1001,Children and Young People,CYP,Supplies & Services,DBA,29/06/2016,03-16327,662.43,Brake Bros Ltd
Nottinghamshire County Council,1111/1001,Children and Young People,CYP,Supplies & Services,DBA,29/06/2016,03-16329,236.25,Brake Bros Ltd
Nottinghamshire County Council,1111/1001,Children and Young People,CYP,Supplies & Services,DBA,29/06/2016,03-16332,589.72,Brake Bros Ltd
Nottinghamshire County Council,1111/1001,Children and Young People,CYP,Supplies & Services,DBA,29/06/2016,03-16335,785.81,Brake Bros Ltd
Nottinghamshire County Council,1111/1001,Children and Young People,CYP,Supplies & Services,DBA,29/06/2016,03-16341,251.01,M Maloney Country Butchers & B Ltd
Nottinghamshire County Council,1111/1001,Children and Young People,CYP,Supplies & Services,DBA,29/06/2016,03-16345,59.54,M Maloney Country Butchers & B Ltd
Nottinghamshire County Council,1111/1001,Children and Young People,CYP,Supplies & Services,DEA,01/06/2016,03-17373,506.75,[Redacted]
Nottinghamshire County Council,1111/1001,Children and Young People,CYP,Supplies & Services,DEA,02/06/2016,03-17316,"2,745.05",Independent Business Services Ltd
Nottinghamshire County Council,1111/1001,Children and Young People,CYP,Supplies & Services,DEA,03/06/2016,03-17330,500,Julia Fletcher Literacy Support
Nottinghamshire County Council,1111/1001,Children and Young People,CYP,Supplies & Services,DFA,01/06/2016,03-10106,"1,478.97",Adept Telecom
Nottinghamshire County Council,1111/1001,Children and Young People,CYP,Supplies & Services,DFA,02/06/2016,03-10290,567.68,Lantec Services Ltd
Nottinghamshire County Council,1111/1001,Children and Young People,CYP,Supplies & Services,DFA,07/06/2016,03-11697,595.77,Lantec Services Ltd
Nottinghamshire County Council,1111/1001,Children and Young People,CYP,Supplies & Services,DHA,17/06/2016,03-15392,"9,019.00",Hornes Construction Ltd
Nottinghamshire County Council,1111/1001,Children and Young People,CYP,Supplies & Services,DHA,22/06/2016,03-15866,"5,540.00",Berwick Building Ltd
Nottinghamshire County Council,1111/1001,Children and Young People,CYP,Supplies & Services,DKA,24/06/2016,03-16048,"1,120.00",First Class Tailored Solutions Ltd
Nottinghamshire County Council,1111/1001,Children and Young People,CYP,Supplies & Services,DKA,30/06/2016,03-17250,"26,251.88",Sutton Bonington Primary School
Nottinghamshire County Council,1111/1001,Children and Young People,CYP,Third Party Payments,EBA,01/06/2016,03-17384,"58,822.38",NCHA Ltd
Nottinghamshire County Council,1111/1001,Children and Young People,CYP,Third Party Payments,EBA,02/06/2016,03-17346,"58,212.00",Gedling Borough Council
Nottinghamshire County Council,1111/1001,Children and Young People,CYP,Third Party Payments,EBA,09/06/2016,03-17395,"1,308.60",Friesland School
Nottinghamshire County Council,1111/1001,Children and Young People,CYP,Third Party Payments,EBA,10/06/2016,03-12234,"87,263.61","Culture, Learning & Libraries (Midl"
Nottinghamshire County Council,1111/1001,Children and Young People,CYP,Third Party Payments,EBA,22/06/2016,03-17416,"1,015.63",Mayflower Specialist School Academy
Nottinghamshire County Council,1111/1001,Children and Young People,CYP,Third Party Payments,EBA,28/06/2016,03-15916,"42,744.00",Transform Schools
Nottinghamshire County Council,1111/1001,Children and Young People,CYP,Third Party Payments,EBA,28/06/2016,03-15923,"2,613.40",Transform Schools
Nottinghamshire County Council,1111/1001,Children and Young People,CYP,Third Party Payments,EBA,28/06/2016,03-15924,"1,778.90",Transform Schools
Nottinghamshire County Council,1111/1001,Children and Young People,CYP,Third Party Payments,EBA,28/06/2016,03-15925,"22,042.90",Transform Schools
Nottinghamshire County Council,1111/1001,Children and Young People,CYP,Third Party Payments,EBA,28/06/2016,03-15926,"17,641.79",Transform Schools
Nottinghamshire County Council,1111/1001,Children and Young People,CYP,Third Party Payments,EBA,28/06/2016,03-15928,"78,886.28",Transform Schools
Nottinghamshire County Council,1111/1001,Children and Young People,CYP,Third Party Payments,EBA,28/06/2016,03-15929,"10,230.80",East Leake Schools Ltd
Nottinghamshire County Council,1111/1001,Children and Young People,CYP,Third Party Payments,EBA,28/06/2016,03-16049,"1,483,212.36",Transform Schools
Nottinghamshire County Council,1111/1001,Children and Young People,CYP,Third Party Payments,EBA,28/06/2016,03-16051,"248,229.67",East Leake Schools Ltd
Nottinghamshire County Council,1111/1001,Children and Young People,CYP,Third Party Payments,EDA,01/06/2016,03-10078,"1,440.00",St Patricks Catholic Primary
Nottinghamshire County Council,1111/1001,Children and Young People,CYP,Third Party Payments,EDA,01/06/2016,03-10079,"20,380.00",George Spencer Academy
Nottinghamshire County Council,1111/1001,Children and Young People,CYP,Third Party Payments,EDA,03/06/2016,03-10059,"36,199.00",The South Wolds Academy & Sixth For
Nottinghamshire County Council,1111/1001,Children and Young People,CYP,Third Party Payments,EDA,08/06/2016,03-12045,"66,081.25",The Beech Academy
Nottinghamshire County Council,1111/1001,Children and Young People,CYP,Third Party Payments,EDA,08/06/2016,03-12046,"16,666.67",The Beech Academy
Nottinghamshire County Council,1111/1001,Children and Young People,CYP,Third Party Payments,EDA,08/06/2016,03-12047,"4,166.67",The Beech Academy
Nottinghamshire County Council,1111/1001,Children and Young People,CYP,Third Party Payments,EDA,08/06/2016,03-12048,"74,281.25",Foxwood Academy
Nottinghamshire County Council,1111/1001,Children and Young People,CYP,Third Party Payments,EDA,13/06/2016,03-12310,"13,416.00",The Bramble Academy
Nottinghamshire County Council,1111/1001,Children and Young People,CYP,Third Party Payments,EDA,14/06/2016,03-15234,"41,069.00",Barnby Road Academy Prim & Nursery
Nottinghamshire County Council,1111/1001,Children and Young People,CYP,Third Party Payments,EDA,15/06/2016,03-15252,585,The Carlton Academy
Nottinghamshire County Council,1111/1001,Children and Young People,CYP,Third Party Payments,EDA,15/06/2016,03-15253,"1,170.00",Queen Elizabeth's Academy
Nottinghamshire County Council,1111/1001,Children and Young People,CYP,Third Party Payments,EFA,02/06/2016,03-17324,"9,944.00",Derby College
Nottinghamshire County Council,1111/1001,Children and Young People,CYP,Third Party Payments,EFA,02/06/2016,03-17394,500,Hill Holt Wood
Nottinghamshire County Council,1111/1001,Children and Young People,CYP,Third Party Payments,EGA,01/06/2016,03-17338,"34,595.84",Fusion Fostering
Nottinghamshire County Council,1111/1001,Children and Young People,CYP,Third Party Payments,EGA,01/06/2016,03-17390,"107,514.00",Pathway Care Solutions II Ltd
Nottinghamshire County Council,1111/1001,Children and Young People,CYP,Third Party Payments,EGA,02/06/2016,03-17358,"1,200.63","Stonham Housing, Home Group"
Nottinghamshire County Council,1111/1001,Children and Young People,CYP,Third Party Payments,EGA,06/06/2016,03-17397,"903,407.67",Nottinghamshire Healthcare Nhs F Tr
Nottinghamshire County Council,1111/1001,Children and Young People,CYP,Third Party Payments,EGA,06/06/2016,03-17399,"34,618.42","Culture, Learning & Libraries (Midl"
Nottinghamshire County Council,1111/1001,Children and Young People,CYP,Third Party Payments,EGA,07/06/2016,03-11701,"22,336.81",Oceans Day Nursery
Nottinghamshire County Council,1111/1001,Children and Young People,CYP,Third Party Payments,EGA,07/06/2016,03-11702,"2,028.84",Old Cooperative Day Nursery
Nottinghamshire County Council,1111/1001,Children and Young People,CYP,Third Party Payments,EGA,07/06/2016,03-11703,"21,556.84",The Orchard Day Nursery
Nottinghamshire County Council,1111/1001,Children and Young People,CYP,Third Party Payments,EGA,07/06/2016,03-11704,"2,043.60",Orchard School Nursery
Nottinghamshire County Council,1111/1001,Children and Young People,CYP,Third Party Payments,EGA,07/06/2016,03-11705,"10,973.49",Papermoon Day Nursery
Nottinghamshire County Council,1111/1001,Children and Young People,CYP,Third Party Payments,EGA,07/06/2016,03-11706,"22,627.36",Papermoon Day Nursery
Nottinghamshire County Council,1111/1001,Children and Young People,CYP,Third Party Payments,EGA,07/06/2016,03-11707,"14,254.56",Papermoon Day Nursery
Nottinghamshire County Council,1111/1001,Children and Young People,CYP,Third Party Payments,EGA,07/06/2016,03-11708,"42,659.57",Papermoon Day Nursery Sutton In Ash
Nottinghamshire County Council,1111/1001,Children and Young People,CYP,Third Party Payments,EGA,07/06/2016,03-11709,"2,255.02",Paper Moon Nurseries
Nottinghamshire County Council,1111/1001,Children and Young People,CYP,Third Party Payments,EGA,07/06/2016,03-11710,"9,477.00",Papplewick Pre-School Playgroup
Nottinghamshire County Council,1111/1001,Children and Young People,CYP,Third Party Payments,EGA,07/06/2016,03-11711,531.76,[Redacted]
Nottinghamshire County Council,1111/1001,Children and Young People,CYP,Third Party Payments,EGA,07/06/2016,03-11712,"2,106.00",Pea Pod Day Nursery Ltd
Nottinghamshire County Council,1111/1001,Children and Young People,CYP,Third Party Payments,EGA,07/06/2016,03-11713,"2,488.59",Phoenix Farm Pre School
Nottinghamshire County Council,1111/1001,Children and Young People,CYP,Third Party Payments,EGA,07/06/2016,03-11714,"5,381.02",Phoenix Park Nursery
Nottinghamshire County Council,1111/1001,Children and Young People,CYP,Third Party Payments,EGA,07/06/2016,03-11715,829.53,[Redacted]
Nottinghamshire County Council,1111/1001,Children and Young People,CYP,Third Party Payments,EGA,07/06/2016,03-11716,"9,892.22",Radcliffe On Trent Day Nursery
Nottinghamshire County Council,1111/1001,Children and Young People,CYP,Third Party Payments,EGA,07/06/2016,03-11717,"6,329.54",Radcliffe On Trent Pre School Playg
Nottinghamshire County Council,1111/1001,Children and Young People,CYP,Third Party Payments,EGA,07/06/2016,03-11718,"5,464.62",Ordsall Pre-School
Nottinghamshire County Council,1111/1001,Children and Young People,CYP,Third Party Payments,EGA,07/06/2016,03-11719,660,Pump Farm Day Nursery
Nottinghamshire County Council,1111/1001,Children and Young People,CYP,Third Party Payments,EGA,07/06/2016,03-11720,"1,968.00",Lyndsay's Childminding
Nottinghamshire County Council,1111/1001,Children and Young People,CYP,Third Party Payments,EGA,07/06/2016,03-11721,"6,231.63",Railway Children Playgroup
Nottinghamshire County Council,1111/1001,Children and Young People,CYP,Third Party Payments,EGA,07/06/2016,03-11722,"7,794.36",Rainbow Day Nursery
Nottinghamshire County Council,1111/1001,Children and Young People,CYP,Third Party Payments,EGA,07/06/2016,03-11723,"3,868.33",Rainbow Day Nursery
Nottinghamshire County Council,1111/1001,Children and Young People,CYP,Third Party Payments,EGA,07/06/2016,03-11724,"10,356.05",Rainbows Day Nursery
Nottinghamshire County Council,1111/1001,Children and Young People,CYP,Third Party Payments,EGA,07/06/2016,03-11725,"7,977.56",Ranskill Nursery
Nottinghamshire County Council,1111/1001,Children and Young People,CYP,Third Party Payments,EGA,07/06/2016,03-11726,"14,690.00",Ravenshead Pre-School Playgroup
Nottinghamshire County Council,1111/1001,Children and Young People,CYP,Third Party Payments,EGA,07/06/2016,03-11727,608.4,[Redacted]
Nottinghamshire County Council,1111/1001,Children and Young People,CYP,Third Party Payments,EGA,07/06/2016,03-11728,"1,233.76",[Redacted]
Nottinghamshire County Council,1111/1001,Children and Young People,CYP,Third Party Payments,EGA,07/06/2016,03-11729,"30,045.06",The Rocking Horse Child Care Centre
Nottinghamshire County Council,1111/1001,Children and Young People,CYP,Third Party Payments,EGA,07/06/2016,03-11730,"13,055.33",Rocking Horse Nursery Butlers Hill
Nottinghamshire County Council,1111/1001,Children and Young People,CYP,Third Party Payments,EGA,07/06/2016,03-11731,"7,482.94",Ruddington Nursery & Pre-School
Nottinghamshire County Council,1111/1001,Children and Young People,CYP,Third Party Payments,EGA,07/06/2016,03-11732,"4,765.41",Rushcliffe Pre-School (Nottingham)
Nottinghamshire County Council,1111/1001,Children and Young People,CYP,Third Party Payments,EGA,07/06/2016,03-11733,"4,880.91",Rushcliffe Pre-School (Nottingham)
Nottinghamshire County Council,1111/1001,Children and Young People,CYP,Third Party Payments,EGA,07/06/2016,03-11734,"16,798.46",Safe Haven Day Nursery
Nottinghamshire County Council,1111/1001,Children and Young People,CYP,Third Party Payments,EGA,07/06/2016,03-11735,"7,656.00",Salterford House School
Nottinghamshire County Council,1111/1001,Children and Young People,CYP,Third Party Payments,EGA,07/06/2016,03-11736,"3,052.62",Saville House School
Nottinghamshire County Council,1111/1001,Children and Young People,CYP,Third Party Payments,EGA,07/06/2016,03-11737,"14,227.20",Sconce Hills Pre-School Playgroup
Nottinghamshire County Council,1111/1001,Children and Young People,CYP,Third Party Payments,EGA,07/06/2016,03-11738,"2,020.39",Yew Tree Childcare
Nottinghamshire County Council,1111/1001,Children and Young People,CYP,Third Party Payments,EGA,07/06/2016,03-11739,"5,698.76",Smarties Private Day Nursery
Nottinghamshire County Council,1111/1001,Children and Young People,CYP,Third Party Payments,EGA,07/06/2016,03-11740,"2,661.64",Southfields Pre-School
Nottinghamshire County Council,1111/1001,Children and Young People,CYP,Third Party Payments,EGA,07/06/2016,03-11741,"7,384.00",Southwell Pre-School
Nottinghamshire County Council,1111/1001,Children and Young People,CYP,Third Party Payments,EGA,07/06/2016,03-11742,"5,283.13",Sparkle Daycare
Nottinghamshire County Council,1111/1001,Children and Young People,CYP,Third Party Payments,EGA,07/06/2016,03-11743,"2,452.01",Speckled Frogs Pre-School
Nottinghamshire County Council,1111/1001,Children and Young People,CYP,Third Party Payments,EGA,07/06/2016,03-11744,"5,574.66",St Giles Pre-school
Nottinghamshire County Council,1111/1001,Children and Young People,CYP,Third Party Payments,EGA,07/06/2016,03-11745,"11,925.22",St Mary's Pre-School
Nottinghamshire County Council,1111/1001,Children and Young People,CYP,Third Party Payments,EGA,07/06/2016,03-11746,"16,924.13",Stapleford Day Nursery
Nottinghamshire County Council,1111/1001,Children and Young People,CYP,Third Party Payments,EGA,07/06/2016,03-11747,"7,089.41",Staunton Montessori Nursery School
Nottinghamshire County Council,1111/1001,Children and Young People,CYP,Third Party Payments,EGA,07/06/2016,03-11748,627,[Redacted]
Nottinghamshire County Council,1111/1001,Children and Young People,CYP,Third Party Payments,EGA,07/06/2016,03-11749,674.7,Tracey Streeter Childminding Servic
Nottinghamshire County Council,1111/1001,Children and Young People,CYP,Third Party Payments,EGA,07/06/2016,03-11750,"1,460.55",Sunbeams Pre-School
Nottinghamshire County Council,1111/1001,Children and Young People,CYP,Third Party Payments,EGA,07/06/2016,03-11751,"2,356.80",Sutton Bonington Playgroup
Nottinghamshire County Council,1111/1001,Children and Young People,CYP,Third Party Payments,EGA,07/06/2016,03-11752,"7,431.84",The Lime Trees
Nottinghamshire County Council,1111/1001,Children and Young People,CYP,Third Party Payments,EGA,07/06/2016,03-11753,"9,301.76",The Lime Trees
Nottinghamshire County Council,1111/1001,Children and Young People,CYP,Third Party Payments,EGA,07/06/2016,03-11754,"13,237.30",The Orange Tree Day Nursery
Nottinghamshire County Council,1111/1001,Children and Young People,CYP,Third Party Payments,EGA,07/06/2016,03-11755,"10,802.87",The Secret Garden Private Day Nurse
Nottinghamshire County Council,1111/1001,Children and Young People,CYP,Third Party Payments,EGA,07/06/2016,03-11756,"20,884.40",Tiny World Mansfield
Nottinghamshire County Council,1111/1001,Children and Young People,CYP,Third Party Payments,EGA,07/06/2016,03-11757,"3,709.13",The West Bridgford Day Nursery
Nottinghamshire County Council,1111/1001,Children and Young People,CYP,Third Party Payments,EGA,07/06/2016,03-11758,"3,526.30",Wolds Childcare Ltd
Nottinghamshire County Council,1111/1001,Children and Young People,CYP,Third Party Payments,EGA,07/06/2016,03-11759,"6,238.76",Tiny Talkers Day Nursery
Nottinghamshire County Council,1111/1001,Children and Young People,CYP,Third Party Payments,EGA,07/06/2016,03-11760,"7,240.54",Tiny Teddies Day Nursery
Nottinghamshire County Council,1111/1001,Children and Young People,CYP,Third Party Payments,EGA,07/06/2016,03-11761,921.76,Tiny Teddies @ Roko
Nottinghamshire County Council,1111/1001,Children and Young People,CYP,Third Party Payments,EGA,07/06/2016,03-11762,"4,809.92",Tiny Tots Playgroup
Nottinghamshire County Council,1111/1001,Children and Young People,CYP,Third Party Payments,EGA,07/06/2016,03-11763,"7,502.82",Toddlers University (Bee)
Nottinghamshire County Council,1111/1001,Children and Young People,CYP,Third Party Payments,EGA,07/06/2016,03-11764,"8,807.56",Tollerton Playgroup
Nottinghamshire County Council,1111/1001,Children and Young People,CYP,Third Party Payments,EGA,07/06/2016,03-11765,"2,570.88",Toton Tots Pre-School
Nottinghamshire County Council,1111/1001,Children and Young People,CYP,Third Party Payments,EGA,07/06/2016,03-11766,"1,367.21",[Redacted]
Nottinghamshire County Council,1111/1001,Children and Young People,CYP,Third Party Payments,EGA,07/06/2016,03-11767,"8,528.16",Townrow Tiny Tots Ltd
Nottinghamshire County Council,1111/1001,Children and Young People,CYP,Third Party Payments,EGA,07/06/2016,03-11768,"3,776.53",Townrow Tiny Tots Ltd
Nottinghamshire County Council,1111/1001,Children and Young People,CYP,Third Party Payments,EGA,07/06/2016,03-11769,"9,701.40",Sutton Centre Under 5'S Playgroup
Nottinghamshire County Council,1111/1001,Children and Young People,CYP,Third Party Payments,EGA,07/06/2016,03-11770,"7,761.29",Wellin Lane Playgroup
Nottinghamshire County Council,1111/1001,Children and Young People,CYP,Third Party Payments,EGA,07/06/2016,03-11771,"5,972.71",The Enchanted Garden Day Nursery
Nottinghamshire County Council,1111/1001,Children and Young People,CYP,Third Party Payments,EGA,07/06/2016,03-11772,"13,867.76",Grosvenor House Day Nursery
Nottinghamshire County Council,1111/1001,Children and Young People,CYP,Third Party Payments,EGA,07/06/2016,03-11773,"22,775.20",The Learning Tree Nursery
Nottinghamshire County Council,1111/1001,Children and Young People,CYP,Third Party Payments,EGA,07/06/2016,03-11774,"19,016.73",The Learning Tree Day Nursery 2
Nottinghamshire County Council,1111/1001,Children and Young People,CYP,Third Party Payments,EGA,07/06/2016,03-11775,"7,080.84",The Lime Trees
Nottinghamshire County Council,1111/1001,Children and Young People,CYP,Third Party Payments,EGA,07/06/2016,03-11776,"5,459.40",Thrumpton Kids Clubs
Nottinghamshire County Council,1111/1001,Children and Young People,CYP,Third Party Payments,EGA,07/06/2016,03-11777,"2,901.30",Townrow Tiny Tots Ltd
Nottinghamshire County Council,1111/1001,Children and Young People,CYP,Third Party Payments,EGA,07/06/2016,03-11778,"11,916.05",Treetops Nursery
Nottinghamshire County Council,1111/1001,Children and Young People,CYP,Third Party Payments,EGA,07/06/2016,03-11779,"15,313.63",Treetops Nursery (Clipstone)
Nottinghamshire County Council,1111/1001,Children and Young People,CYP,Third Party Payments,EGA,07/06/2016,03-11780,"3,912.00",Trowell Pre School
Nottinghamshire County Council,1111/1001,Children and Young People,CYP,Third Party Payments,EGA,07/06/2016,03-11781,"1,338.28",Kylees Childmining Services
Nottinghamshire County Council,1111/1001,Children and Young People,CYP,Third Party Payments,EGA,07/06/2016,03-11782,"3,701.86",Upton Crickets Day Nursery
Nottinghamshire County Council,1111/1001,Children and Young People,CYP,Third Party Payments,EGA,07/06/2016,03-11783,"21,815.04",Village Day Nursery
Nottinghamshire County Council,1111/1001,Children and Young People,CYP,Third Party Payments,EGA,07/06/2016,03-11784,"8,255.83",Walesby School Playgroup
Nottinghamshire County Council,1111/1001,Children and Young People,CYP,Third Party Payments,EGA,07/06/2016,03-11785,4954.51,Watnall Pre-School Playgroup
Nottinghamshire County Council,1111/1001,Children and Young People,CYP,Third Party Payments,EGA,07/06/2016,03-11786,12156.78,Weaverthorpe Pre-School Playgroup
Nottinghamshire County Council,1111/1001,Children and Young People,CYP,Third Party Payments,EGA,07/06/2016,03-11787,15408,Wellow House School
Nottinghamshire County Council,1111/1001,Children and Young People,CYP,Third Party Payments,EGA,07/06/2016,03-11788,6294.4,West Bridgford Out Of School Care L
Nottinghamshire County Council,1111/1001,Children and Young People,CYP,Third Party Payments,EGA,07/06/2016,03-11789,4733.13,West Street Pre-School
Nottinghamshire County Council,1111/1001,Children and Young People,CYP,Third Party Payments,EGA,07/06/2016,03-11790,13749.9,Westbourne House Nursery School
Nottinghamshire County Council,1111/1001,Children and Young People,CYP,Third Party Payments,EGA,07/06/2016,03-11791,13799.8,Westdale Pre-School
Nottinghamshire County Council,1111/1001,Children and Young People,CYP,Third Party Payments,EGA,07/06/2016,03-11792,782.57,Z Whitaker (Active Childminding)
Nottinghamshire County Council,1111/1001,Children and Young People,CYP,Third Party Payments,EGA,07/06/2016,03-11793,14447.74,Whitehouse Day Nursery
Nottinghamshire County Council,1111/1001,Children and Young People,CYP,Third Party Payments,EGA,07/06/2016,03-11794,748.8,Sues Childminding Services
Nottinghamshire County Council,1111/1001,Children and Young People,CYP,Third Party Payments,EGA,07/06/2016,03-11795,16666.65,Mulberry Bush Day Nursery
Nottinghamshire County Council,1111/1001,Children and Young People,CYP,Third Party Payments,EGA,07/06/2016,03-11796,780,J Wilks (Childminder)
Nottinghamshire County Council,1111/1001,Children and Young People,CYP,Third Party Payments,EGA,07/06/2016,03-11797,2051.4,Willoughby On The Wolds Playgroup
Nottinghamshire County Council,1111/1001,Children and Young People,CYP,Third Party Payments,EGA,07/06/2016,03-11798,3896.81,Willow Brook Pre-School
Nottinghamshire County Council,1111/1001,Children and Young People,CYP,Third Party Payments,EGA,07/06/2016,03-11799,11932.5,Willow Pre-School Playgroup
Nottinghamshire County Council,1111/1001,Children and Young People,CYP,Third Party Payments,EGA,07/06/2016,03-11800,999.76,Jammie Dodgers Childminding Group
Nottinghamshire County Council,1111/1001,Children and Young People,CYP,Third Party Payments,EGA,07/06/2016,03-11801,5637.85,Windmill Kindergarten Playgroup
Nottinghamshire County Council,1111/1001,Children and Young People,CYP,Third Party Payments,EGA,07/06/2016,03-11802,5503.35,Windmills Pre-School Playgroup
Nottinghamshire County Council,1111/1001,Children and Young People,CYP,Third Party Payments,EGA,07/06/2016,03-11803,9261.13,Wishing Well Day Nursery
Nottinghamshire County Council,1111/1001,Children and Young People,CYP,Third Party Payments,EGA,07/06/2016,03-11804,595.53,Wolds Day Nursery @ Stragglethorpe
Nottinghamshire County Council,1111/1001,Children and Young People,CYP,Third Party Payments,EGA,07/06/2016,03-11805,7922.46,Wollaton Village Day Nurseries
Nottinghamshire County Council,1111/1001,Children and Young People,CYP,Third Party Payments,EGA,07/06/2016,03-11806,20264.48,Wollaton Village Day Nurseries Ltd.
Nottinghamshire County Council,1111/1001,Children and Young People,CYP,Third Party Payments,EGA,07/06/2016,03-11807,8979.25,Woodborough Village Pre School
Nottinghamshire County Council,1111/1001,Children and Young People,CYP,Third Party Payments,EGA,07/06/2016,03-11808,20540.12,Woodthorpe Day Nursery Ltd
Nottinghamshire County Council,1111/1001,Children and Young People,CYP,Third Party Payments,EGA,07/06/2016,03-11809,6120,Worksop College
Nottinghamshire County Council,1111/1001,Children and Young People,CYP,Third Party Payments,EGA,07/06/2016,03-11810,17414.01,Young Rascals Day Nursery
Nottinghamshire County Council,1111/1001,Children and Young People,CYP,Third Party Payments,EGA,07/06/2016,03-11811,898.44,[Redacted]
Nottinghamshire County Council,1111/1001,Children and Young People,CYP,Third Party Payments,EGA,07/06/2016,03-11812,9868.39,Zoe's Childcare Ltd
Nottinghamshire County Council,1111/1001,Children and Young People,CYP,Third Party Payments,EGA,07/06/2016,03-11813,6680.62,Zoes Childcare Ltd
Nottinghamshire County Council,1111/1001,Children and Young People,CYP,Third Party Payments,EGA,07/06/2016,03-11814,7566.23,Kingfisher Day Nursery
Nottinghamshire County Council,1111/1001,Children and Young People,CYP,Third Party Payments,EGA,07/06/2016,03-11815,595.53,[Redacted]
Nottinghamshire County Council,1111/1001,Children and Young People,CYP,Third Party Payments,EGA,07/06/2016,03-11816,25846.75,Lady Bay Pre School Playgroup
Nottinghamshire County Council,1111/1001,Children and Young People,CYP,Third Party Payments,EGA,07/06/2016,03-11817,6581.79,Lambley Day Nursery Ltd
Nottinghamshire County Council,1111/1001,Children and Young People,CYP,Third Party Payments,EGA,07/06/2016,03-11818,9297.29,Leahurst Road Pre-School
Nottinghamshire County Council,1111/1001,Children and Young People,CYP,Third Party Payments,EGA,07/06/2016,03-11819,3438.93,Learning Ladder Childcare Ltd
Nottinghamshire County Council,1111/1001,Children and Young People,CYP,Third Party Payments,EGA,07/06/2016,03-11820,24996.06,Leen Mills Pre School Playgroup
Nottinghamshire County Council,1111/1001,Children and Young People,CYP,Third Party Payments,EGA,07/06/2016,03-11821,19904.42,Leos Childrens Nurseries Ltd
Nottinghamshire County Council,1111/1001,Children and Young People,CYP,Third Party Payments,EGA,07/06/2016,03-11822,11371.02,Leo's Childrens Nurseries Ltd
Nottinghamshire County Council,1111/1001,Children and Young People,CYP,Third Party Payments,EGA,07/06/2016,03-11823,4334.66,North Leverton Pre-School Playgroup
Nottinghamshire County Council,1111/1001,Children and Young People,CYP,Third Party Payments,EGA,07/06/2016,03-11824,6220.32,Little Acorns Shireoaks
Nottinghamshire County Council,1111/1001,Children and Young People,CYP,Third Party Payments,EGA,07/06/2016,03-11825,10330.35,Little Acorns Pre-School
Nottinghamshire County Council,1111/1001,Children and Young People,CYP,Third Party Payments,EGA,07/06/2016,03-11826,3751.6,Little Beans Childcare Ltd
Nottinghamshire County Council,1111/1001,Children and Young People,CYP,Third Party Payments,EGA,07/06/2016,03-11827,26084.82,Little Bears Day Nursery
Nottinghamshire County Council,1111/1001,Children and Young People,CYP,Third Party Payments,EGA,07/06/2016,03-11828,5809.56,Little Friends Day Nursery
Nottinghamshire County Council,1111/1001,Children and Young People,CYP,Third Party Payments,EGA,07/06/2016,03-11829,6321.05,Little Kites Playgroup
Nottinghamshire County Council,1111/1001,Children and Young People,CYP,Third Party Payments,EGA,07/06/2016,03-11830,16742.5,Little Millers Day Nursery
Nottinghamshire County Council,1111/1001,Children and Young People,CYP,Third Party Payments,EGA,07/06/2016,03-11831,9974.96,Little Nippers Pre-School
Nottinghamshire County Council,1111/1001,Children and Young People,CYP,Third Party Payments,EGA,07/06/2016,03-11832,14414.16,Little Oaks Nursery
Nottinghamshire County Council,1111/1001,Children and Young People,CYP,Third Party Payments,EGA,07/06/2016,03-11833,2030.91,Keyworth Primary School
Nottinghamshire County Council,1111/1001,Children and Young People,CYP,Third Party Payments,EGA,07/06/2016,03-11834,6308.89,Longdale Nursery School
Nottinghamshire County Council,1111/1001,Children and Young People,CYP,Third Party Payments,EGA,07/06/2016,03-11835,6605.7,Lowater Street Playgroup
Nottinghamshire County Council,1111/1001,Children and Young People,CYP,Third Party Payments,EGA,07/06/2016,03-11836,9337.96,Lowdham & Epperstone Pre-School
Nottinghamshire County Council,1111/1001,Children and Young People,CYP,Third Party Payments,EGA,07/06/2016,03-11837,6943.27,Luan's Little People
Nottinghamshire County Council,1111/1001,Children and Young People,CYP,Third Party Payments,EGA,07/06/2016,03-11838,1038.36,Lisa's Little Angels
Nottinghamshire County Council,1111/1001,Children and Young People,CYP,Third Party Payments,EGA,07/06/2016,03-11839,503.91,J M Mayfield (Childminder)
Nottinghamshire County Council,1111/1001,Children and Young People,CYP,Third Party Payments,EGA,07/06/2016,03-11840,3364.95,Misson Pre-School
Nottinghamshire County Council,1111/1001,Children and Young People,CYP,Third Party Payments,EGA,07/06/2016,03-11841,1664.73,Millgate Pre School
Nottinghamshire County Council,1111/1001,Children and Young People,CYP,Third Party Payments,EGA,07/06/2016,03-11842,9008.21,Millfield Nursery School
Nottinghamshire County Council,1111/1001,Children and Young People,CYP,Third Party Payments,EGA,07/06/2016,03-11843,561.6,[Redacted]
Nottinghamshire County Council,1111/1001,Children and Young People,CYP,Third Party Payments,EGA,07/06/2016,03-11844,634.53,[Redacted]
Nottinghamshire County Council,1111/1001,Children and Young People,CYP,Third Party Payments,EGA,07/06/2016,03-11845,1772.55,[Redacted]
Nottinghamshire County Council,1111/1001,Children and Young People,CYP,Third Party Payments,EGA,07/06/2016,03-11846,6828.33,Netherfield Pre School Ltd
Nottinghamshire County Council,1111/1001,Children and Young People,CYP,Third Party Payments,EGA,07/06/2016,03-11847,5183.86,Noahs Ark Playgroup
Nottinghamshire County Council,1111/1001,Children and Young People,CYP,Third Party Payments,EGA,07/06/2016,03-11848,2361.39,North Muskham Playgroup
Nottinghamshire County Council,1111/1001,Children and Young People,CYP,Third Party Payments,EGA,07/06/2016,03-11849,7544.35,Nurseryworld & Friends Nursery & Pr
Nottinghamshire County Council,1111/1001,Children and Young People,CYP,Third Party Payments,EGA,07/06/2016,03-11850,829.53,Happy Munchkin Childcare
Nottinghamshire County Council,1111/1001,Children and Young People,CYP,Third Party Payments,EGA,07/06/2016,03-11851,3963,Pippins Pre-School
Nottinghamshire County Council,1111/1001,Children and Young People,CYP,Third Party Payments,EGA,07/06/2016,03-11852,4279.2,Plumtree School
Nottinghamshire County Council,1111/1001,Children and Young People,CYP,Third Party Payments,EGA,07/06/2016,03-11853,6283.35,Happy Times
Nottinghamshire County Council,1111/1001,Children and Young People,CYP,Third Party Payments,EGA,07/06/2016,03-11854,6991.21,Portland Place Pre-School
Nottinghamshire County Council,1111/1001,Children and Young People,CYP,Third Party Payments,EGA,07/06/2016,03-11855,12403.11,Pre-School 345
Nottinghamshire County Council,1111/1001,Children and Young People,CYP,Third Party Payments,EGA,07/06/2016,03-11856,10137.33,Puddleducks Pre-School
Nottinghamshire County Council,1111/1001,Children and Young People,CYP,Third Party Payments,EGA,07/06/2016,03-11857,2955.03,Pump Farm Day Nursery
Nottinghamshire County Council,1111/1001,Children and Young People,CYP,Third Party Payments,EGA,07/06/2016,03-11858,8255.02,Scottswood Pdn Ltd
Nottinghamshire County Council,1111/1001,Children and Young People,CYP,Third Party Payments,EGA,07/06/2016,03-11859,6309.76,Scotts Wood Private Day Nursery
Nottinghamshire County Council,1111/1001,Children and Young People,CYP,Third Party Payments,EGA,07/06/2016,03-11860,10030.74,Serendipity's Day Nursery
Nottinghamshire County Council,1111/1001,Children and Young People,CYP,Third Party Payments,EGA,07/06/2016,03-11861,8913.7,Serendipity's Day Nursery
Nottinghamshire County Council,1111/1001,Children and Young People,CYP,Third Party Payments,EGA,07/06/2016,03-11862,17973.43,Serendipity's Day Nursery
Nottinghamshire County Council,1111/1001,Children and Young People,CYP,Third Party Payments,EGA,07/06/2016,03-11863,7372.36,Shaping Futures Day Nursery
Nottinghamshire County Council,1111/1001,Children and Young People,CYP,Third Party Payments,EGA,07/06/2016,03-11864,31260.92,Shaping Futures Day Nursery
Nottinghamshire County Council,1111/1001,Children and Young People,CYP,Third Party Payments,EGA,07/06/2016,03-11865,3019.3,Fledglings Playgroup
Nottinghamshire County Council,1111/1001,Children and Young People,CYP,Third Party Payments,EGA,07/06/2016,03-11866,1167.89,Foxy Creek Pre-School Playgroup
Nottinghamshire County Council,1111/1001,Children and Young People,CYP,Third Party Payments,EGA,07/06/2016,03-11867,4659.54,Galaxies Day Nursery
Nottinghamshire County Council,1111/1001,Children and Young People,CYP,Third Party Payments,EGA,07/06/2016,03-11868,609.76,[Redacted]
Nottinghamshire County Council,1111/1001,Children and Young People,CYP,Third Party Payments,EGA,07/06/2016,03-11869,13573.55,Good Foundations Day Nursery
Nottinghamshire County Council,1111/1001,Children and Young People,CYP,Third Party Payments,EGA,07/06/2016,03-11870,23829.39,Good Shepherd Pre-School
Nottinghamshire County Council,1111/1001,Children and Young People,CYP,Third Party Payments,EGA,07/06/2016,03-11871,4958.08,Gotham Pre-School Playgroup
Nottinghamshire County Council,1111/1001,Children and Young People,CYP,Third Party Payments,EGA,07/06/2016,03-11872,12991.49,Granby House Nursery
Nottinghamshire County Council,1111/1001,Children and Young People,CYP,Third Party Payments,EGA,07/06/2016,03-11873,595.53,[Redacted]
Nottinghamshire County Council,1111/1001,Children and Young People,CYP,Third Party Payments,EGA,07/06/2016,03-11874,531.76,[Redacted]
Nottinghamshire County Council,1111/1001,Children and Young People,CYP,Third Party Payments,EGA,07/06/2016,03-11875,596.56,[Redacted]
Nottinghamshire County Council,1111/1001,Children and Young People,CYP,Third Party Payments,EGA,07/06/2016,03-11876,20363.85,Haywood Road Pre-School Playgroup
Nottinghamshire County Council,1111/1001,Children and Young People,CYP,Third Party Payments,EGA,07/06/2016,03-11877,8596.5,Hazel Hurst School
Nottinghamshire County Council,1111/1001,Children and Young People,CYP,Third Party Payments,EGA,07/06/2016,03-11878,4087.05,Hermitage Pre-School
Nottinghamshire County Council,1111/1001,Children and Young People,CYP,Third Party Payments,EGA,07/06/2016,03-11879,3099.2,Hickling Pre-School
Nottinghamshire County Council,1111/1001,Children and Young People,CYP,Third Party Payments,EGA,07/06/2016,03-11880,8369.59,Hickory House Day Nursery
Nottinghamshire County Council,1111/1001,Children and Young People,CYP,Third Party Payments,EGA,07/06/2016,03-11881,34754.85,Highfields School & Nursery
Nottinghamshire County Council,1111/1001,Children and Young People,CYP,Third Party Payments,EGA,07/06/2016,03-11882,6259.8,SPBC Day Care Ltd
Nottinghamshire County Council,1111/1001,Children and Young People,CYP,Third Party Payments,EGA,07/06/2016,03-11883,6036.46,Hollies Day Nurseries
Nottinghamshire County Council,1111/1001,Children and Young People,CYP,Third Party Payments,EGA,07/06/2016,03-11884,8265.29,Hollies Day Nurseries Limited
Nottinghamshire County Council,1111/1001,Children and Young People,CYP,Third Party Payments,EGA,07/06/2016,03-11885,9152.84,Homestead Day Nursery Ltd
Nottinghamshire County Council,1111/1001,Children and Young People,CYP,Third Party Payments,EGA,07/06/2016,03-11886,4463.68,Honey Pot Day Private Day Nursery L
Nottinghamshire County Council,1111/1001,Children and Young People,CYP,Third Party Payments,EGA,07/06/2016,03-11887,6357,Horsendale Playgroup
Nottinghamshire County Council,1111/1001,Children and Young People,CYP,Third Party Payments,EGA,07/06/2016,03-11888,13668.42,Hucknall Day Nursery
Nottinghamshire County Council,1111/1001,Children and Young People,CYP,Third Party Payments,EGA,07/06/2016,03-11889,9325.31,Hucknall Pre-School Playgroup
Nottinghamshire County Council,1111/1001,Children and Young People,CYP,Third Party Payments,EGA,07/06/2016,03-11890,2261.14,Inham Park Pre School Playgroup
Nottinghamshire County Council,1111/1001,Children and Young People,CYP,Third Party Payments,EGA,07/06/2016,03-11891,3285.64,Jelly Totz Day Nursery
Nottinghamshire County Council,1111/1001,Children and Young People,CYP,Third Party Payments,EGA,08/06/2016,03-11892,1506.36,Jesters Childcare Ltd
Nottinghamshire County Council,1111/1001,Children and Young People,CYP,Third Party Payments,EGA,08/06/2016,03-11893,724.65,Jubilee House Christian School
Nottinghamshire County Council,1111/1001,Children and Young People,CYP,Third Party Payments,EGA,08/06/2016,03-11894,7050.41,Kidzgrove
Nottinghamshire County Council,1111/1001,Children and Young People,CYP,Third Party Payments,EGA,08/06/2016,03-11895,507,[Redacted]
Nottinghamshire County Council,1111/1001,Children and Young People,CYP,Third Party Payments,EGA,08/06/2016,03-11896,12739.41,Killisick Pre-School
Nottinghamshire County Council,1111/1001,Children and Young People,CYP,Third Party Payments,EGA,08/06/2016,03-11897,6007.77,Kimberley Pre-School Playgroup
Nottinghamshire County Council,1111/1001,Children and Young People,CYP,Third Party Payments,EGA,08/06/2016,03-11898,4373.41,Cedar House Day Nursery
Nottinghamshire County Council,1111/1001,Children and Young People,CYP,Third Party Payments,EGA,08/06/2016,03-11899,14176.24,Carlton & Gedling Day Nursery
Nottinghamshire County Council,1111/1001,Children and Young People,CYP,Third Party Payments,EGA,08/06/2016,03-11900,4619.34,Carlton Hill Playgroup
Nottinghamshire County Council,1111/1001,Children and Young People,CYP,Third Party Payments,EGA,08/06/2016,03-11901,7387.08,Carousel Under 5'S Playgroup
Nottinghamshire County Council,1111/1001,Children and Young People,CYP,Third Party Payments,EGA,08/06/2016,03-11902,11707.74,Cheeky Monkeys Day Nursery
Nottinghamshire County Council,1111/1001,Children and Young People,CYP,Third Party Payments,EGA,08/06/2016,03-11903,15851.02,Cherubs Childcare Centre (Mansfield
Nottinghamshire County Council,1111/1001,Children and Young People,CYP,Third Party Payments,EGA,08/06/2016,03-11904,12751.72,Cherubs Childcare Centre Ladybrook
Nottinghamshire County Council,1111/1001,Children and Young People,CYP,Third Party Payments,EGA,08/06/2016,03-11905,12181.89,Cherubs Childrens Centre Pleasley
Nottinghamshire County Council,1111/1001,Children and Young People,CYP,Third Party Payments,EGA,08/06/2016,03-11906,6918.4,Children 1st @ Newark Centre
Nottinghamshire County Council,1111/1001,Children and Young People,CYP,Third Party Payments,EGA,08/06/2016,03-11907,10915.06,Children 1st @ Breedon House
Nottinghamshire County Council,1111/1001,Children and Young People,CYP,Third Party Payments,EGA,08/06/2016,03-11908,10850.34,Childrens Corner Day Nursery
Nottinghamshire County Council,1111/1001,Children and Young People,CYP,Third Party Payments,EGA,08/06/2016,03-11909,8345.36,Christchurch Hall Pre-School Playgr
Nottinghamshire County Council,1111/1001,Children and Young People,CYP,Third Party Payments,EGA,08/06/2016,03-11910,8709.02,Church House Day Nursery
Nottinghamshire County Council,1111/1001,Children and Young People,CYP,Third Party Payments,EGA,08/06/2016,03-11911,4407.19,Claremont Early Years Ltd
Nottinghamshire County Council,1111/1001,Children and Young People,CYP,Third Party Payments,EGA,08/06/2016,03-11912,4408.36,Collingham & District Pre-School
Nottinghamshire County Council,1111/1001,Children and Young People,CYP,Third Party Payments,EGA,08/06/2016,03-11913,3182.4,Colwick Pre School Playgroup
Nottinghamshire County Council,1111/1001,Children and Young People,CYP,Third Party Payments,EGA,08/06/2016,03-11914,1818.76,Costock Pre School
Nottinghamshire County Council,1111/1001,Children and Young People,CYP,Third Party Payments,EGA,08/06/2016,03-11915,11131.82,Coteswood House School
Nottinghamshire County Council,1111/1001,Children and Young People,CYP,Third Party Payments,EGA,08/06/2016,03-11916,27965.08,Cranmer Pre-School
Nottinghamshire County Council,1111/1001,Children and Young People,CYP,Third Party Payments,EGA,08/06/2016,03-11917,8015.86,Early Learners Centre Day Nursery
Nottinghamshire County Council,1111/1001,Children and Young People,CYP,Third Party Payments,EGA,08/06/2016,03-11918,5850,Breedon House Nurseries Ltd
Nottinghamshire County Council,1111/1001,Children and Young People,CYP,Third Party Payments,EGA,08/06/2016,03-11919,19699.5,Breedon House Nurseries Ltd
Nottinghamshire County Council,1111/1001,Children and Young People,CYP,Third Party Payments,EGA,08/06/2016,03-11920,18940.04,Cherubs Childrens Centre Wynndale
Nottinghamshire County Council,1111/1001,Children and Young People,CYP,Third Party Payments,EGA,08/06/2016,03-11921,33027.64,Cherubs Day Nursery
Nottinghamshire County Council,1111/1001,Children and Young People,CYP,Third Party Payments,EGA,08/06/2016,03-11922,1254,Chetwynd Barracks Pre-School
Nottinghamshire County Council,1111/1001,Children and Young People,CYP,Third Party Payments,EGA,08/06/2016,03-11923,6907.24,Daisies Day Nursery
Nottinghamshire County Council,1111/1001,Children and Young People,CYP,Third Party Payments,EGA,08/06/2016,03-11924,15158.75,Discovery Day Nursery
Nottinghamshire County Council,1111/1001,Children and Young People,CYP,Third Party Payments,EGA,08/06/2016,03-11925,5682.49,Duncroft Day Nursery
Nottinghamshire County Council,1111/1001,Children and Young People,CYP,Third Party Payments,EGA,08/06/2016,03-11926,31225.74,Early Years Playgroup
Nottinghamshire County Council,1111/1001,Children and Young People,CYP,Third Party Payments,EGA,08/06/2016,03-11927,8277.42,East Leake Day Nursery & Pre-School
Nottinghamshire County Council,1111/1001,Children and Young People,CYP,Third Party Payments,EGA,08/06/2016,03-11928,4656.25,East Leake Pre-School Playgroup
Nottinghamshire County Council,1111/1001,Children and Young People,CYP,Third Party Payments,EGA,08/06/2016,03-11929,12475.6,Edwalton Day Nursery
Nottinghamshire County Council,1111/1001,Children and Young People,CYP,Third Party Payments,EGA,08/06/2016,03-11930,2028,Elston Pre-school Playgroup Newark
Nottinghamshire County Council,1111/1001,Children and Young People,CYP,Third Party Payments,EGA,08/06/2016,03-11931,5234.11,Farnsfield Pre-School
Nottinghamshire County Council,1111/1001,Children and Young People,CYP,Third Party Payments,EGA,08/06/2016,03-11932,18943.73,Fernwood Day Nursery Ltd
Nottinghamshire County Council,1111/1001,Children and Young People,CYP,Third Party Payments,EGA,08/06/2016,03-11933,780,[Redacted]
Nottinghamshire County Council,1111/1001,Children and Young People,CYP,Third Party Payments,EGA,08/06/2016,03-11934,1297.53,[Redacted]
Nottinghamshire County Council,1111/1001,Children and Young People,CYP,Third Party Payments,EGA,08/06/2016,03-11935,14019.52,Alphabet House Day Nursery Worksop
Nottinghamshire County Council,1111/1001,Children and Young People,CYP,Third Party Payments,EGA,08/06/2016,03-11936,5018.51,Angels With Dirty Faces Day Nursery
Nottinghamshire County Council,1111/1001,Children and Young People,CYP,Third Party Payments,EGA,08/06/2016,03-11937,3213.21,Abacus Pre-School
Nottinghamshire County Council,1111/1001,Children and Young People,CYP,Third Party Payments,EGA,08/06/2016,03-11938,11082.81,All Aboard Day Nursery
Nottinghamshire County Council,1111/1001,Children and Young People,CYP,Third Party Payments,EGA,08/06/2016,03-11939,39495.3,All Saints C Of E Primary School
Nottinghamshire County Council,1111/1001,Children and Young People,CYP,Third Party Payments,EGA,08/06/2016,03-11940,2233.2,Allsorts Playgroup
Nottinghamshire County Council,1111/1001,Children and Young People,CYP,Third Party Payments,EGA,08/06/2016,03-11941,8223.59,Alphabet House Day Nursery
Nottinghamshire County Council,1111/1001,Children and Young People,CYP,Third Party Payments,EGA,08/06/2016,03-11942,5385,Alphabet House Day Nursery
Nottinghamshire County Council,1111/1001,Children and Young People,CYP,Third Party Payments,EGA,08/06/2016,03-11943,8986.96,Alphabet House Day Nursery WB
Nottinghamshire County Council,1111/1001,Children and Young People,CYP,Third Party Payments,EGA,08/06/2016,03-11944,12028.91,Alphabet House Nursery
Nottinghamshire County Council,1111/1001,Children and Young People,CYP,Third Party Payments,EGA,08/06/2016,03-11945,25069.06,Applegarth Day Nurseries Ltd
Nottinghamshire County Council,1111/1001,Children and Young People,CYP,Third Party Payments,EGA,08/06/2016,03-11946,6832.9,Appleton Day Nursery
Nottinghamshire County Council,1111/1001,Children and Young People,CYP,Third Party Payments,EGA,08/06/2016,03-11947,14694.12,Arnold House Day Nursery
Nottinghamshire County Council,1111/1001,Children and Young People,CYP,Third Party Payments,EGA,08/06/2016,03-11948,14764.43,Arnold St Mary's Pre-School
Nottinghamshire County Council,1111/1001,Children and Young People,CYP,Third Party Payments,EGA,08/06/2016,03-11949,15201.81,Arnold View Pre-School
Nottinghamshire County Council,1111/1001,Children and Young People,CYP,Third Party Payments,EGA,08/06/2016,03-11950,8121.28,Attenborough Church Pre-School
Nottinghamshire County Council,1111/1001,Children and Young People,CYP,Third Party Payments,EGA,08/06/2016,03-11951,7523.4,Attenborough Day Nursery & Pre-Sch
Nottinghamshire County Council,1111/1001,Children and Young People,CYP,Third Party Payments,EGA,08/06/2016,03-11952,31790.92,Awsworth Schoolhouse Day Nursery
Nottinghamshire County Council,1111/1001,Children and Young People,CYP,Third Party Payments,EGA,08/06/2016,03-11953,46374.51,Balderton Pre-School
Nottinghamshire County Council,1111/1001,Children and Young People,CYP,Third Party Payments,EGA,08/06/2016,03-11954,6674.65,Balderton Village Day Nursery
Nottinghamshire County Council,1111/1001,Children and Young People,CYP,Third Party Payments,EGA,08/06/2016,03-11955,3826.55,Beacon Hill Day Nursery
Nottinghamshire County Council,1111/1001,Children and Young People,CYP,Third Party Payments,EGA,08/06/2016,03-11956,10473.12,Beeston Nursery
Nottinghamshire County Council,1111/1001,Children and Young People,CYP,Third Party Payments,EGA,08/06/2016,03-11957,7381.32,Bingham Day Nursery & Pre School
Nottinghamshire County Council,1111/1001,Children and Young People,CYP,Third Party Payments,EGA,08/06/2016,03-11958,7729.41,Bircotes Pre-School
Nottinghamshire County Council,1111/1001,Children and Young People,CYP,Third Party Payments,EGA,08/06/2016,03-11959,20079.34,Bizzy Kidz
Nottinghamshire County Council,1111/1001,Children and Young People,CYP,Third Party Payments,EGA,08/06/2016,03-11960,2412.68,Blyth Pre-School Playgroup
Nottinghamshire County Council,1111/1001,Children and Young People,CYP,Third Party Payments,EGA,08/06/2016,03-11961,23794.55,Bramcote Pre-School Playgroup
Nottinghamshire County Council,1111/1001,Children and Young People,CYP,Third Party Payments,EGA,08/06/2016,03-11962,1149.76,Bramley Pips Nursery Ltd
Nottinghamshire County Council,1111/1001,Children and Young People,CYP,Third Party Payments,EGA,08/06/2016,03-11963,8600.87,Bright Sparks Day Nursery
Nottinghamshire County Council,1111/1001,Children and Young People,CYP,Third Party Payments,EGA,08/06/2016,03-11964,8509.71,Bright Stars Childcare
Nottinghamshire County Council,1111/1001,Children and Young People,CYP,Third Party Payments,EGA,08/06/2016,03-11965,8628.64,Brooklyn Day Nursery
Nottinghamshire County Council,1111/1001,Children and Young People,CYP,Third Party Payments,EGA,08/06/2016,03-11966,3920.86,Bullpit Road Nursery
Nottinghamshire County Council,1111/1001,Children and Young People,CYP,Third Party Payments,EGA,08/06/2016,03-11967,11579.16,Busy Bees (Daybrook)
Nottinghamshire County Council,1111/1001,Children and Young People,CYP,Third Party Payments,EGA,08/06/2016,03-11968,7377.63,Busy Bees Nursery
Nottinghamshire County Council,1111/1001,Children and Young People,CYP,Third Party Payments,EGA,08/06/2016,03-11969,4584.64,Busy Bees Pre-School (Sutton)
Nottinghamshire County Council,1111/1001,Children and Young People,CYP,Third Party Payments,EGA,08/06/2016,03-11970,10750.33,Buttercross Pre School
Nottinghamshire County Council,1111/1001,Children and Young People,CYP,Third Party Payments,EGA,08/06/2016,03-11971,720,[Redacted]
Nottinghamshire County Council,1111/1001,Children and Young People,CYP,Third Party Payments,EGA,08/06/2016,03-11972,742.96,K Burns Childminder
Nottinghamshire County Council,1111/1001,Children and Young People,CYP,Third Party Payments,EGA,08/06/2016,03-11973,519.18,[Redacted]
Nottinghamshire County Council,1111/1001,Children and Young People,CYP,Third Party Payments,EGA,08/06/2016,03-11974,916.2,[Redacted]
Nottinghamshire County Council,1111/1001,Children and Young People,CYP,Third Party Payments,EGA,08/06/2016,03-11975,860.21,A Ellison Childminding Service
Nottinghamshire County Council,1111/1001,Children and Young People,CYP,Third Party Payments,EGA,08/06/2016,03-11976,6926.58,Butterflies Nursery (West Notts Col
Nottinghamshire County Council,1111/1001,Children and Young People,CYP,Third Party Payments,EGA,08/06/2016,03-11977,15256.53,Cared 4 Ltd T/A Brookhill House Day
Nottinghamshire County Council,1111/1001,Children and Young People,CYP,Third Party Payments,EGA,08/06/2016,03-11978,2115.1,Crossdale Busy Bees Pre-School
Nottinghamshire County Council,1111/1001,Children and Young People,CYP,Third Party Payments,EGA,08/06/2016,03-11979,3341.4,Dagfa House School
Nottinghamshire County Council,1111/1001,Children and Young People,CYP,Third Party Payments,EGA,08/06/2016,03-11980,12880.68,Daisies Day Nursery
Nottinghamshire County Council,1111/1001,Children and Young People,CYP,Third Party Payments,EGA,08/06/2016,03-11981,519.18,Nicola Fenton Childminding Services
Nottinghamshire County Council,1111/1001,Children and Young People,CYP,Third Party Payments,EGA,08/06/2016,03-11982,595.53,Tracey Barnes Child Minding Service
Nottinghamshire County Council,1111/1001,Children and Young People,CYP,Third Party Payments,EGA,08/06/2016,03-11983,1878.58,L Kong Ltd
Nottinghamshire County Council,1111/1001,Children and Young People,CYP,Third Party Payments,EGA,08/06/2016,03-11984,1063.53,[Redacted]
Nottinghamshire County Council,1111/1001,Children and Young People,CYP,Third Party Payments,EGA,08/06/2016,03-11985,3732.67,[Redacted]
Nottinghamshire County Council,1111/1001,Children and Young People,CYP,Third Party Payments,EGA,08/06/2016,03-11986,829.53,Mini-me Childcare
Nottinghamshire County Council,1111/1001,Children and Young People,CYP,Third Party Payments,EGA,08/06/2016,03-11987,7147.53,St Peter's Early Years
Nottinghamshire County Council,1111/1001,Children and Young People,CYP,Third Party Payments,EGA,08/06/2016,03-11988,1494.56,St Peters C of E Academy
Nottinghamshire County Council,1111/1001,Children and Young People,CYP,Third Party Payments,EGA,08/06/2016,03-11989,5827.74,Quinton Day Nurseries T/A Honey Bee
Nottinghamshire County Council,1111/1001,Children and Young People,CYP,Third Party Payments,EGA,08/06/2016,03-12042,6751.07,Pretty Windows Ltd
Nottinghamshire County Council,1111/1001,Children and Young People,CYP,Third Party Payments,EGA,08/06/2016,03-12043,616.83,Vicki's Childminding Service
Nottinghamshire County Council,1111/1001,Children and Young People,CYP,Third Party Payments,EGA,09/06/2016,03-12189,13295.38,Carnarvon Pre-School
Nottinghamshire County Council,1111/1001,Children and Young People,CYP,Third Party Payments,EGA,10/06/2016,03-12247,3478.01,Prebend Pre-School Playgroup
Nottinghamshire County Council,1111/1001,Children and Young People,CYP,Third Party Payments,EGA,10/06/2016,03-12248,5370.49,Childrens House Childcare Ltd
Nottinghamshire County Council,1111/1001,Children and Young People,CYP,Third Party Payments,EGA,10/06/2016,03-12249,992.55,P J Clayton (Childminder)
Nottinghamshire County Council,1111/1001,Children and Young People,CYP,Third Party Payments,EGA,10/06/2016,03-12250,992.55,J Hall (Childminder)
Nottinghamshire County Council,1111/1001,Children and Young People,CYP,Third Party Payments,EGA,10/06/2016,03-12251,10073.18,Cherubs Ryton Park
Nottinghamshire County Council,1111/1001,Children and Young People,CYP,Third Party Payments,EGA,10/06/2016,03-12252,14013.27,Fun Farm Day Nursery
Nottinghamshire County Council,1111/1001,Children and Young People,CYP,Third Party Payments,EGA,10/06/2016,03-12253,35635.86,PSLA Newstead Childcare (HO)
Nottinghamshire County Council,1111/1001,Children and Young People,CYP,Third Party Payments,EGA,10/06/2016,03-12254,3509.41,PSLA Newstead Childcare (HO)
Nottinghamshire County Council,1111/1001,Children and Young People,CYP,Third Party Payments,EGA,10/06/2016,03-12255,12971.07,PSLA Newstead Childcare (HO)
Nottinghamshire County Council,1111/1001,Children and Young People,CYP,Third Party Payments,EGA,10/06/2016,03-12256,5564.91,PSLA Newstead Childcare (HO)
Nottinghamshire County Council,1111/1001,Children and Young People,CYP,Third Party Payments,EGA,10/06/2016,03-12257,4660.49,PSLA Newstead Childcare (HO)
Nottinghamshire County Council,1111/1001,Children and Young People,CYP,Third Party Payments,EGA,10/06/2016,03-12258,10886.45,PSLA Newstead Childcare (HO)
Nottinghamshire County Council,1111/1001,Children and Young People,CYP,Third Party Payments,EGA,10/06/2016,03-12259,10323.7,PSLA Newstead Childcare (HO)
Nottinghamshire County Council,1111/1001,Children and Young People,CYP,Third Party Payments,EGA,10/06/2016,03-12260,1354.03,PSLA Newstead Childcare (HO)
Nottinghamshire County Council,1111/1001,Children and Young People,CYP,Third Party Payments,EGA,10/06/2016,03-12264,20491.55,Treetops Nurseries Ltd
Nottinghamshire County Council,1111/1001,Children and Young People,CYP,Third Party Payments,EGA,13/06/2016,03-12265,3162.61,Mapperley Day Nursery
Nottinghamshire County Council,1111/1001,Children and Young People,CYP,Third Party Payments,EGA,13/06/2016,03-12266,24688.85,Ashfield Plaza Day Nursery
Nottinghamshire County Council,1111/1001,Children and Young People,CYP,Third Party Payments,EGA,14/06/2016,03-15237,20726.55,PSLA Newstead Childcare (HO)
Nottinghamshire County Council,1111/1001,Children and Young People,CYP,Third Party Payments,EGA,14/06/2016,03-15238,18433.35,PSLA Newstead Childcare (HO)
Nottinghamshire County Council,1111/1001,Children and Young People,CYP,Third Party Payments,EGA,16/06/2016,03-15372,12267.86,Serendipity's Day Nursery
Nottinghamshire County Council,1111/1001,Children and Young People,CYP,Third Party Payments,EGA,22/06/2016,03-15872,1140,Hollies Day Nurseries
Nottinghamshire County Council,1111/1001,Children and Young People,CYP,Third Party Payments,EGA,22/06/2016,03-15873,916.2,[Redacted]
Nottinghamshire County Council,1111/1001,Children and Young People,CYP,Third Party Payments,EGA,30/06/2016,03-17226,600,Attenborough Day Nursery & Pre-Sch
Nottinghamshire County Council,1111/1001,Children and Young People,CYP,Third Party Payments,EGA,30/06/2016,03-17227,551.1,Attenborough Church Pre-School
Nottinghamshire County Council,1111/1001,Children and Young People,CYP,Third Party Payments,EGA,30/06/2016,03-17228,1247.06,Arnold St Mary's Pre-School
Nottinghamshire County Council,1111/1001,Children and Young People,CYP,Third Party Payments,EGA,30/06/2016,03-17229,6506.25,Arnold House Day Nursery
Nottinghamshire County Council,1111/1001,Children and Young People,CYP,Third Party Payments,EGA,30/06/2016,03-17230,1047.15,Appleton Day Nursery
Nottinghamshire County Council,1111/1001,Children and Young People,CYP,Third Party Payments,EGA,30/06/2016,03-17231,960,Angels With Dirty Faces Day Nursery
Nottinghamshire County Council,1111/1001,Children and Young People,CYP,Third Party Payments,EGA,30/06/2016,03-17232,5443.05,Alphabet House Day Nursery Worksop
Nottinghamshire County Council,1111/1001,Children and Young People,CYP,Third Party Payments,EGA,30/06/2016,03-17233,894.45,[Redacted]
Nottinghamshire County Council,1111/1001,Children and Young People,CYP,Third Party Payments,EGA,30/06/2016,03-17234,734.8,All Aboard Day Nursery
Nottinghamshire County Council,1111/1001,Children and Young People,CYP,Third Party Payments,EGA,30/06/2016,03-17235,591.49,All Saints C Of E Primary School
Nottinghamshire County Council,1111/1001,Children and Young People,CYP,Third Party Payments,EGA,30/06/2016,03-17236,599.1,Buttercross Pre School
Nottinghamshire County Council,1111/1001,Children and Young People,CYP,Third Party Payments,EGA,30/06/2016,03-17237,529.05,Butterflies Nursery (West Notts Col
Nottinghamshire County Council,1111/1001,Children and Young People,CYP,Third Party Payments,EGA,30/06/2016,03-17238,780,Carlton & Gedling Day Nursery
Nottinghamshire County Council,1111/1001,Children and Young People,CYP,Third Party Payments,EGA,30/06/2016,03-17239,23148.45,Beacon Hill Day Nursery
Nottinghamshire County Council,1111/1001,Children and Young People,CYP,Third Party Payments,EGA,30/06/2016,03-17240,1155.95,Bircotes Pre-School
Nottinghamshire County Council,1111/1001,Children and Young People,CYP,Third Party Payments,EGA,30/06/2016,03-17241,798.46,Blyth Pre-School Playgroup
Nottinghamshire County Council,1111/1001,Children and Young People,CYP,Third Party Payments,EGA,30/06/2016,03-17242,554.4,Pretty Windows Ltd
Nottinghamshire County Council,1111/1001,Children and Young People,CYP,Third Party Payments,EGA,30/06/2016,03-17243,2053.05,Bright Stars Childcare
Nottinghamshire County Council,1111/1001,Children and Young People,CYP,Third Party Payments,EGA,30/06/2016,03-17244,2167.8,Brooklyn Day Nursery
Nottinghamshire County Council,1111/1001,Children and Young People,CYP,Third Party Payments,EGA,30/06/2016,03-17245,1327.41,Carousel Under 5'S Playgroup
Nottinghamshire County Council,1111/1001,Children and Young People,CYP,Third Party Payments,EGA,30/06/2016,03-17246,501.75,Cherubs Day Nursery
Nottinghamshire County Council,1111/1001,Children and Young People,CYP,Third Party Payments,EGA,30/06/2016,03-17247,787.85,Children 1st @ Newark Centre
Nottinghamshire County Council,1111/1001,Children and Young People,CYP,Third Party Payments,EGA,30/06/2016,03-17248,1510.8,Daisies Day Nursery
Nottinghamshire County Council,1111/1001,Children and Young People,CYP,Third Party Payments,EGA,30/06/2016,03-17249,1673.1,[Redacted]
Nottinghamshire County Council,1111/1001,Children and Young People,CYP,Third Party Payments,EGA,30/06/2016,03-17251,1148.55,East Leake Day Nursery & Pre-School
Nottinghamshire County Council,1111/1001,Children and Young People,CYP,Third Party Payments,EGA,30/06/2016,03-17252,1265.75,Farnsfield Pre-School
Nottinghamshire County Council,1111/1001,Children and Young People,CYP,Third Party Payments,EGA,30/06/2016,03-17258,700.16,Fernwood Day Nursery Ltd
Nottinghamshire County Council,1111/1001,Children and Young People,CYP,Third Party Payments,EGA,30/06/2016,03-17259,542.17,Fledglings Playgroup
Nottinghamshire County Council,1111/1001,Children and Young People,CYP,Third Party Payments,EGA,30/06/2016,03-17260,4700.95,Hollies Day Nurseries
Nottinghamshire County Council,1111/1001,Children and Young People,CYP,Third Party Payments,EGA,30/06/2016,03-17262,3598.76,Hollies Day Nurseries Limited
Nottinghamshire County Council,1111/1001,Children and Young People,CYP,Third Party Payments,EGA,30/06/2016,03-17263,772.05,Homestead Day Nursery Ltd
Nottinghamshire County Council,1111/1001,Children and Young People,CYP,Third Party Payments,EGA,30/06/2016,03-17264,1748.25,Hucknall Day Nursery
Nottinghamshire County Council,1111/1001,Children and Young People,CYP,Third Party Payments,EGA,30/06/2016,03-17265,932.7,Jesters Childcare Ltd
Nottinghamshire County Council,1111/1001,Children and Young People,CYP,Third Party Payments,EGA,30/06/2016,03-17266,1659.06,Leen Mills Pre School Playgroup
Nottinghamshire County Council,1111/1001,Children and Young People,CYP,Third Party Payments,EGA,30/06/2016,03-17267,780,Little Acorns Shireoaks
Nottinghamshire County Council,1111/1001,Children and Young People,CYP,Third Party Payments,EGA,30/06/2016,03-17268,1145.1,Little Beans Childcare Ltd
Nottinghamshire County Council,1111/1001,Children and Young People,CYP,Third Party Payments,EGA,30/06/2016,03-17269,1200.78,Lowater Street Playgroup
Nottinghamshire County Council,1111/1001,Children and Young People,CYP,Third Party Payments,EGA,30/06/2016,03-17270,1103.25,Lyndsay's Childminding
Nottinghamshire County Council,1111/1001,Children and Young People,CYP,Third Party Payments,EGA,30/06/2016,03-17271,1162.35,Millfield Nursery School
Nottinghamshire County Council,1111/1001,Children and Young People,CYP,Third Party Payments,EGA,30/06/2016,03-17272,1089.69,Netherfield Pre School Ltd
Nottinghamshire County Council,1111/1001,Children and Young People,CYP,Third Party Payments,EGA,30/06/2016,03-17273,687.15,Lisa's Little Angels
Nottinghamshire County Council,1111/1001,Children and Young People,CYP,Third Party Payments,EGA,30/06/2016,03-17274,763.8,Papermoon Day Nursery
Nottinghamshire County Council,1111/1001,Children and Young People,CYP,Third Party Payments,EGA,30/06/2016,03-17275,1699.2,Papermoon Day Nursery
Nottinghamshire County Council,1111/1001,Children and Young People,CYP,Third Party Payments,EGA,30/06/2016,03-17276,736.35,Rainbow Day Nursery
Nottinghamshire County Council,1111/1001,Children and Young People,CYP,Third Party Payments,EGA,30/06/2016,03-17277,2585.1,Rainbows Day Nursery
Nottinghamshire County Council,1111/1001,Children and Young People,CYP,Third Party Payments,EGA,30/06/2016,03-17278,1413.15,Serendipity's Day Nursery
Nottinghamshire County Council,1111/1001,Children and Young People,CYP,Third Party Payments,EGA,30/06/2016,03-17279,2807.7,Serendipity's Day Nursery
Nottinghamshire County Council,1111/1001,Children and Young People,CYP,Third Party Payments,EGA,30/06/2016,03-17280,687.15,The Rocking Horse Child Care Centre
Nottinghamshire County Council,1111/1001,Children and Young People,CYP,Third Party Payments,EGA,30/06/2016,03-17281,4040.7,Safe Haven Day Nursery
Nottinghamshire County Council,1111/1001,Children and Young People,CYP,Third Party Payments,EGA,30/06/2016,03-17282,2068.35,Ruddington Nursery & Pre-School
Nottinghamshire County Council,1111/1001,Children and Young People,CYP,Third Party Payments,EGA,30/06/2016,03-17283,660,Radcliffe On Trent Day Nursery
Nottinghamshire County Council,1111/1001,Children and Young People,CYP,Third Party Payments,EGA,30/06/2016,03-17284,668.7,Puddleducks Pre-School
Nottinghamshire County Council,1111/1001,Children and Young People,CYP,Third Party Payments,EGA,30/06/2016,03-17285,1374.3,Portland Place Pre-School
Nottinghamshire County Council,1111/1001,Children and Young People,CYP,Third Party Payments,EGA,30/06/2016,03-17286,585.8,Pippins Pre-School
Nottinghamshire County Council,1111/1001,Children and Young People,CYP,Third Party Payments,EGA,30/06/2016,03-17287,1055.1,Serendipity's Day Nursery
Nottinghamshire County Council,1111/1001,Children and Young People,CYP,Third Party Payments,EGA,30/06/2016,03-17288,1068.9,Jelly Beans Childcare
Nottinghamshire County Council,1111/1001,Children and Young People,CYP,Third Party Payments,EGA,30/06/2016,03-17289,916.2,Yew Tree Childcare
Nottinghamshire County Council,1111/1001,Children and Young People,CYP,Third Party Payments,EGA,30/06/2016,03-17290,553.02,Speckled Frogs Pre-School
Nottinghamshire County Council,1111/1001,Children and Young People,CYP,Third Party Payments,EGA,30/06/2016,03-17291,2179.2,Stapleford Day Nursery
Nottinghamshire County Council,1111/1001,Children and Young People,CYP,Transfer Payments,GAA,01/06/2016,03-17378,1900,Solihull Metropolitan Borough Counc
Nottinghamshire County Council,1111/1001,Children and Young People,CYP,Transfer Payments,GAA,03/06/2016,03-17323,630,St Pauls C of E Primary School
Nottinghamshire County Council,1111/1001,Children and Young People,CYP,Support Services,HAA,03/06/2016,03-10046,2287.69,Trent Motor Traction Company Ltd
Nottinghamshire County Council,1111/1001,Children and Young People,CYP,Support Services,HAA,03/06/2016,03-10323,1631.15,All Wayz Travel
Nottinghamshire County Council,1111/1001,Children and Young People,CYP,Support Services,HAA,03/06/2016,03-10324,1272.6,All Wayz Travel
Nottinghamshire County Council,1111/1001,Children and Young People,CYP,Support Services,HAA,03/06/2016,03-10327,4420.5,Glenn Ryder Coaches
Nottinghamshire County Council,1111/1001,Children and Young People,CYP,Support Services,HAA,03/06/2016,03-10328,2695.6,Wrights Coaches
Nottinghamshire County Council,1111/1001,Children and Young People,CYP,Support Services,HAA,03/06/2016,03-10329,1535.2,Wrights Coaches
Nottinghamshire County Council,1111/1001,Children and Young People,CYP,Support Services,HAA,03/06/2016,03-10409,1370.09,Fozcabs Newark Taxis
Nottinghamshire County Council,1111/1001,Children and Young People,CYP,Support Services,HAA,03/06/2016,03-10419,3070.4,AOT Coaches
Nottinghamshire County Council,1111/1001,Children and Young People,CYP,Support Services,HAA,03/06/2016,03-10420,3070.4,AOT Coaches
Nottinghamshire County Council,1111/1001,Children and Young People,CYP,Support Services,HAA,03/06/2016,03-10423,2496.6,AOT Coaches
Nottinghamshire County Council,1111/1001,Children and Young People,CYP,Support Services,HAA,03/06/2016,03-10424,2609.55,AOT Coaches
Nottinghamshire County Council,1111/1001,Children and Young People,CYP,Support Services,HAA,03/06/2016,03-10425,1199.65,AOT Coaches
Nottinghamshire County Council,1111/1001,Children and Young People,CYP,Support Services,HAA,03/06/2016,03-10426,2146.35,AOT Coaches
Nottinghamshire County Council,1111/1001,Children and Young People,CYP,Support Services,HAA,03/06/2016,03-10427,1208.97,Meden Travel
Nottinghamshire County Council,1111/1001,Children and Young People,CYP,Support Services,HAA,03/06/2016,03-10437,1535.2,P & P Taxis
Nottinghamshire County Council,1111/1001,Children and Young People,CYP,Support Services,HAA,03/06/2016,03-10439,7520.8,Freeway Coaches Ltd
Nottinghamshire County Council,1111/1001,Children and Young People,CYP,Support Services,HAA,03/06/2016,03-10440,2825.13,Freeway Coaches Ltd
Nottinghamshire County Council,1111/1001,Children and Young People,CYP,Support Services,HAA,03/06/2016,03-10441,2485.15,Freeway Coaches Ltd
Nottinghamshire County Council,1111/1001,Children and Young People,CYP,Support Services,HAA,03/06/2016,03-10442,1456.2,Freeway Coaches Ltd
Nottinghamshire County Council,1111/1001,Children and Young People,CYP,Support Services,HAA,03/06/2016,03-10443,2391.25,Freeway Coaches Ltd
Nottinghamshire County Council,1111/1001,Children and Young People,CYP,Support Services,HAA,03/06/2016,03-10444,2274.11,Kettlewell Retford Ltd
Nottinghamshire County Council,1111/1001,Children and Young People,CYP,Support Services,HAA,03/06/2016,03-10445,2350.87,Kettlewell Retford Ltd
Nottinghamshire County Council,1111/1001,Children and Young People,CYP,Support Services,HAA,03/06/2016,03-10446,2878.5,Kettlewell Retford Ltd
Nottinghamshire County Council,1111/1001,Children and Young People,CYP,Support Services,HAA,03/06/2016,03-10447,2101.4,Kettlewell Retford Ltd
Nottinghamshire County Council,1111/1001,Children and Young People,CYP,Support Services,HAA,03/06/2016,03-10448,3060.9,Kettlewell Retford Ltd
Nottinghamshire County Council,1111/1001,Children and Young People,CYP,Support Services,HAA,03/06/2016,03-10450,2275.41,Nottingham Coaches
Nottinghamshire County Council,1111/1001,Children and Young People,CYP,Support Services,HAA,03/06/2016,03-10451,3023.21,Nottingham Coaches
Nottinghamshire County Council,1111/1001,Children and Young People,CYP,Support Services,HAA,03/06/2016,03-10452,2859.31,Nottingham Coaches
Nottinghamshire County Council,1111/1001,Children and Young People,CYP,Support Services,HAA,03/06/2016,03-10453,2667.41,Nottingham Coaches
Nottinghamshire County Council,1111/1001,Children and Young People,CYP,Support Services,HAA,03/06/2016,03-10455,940.5,Forest Cars
Nottinghamshire County Council,1111/1001,Children and Young People,CYP,Support Services,HAA,03/06/2016,03-10485,2218.25,Arnold Acorn Travel
Nottinghamshire County Council,1111/1001,Children and Young People,CYP,Support Services,HAA,03/06/2016,03-10487,1032.46,Acorn Contracts
Nottinghamshire County Council,1111/1001,Children and Young People,CYP,Support Services,HAA,03/06/2016,03-10587,1151.4,Abacus Cars
Nottinghamshire County Council,1111/1001,Children and Young People,CYP,Support Services,HAA,03/06/2016,03-10593,1151.4,K & R Cars
Nottinghamshire County Council,1111/1001,Children and Young People,CYP,Support Services,HAA,03/06/2016,03-10596,2936.07,Nottingham Minibuses & Coaches
Nottinghamshire County Council,1111/1001,Children and Young People,CYP,Support Services,HAA,03/06/2016,03-10598,1857.63,Nottingham Minibuses & Coaches
Nottinghamshire County Council,1111/1001,Children and Young People,CYP,Support Services,HAA,03/06/2016,03-10601,6840,Kettlewell Retford Ltd
Nottinghamshire County Council,1111/1001,Children and Young People,CYP,Support Services,HAA,03/06/2016,03-10602,2466.01,Kettlewell Retford Ltd
Nottinghamshire County Council,1111/1001,Children and Young People,CYP,Support Services,HAA,03/06/2016,03-10603,2466.01,Kettlewell Retford Ltd
Nottinghamshire County Council,1111/1001,Children and Young People,CYP,Support Services,HAA,03/06/2016,03-10604,3800,Kettlewell Retford Ltd
Nottinghamshire County Council,1111/1001,Children and Young People,CYP,Support Services,HAA,03/06/2016,03-10605,2660,Kettlewell Retford Ltd
Nottinghamshire County Council,1111/1001,Children and Young People,CYP,Support Services,HAA,03/06/2016,03-10607,3236.91,C W Moxon Ltd
Nottinghamshire County Council,1111/1001,Children and Young People,CYP,Support Services,HAA,03/06/2016,03-10608,6332.7,C W Moxon Ltd
Nottinghamshire County Council,1111/1001,Children and Young People,CYP,Support Services,HAA,03/06/2016,03-10609,3254.3,C W Moxon Ltd
Nottinghamshire County Council,1111/1001,Children and Young People,CYP,Support Services,HAA,03/06/2016,03-10610,2806.35,C W Moxon Ltd
Nottinghamshire County Council,1111/1001,Children and Young People,CYP,Support Services,HAA,03/06/2016,03-10611,3179.2,C W Moxon Ltd
Nottinghamshire County Council,1111/1001,Children and Young People,CYP,Support Services,HAA,03/06/2016,03-10612,2459.85,C W Moxon Ltd
Nottinghamshire County Council,1111/1001,Children and Young People,CYP,Support Services,HAA,06/06/2016,03-10666,874,Ace Of Mansfield Ltd
Nottinghamshire County Council,1111/1001,Children and Young People,CYP,Support Services,HAA,06/06/2016,03-10676,666.6,Ng11 Cars
Nottinghamshire County Council,1111/1001,Children and Young People,CYP,Support Services,HAA,06/06/2016,03-10697,1631.15,Sprays Transport Ltd
Nottinghamshire County Council,1111/1001,Children and Young People,CYP,Support Services,HAA,06/06/2016,03-10704,2698,Tiger European Uk Ltd
Nottinghamshire County Council,1111/1001,Children and Young People,CYP,Support Services,HAA,06/06/2016,03-10705,3550.15,Tiger European Uk Ltd
Nottinghamshire County Council,1111/1001,Children and Young People,CYP,Support Services,HAA,06/06/2016,03-10706,3401,Tiger European Uk Ltd
Nottinghamshire County Council,1111/1001,Children and Young People,CYP,Support Services,HAA,06/06/2016,03-10707,3032.21,Tiger European Uk Ltd
Nottinghamshire County Council,1111/1001,Children and Young People,CYP,Support Services,HAA,06/06/2016,03-10708,3646.1,Tiger European Uk Ltd
Nottinghamshire County Council,1111/1001,Children and Young People,CYP,Support Services,HAA,06/06/2016,03-10709,2676.46,Tiger European Uk Ltd
Nottinghamshire County Council,1111/1001,Children and Young People,CYP,Support Services,HAA,06/06/2016,03-10710,3032.4,Tiger European Uk Ltd
Nottinghamshire County Council,1111/1001,Children and Young People,CYP,Support Services,HAA,06/06/2016,03-10711,974.7,Tiger European Uk Ltd
Nottinghamshire County Council,1111/1001,Children and Young People,CYP,Support Services,HAA,06/06/2016,03-10712,2577.91,Tiger European Uk Ltd
Nottinghamshire County Council,1111/1001,Children and Young People,CYP,Support Services,HAA,06/06/2016,03-10713,2752.55,Tiger European Uk Ltd
Nottinghamshire County Council,1111/1001,Children and Young People,CYP,Support Services,HAA,06/06/2016,03-10714,2627.7,Tiger European Uk Ltd
Nottinghamshire County Council,1111/1001,Children and Young People,CYP,Support Services,HAA,06/06/2016,03-10715,2859.31,Tiger European Uk Ltd
Nottinghamshire County Council,1111/1001,Children and Young People,CYP,Support Services,HAA,06/06/2016,03-10717,1880.62,Wilfreda Beehive
Nottinghamshire County Council,1111/1001,Children and Young People,CYP,Support Services,HAA,06/06/2016,03-10721,1671.05,Wallis Coachways
Nottinghamshire County Council,1111/1001,Children and Young People,CYP,Support Services,HAA,06/06/2016,03-10723,4492.17,Isle Coaches
Nottinghamshire County Council,1111/1001,Children and Young People,CYP,Support Services,HAA,08/06/2016,03-12056,2919.85,Johnson Bros Tours Ltd
Nottinghamshire County Council,1111/1001,Children and Young People,CYP,Support Services,HAA,08/06/2016,03-12058,2686.6,Johnson Bros Tours Ltd
Nottinghamshire County Council,1111/1001,Children and Young People,CYP,Support Services,HAA,08/06/2016,03-12059,3001,Johnson Bros Tours Ltd
Nottinghamshire County Council,1111/1001,Children and Young People,CYP,Support Services,HAA,08/06/2016,03-12060,3492.35,Johnson Bros Tours Ltd
Nottinghamshire County Council,1111/1001,Children and Young People,CYP,Support Services,HAA,08/06/2016,03-12061,11687.35,Johnson Bros Tours Ltd
Nottinghamshire County Council,1111/1001,Children and Young People,CYP,Support Services,HAA,08/06/2016,03-12062,16311.5,Johnson Bros Tours Ltd
Nottinghamshire County Council,1111/1001,Children and Young People,CYP,Support Services,HAA,08/06/2016,03-12063,19002.05,Johnson Bros Tours Ltd
Nottinghamshire County Council,1111/1001,Children and Young People,CYP,Support Services,HAA,08/06/2016,03-12064,5757,Johnson Bros Tours Ltd
Nottinghamshire County Council,1111/1001,Children and Young People,CYP,Support Services,HAA,08/06/2016,03-12080,875,CBC Taxis Ltd
Nottinghamshire County Council,1111/1001,Children and Young People,CYP,Support Services,HAA,08/06/2016,03-12102,2475.51,F & J Marriott T/A Unity Coaches
Nottinghamshire County Council,1111/1001,Children and Young People,CYP,Support Services,HAA,08/06/2016,03-12108,2235.07,Jb Tours Watnall Ltd
Nottinghamshire County Council,1111/1001,Children and Young People,CYP,Support Services,HAA,08/06/2016,03-12109,2554.38,Jb Tours Watnall Ltd
Nottinghamshire County Council,1111/1001,Children and Young People,CYP,Support Services,HAA,08/06/2016,03-12110,2497.95,Jb Tours Watnall Ltd
Nottinghamshire County Council,1111/1001,Children and Young People,CYP,Support Services,HAA,08/06/2016,03-12111,382.05,Nunns Cars
Nottinghamshire County Council,1111/1001,Children and Young People,CYP,Support Services,HAA,08/06/2016,03-12118,5290.2,Stagecoach Services Ltd
Nottinghamshire County Council,1111/1001,Children and Young People,CYP,Support Services,HAA,08/06/2016,03-12121,2669.88,Stagecoach Services Ltd
Nottinghamshire County Council,1111/1001,Children and Young People,CYP,Support Services,HAA,08/06/2016,03-12123,5162.11,Stagecoach Services Ltd
Nottinghamshire County Council,1111/1001,Children and Young People,CYP,Support Services,HAA,08/06/2016,03-12126,2491.77,Stagecoach Services Ltd
Nottinghamshire County Council,1111/1001,Children and Young People,CYP,Support Services,HAA,08/06/2016,03-12128,4244.22,Stagecoach Services Ltd
Nottinghamshire County Council,1111/1001,Children and Young People,CYP,Support Services,HAA,08/06/2016,03-12133,4344.73,Stagecoach Services Ltd
Nottinghamshire County Council,1111/1001,Children and Young People,CYP,Support Services,HAA,08/06/2016,03-12152,3824.26,Stagecoach Services Ltd
Nottinghamshire County Council,1111/1001,Children and Young People,CYP,Support Services,HAA,08/06/2016,03-12154,2826.3,Tiger European Uk Ltd
Nottinghamshire County Council,1111/1001,Children and Young People,CYP,Support Services,HAA,08/06/2016,03-12155,12575.15,Travel Wright Ltd
Nottinghamshire County Council,1111/1001,Children and Young People,CYP,Support Services,HAA,08/06/2016,03-12157,3311.44,Travel Wright Ltd
Nottinghamshire County Council,1111/1001,Children and Young People,CYP,Support Services,HAA,08/06/2016,03-12158,3434.06,Travel Wright Ltd
Nottinghamshire County Council,1111/1001,Children and Young People,CYP,Support Services,HAA,08/06/2016,03-12159,5532.18,Travel Wright Ltd
Nottinghamshire County Council,1111/1001,Children and Young People,CYP,Support Services,HAA,08/06/2016,03-12161,1396.48,Travel Wright Ltd
Nottinghamshire County Council,1111/1001,Children and Young People,CYP,Support Services,HAA,08/06/2016,03-12163,2389.5,Travel Wright Ltd
Nottinghamshire County Council,1111/1001,Children and Young People,CYP,Support Services,HAA,08/06/2016,03-12165,2907.9,Travel Wright Ltd
Nottinghamshire County Council,1111/1001,Children and Young People,CYP,Support Services,HAA,08/06/2016,03-12173,999.9,Broadsword Cars
Nottinghamshire County Council,1111/1001,Children and Young People,CYP,Support Services,HAA,08/06/2016,03-12174,2014.95,Travel Liner
Nottinghamshire County Council,1111/1001,Children and Young People,CYP,Support Services,HAA,08/06/2016,03-12176,1339.5,A2B Licensed Taxis
Nottinghamshire County Council,1111/1001,Children and Young People,CYP,Support Services,HAA,13/06/2016,03-12276,760,D G Private Hire Ltd
Nottinghamshire County Council,1111/1001,Children and Young People,CYP,Support Services,HAA,13/06/2016,03-12283,950,D G Private Hire Ltd
Nottinghamshire County Council,1111/1001,Children and Young People,CYP,Support Services,HAA,13/06/2016,03-12285,1064,D G Private Hire Ltd
Nottinghamshire County Council,1111/1001,Children and Young People,CYP,Support Services,HAA,13/06/2016,03-12293,261,D G Private Hire Ltd
Nottinghamshire County Council,1111/1001,Children and Young People,CYP,Support Services,HAA,13/06/2016,03-12296,3055.01,Stagecoach Services Ltd
Nottinghamshire County Council,1111/1001,Children and Young People,CYP,Support Services,HAA,14/06/2016,03-14992,2514.21,Sharpes Of Nottingham
Nottinghamshire County Council,1111/1001,Children and Young People,CYP,Support Services,HAA,14/06/2016,03-14993,2939.87,Sharpes Of Nottingham
Nottinghamshire County Council,1111/1001,Children and Young People,CYP,Support Services,HAA,14/06/2016,03-14994,2837.75,Sharpes Of Nottingham
Nottinghamshire County Council,1111/1001,Children and Young People,CYP,Support Services,HAA,14/06/2016,03-14995,2178.16,Sharpes Of Nottingham
Nottinghamshire County Council,1111/1001,Children and Young People,CYP,Support Services,HAA,14/06/2016,03-14997,2856.07,Sharpes Of Nottingham
Nottinghamshire County Council,1111/1001,Children and Young People,CYP,Support Services,HAA,14/06/2016,03-14999,4959,Butler Brothers Ltd
Nottinghamshire County Council,1111/1001,Children and Young People,CYP,Support Services,HAA,14/06/2016,03-15012,805.98,Shelleys Taxis Ltd
Nottinghamshire County Council,1111/1001,Children and Young People,CYP,Support Services,HAA,14/06/2016,03-15053,3149.92,Gem Mini Travel Ltd
Nottinghamshire County Council,1111/1001,Children and Young People,CYP,Support Services,HAA,14/06/2016,03-15057,3433.21,Gem Mini Travel Ltd
Nottinghamshire County Council,1111/1001,Children and Young People,CYP,Support Services,HAA,14/06/2016,03-15058,3004.9,Gem Mini Travel Ltd
Nottinghamshire County Council,1111/1001,Children and Young People,CYP,Support Services,HAA,14/06/2016,03-15059,2293.12,Gem Mini Travel Ltd
Nottinghamshire County Council,1111/1001,Children and Young People,CYP,Support Services,HAA,14/06/2016,03-15060,1996.33,Marshalls Of Sutton On Trent Ltd
Nottinghamshire County Council,1111/1001,Children and Young People,CYP,Support Services,HAA,14/06/2016,03-15069,3166.35,Marshalls Of Sutton On Trent Ltd
Nottinghamshire County Council,1111/1001,Children and Young People,CYP,Support Services,HAA,14/06/2016,03-15071,1899.81,Marshalls Of Sutton On Trent Ltd
Nottinghamshire County Council,1111/1001,Children and Young People,CYP,Support Services,HAA,14/06/2016,03-15072,3166.35,Marshalls Of Sutton On Trent Ltd
Nottinghamshire County Council,1111/1001,Children and Young People,CYP,Support Services,HAA,14/06/2016,03-15073,1815.84,Marshalls Of Sutton On Trent Ltd
Nottinghamshire County Council,1111/1001,Children and Young People,CYP,Support Services,HAA,14/06/2016,03-15077,1516.01,Paul S Winson Coaches
Nottinghamshire County Council,1111/1001,Children and Young People,CYP,Support Services,HAA,14/06/2016,03-15078,2399.8,Bassetlaw Action Centre
Nottinghamshire County Council,1111/1001,Children and Young People,CYP,Support Services,HAA,17/06/2016,03-15418,886.38,Abacus Cars
Nottinghamshire County Council,1111/1001,Children and Young People,CYP,Support Services,HAA,21/06/2016,03-15737,2593,Silverdale Tours Nottm Ltd
Nottinghamshire County Council,1111/1001,Children and Young People,CYP,Support Services,HAA,21/06/2016,03-15738,3203.21,Silverdale Tours Nottm Ltd
Nottinghamshire County Council,1111/1001,Children and Young People,CYP,Support Services,HAA,21/06/2016,03-15739,2826.76,Silverdale Tours Nottm Ltd
Nottinghamshire County Council,1111/1001,Children and Young People,CYP,Support Services,HAA,21/06/2016,03-15740,2562.26,Silverdale Tours Nottm Ltd
Nottinghamshire County Council,1111/1001,Children and Young People,CYP,Support Services,HAA,21/06/2016,03-15741,2002.42,Silverdale Tours Nottm Ltd
Nottinghamshire County Council,1111/1001,Children and Young People,CYP,Support Services,HAA,21/06/2016,03-15742,2705.81,Silverdale Tours Nottm Ltd
Nottinghamshire County Council,1111/1001,Children and Young People,CYP,Support Services,HAA,21/06/2016,03-15743,2717.06,Silverdale Tours Nottm Ltd
Nottinghamshire County Council,1111/1001,Children and Young People,CYP,Support Services,HAA,21/06/2016,03-15744,2391.62,Silverdale Tours Nottm Ltd
Nottinghamshire County Council,1111/1001,Children and Young People,CYP,Support Services,HAA,21/06/2016,03-15745,2690.55,Silverdale Tours Nottm Ltd
Nottinghamshire County Council,1111/1001,Children and Young People,CYP,Support Services,HAA,21/06/2016,03-15746,6462.5,Silverdale Tours Nottm Ltd
Nottinghamshire County Council,1111/1001,Children and Young People,CYP,Support Services,HAA,21/06/2016,03-15747,11162.5,Silverdale Tours Nottm Ltd
Nottinghamshire County Council,1111/1001,Children and Young People,CYP,Support Services,HAA,23/06/2016,03-15878,2824.37,Sharpes Of Nottingham
Nottinghamshire County Council,1111/1001,Children and Young People,CYP,Support Services,HAA,23/06/2016,03-15879,2939.87,Sharpes Of Nottingham
Nottinghamshire County Council,1111/1001,Children and Young People,CYP,Support Services,HAA,23/06/2016,03-15880,2446.87,Sharpes Of Nottingham
Nottinghamshire County Council,1111/1001,Children and Young People,CYP,Support Services,HAA,23/06/2016,03-15881,2861.87,Sharpes Of Nottingham
Nottinghamshire County Council,1111/1001,Children and Young People,CYP,Support Services,HAA,23/06/2016,03-15882,5160.21,Sharpes Of Nottingham
Nottinghamshire County Council,1111/1001,Children and Young People,CYP,Support Services,HAA,23/06/2016,03-15883,2939.87,Sharpes Of Nottingham
Nottinghamshire County Council,1111/1001,Children and Young People,CYP,Support Services,HAA,23/06/2016,03-15904,2708.05,Lowes Coaches Ltd
Nottinghamshire County Council,1111/1001,Children and Young People,CYP,Support Services,HAA,23/06/2016,03-15905,2657.05,Lowes Coaches Ltd
Nottinghamshire County Council,1111/1001,Children and Young People,CYP,Support Services,HAA,23/06/2016,03-15906,2668.4,Lowes Coaches Ltd
Nottinghamshire County Council,1111/1001,Children and Young People,CYP,Support Services,HAA,24/06/2016,03-15898,760,SJW (Muskham) Ltd T/A Z Cars
Nottinghamshire County Council,1111/1001,Adult Social Care and Health,ASCH,Premises Related,BAA,07/06/2016,03-11699,588,Elf Property Care
Nottinghamshire County Council,1111/1001,Adult Social Care and Health,ASCH,Premises Related,BAA,20/06/2016,03-15467,564,MGC Electrical
Nottinghamshire County Council,1111/1001,Adult Social Care and Health,ASCH,Premises Related,BAA,20/06/2016,03-15468,835,Key Construction
Nottinghamshire County Council,1111/1001,Adult Social Care and Health,ASCH,Premises Related,BAA,20/06/2016,03-15469,694.5,Pgs Joinery Services Ltd
Nottinghamshire County Council,1111/1001,Adult Social Care and Health,ASCH,Premises Related,BAA,21/06/2016,03-15734,549,Helping Hands (Notts) Ltd
Nottinghamshire County Council,1111/1001,Adult Social Care and Health,ASCH,Premises Related,BAA,24/06/2016,03-16052,539.5,S & L Warren
Nottinghamshire County Council,1111/1001,Adult Social Care and Health,ASCH,Premises Related,BAA,30/06/2016,03-17214,1779,Intex Building & Maintenance
Nottinghamshire County Council,1111/1001,Adult Social Care and Health,ASCH,Premises Related,BJA,03/06/2016,03-17301,657.45,County Supplies (NCC)
Nottinghamshire County Council,1111/1001,Adult Social Care and Health,ASCH,Premises Related,BJA,03/06/2016,03-17304,261.52,County Supplies (NCC)
Nottinghamshire County Council,1111/1001,Adult Social Care and Health,ASCH,Premises Related,BJA,03/06/2016,03-17313,389.8,County Supplies (NCC)
Nottinghamshire County Council,1111/1001,Adult Social Care and Health,ASCH,Transport Related,CBA,03/06/2016,03-10307,3000,Community Transport for Town & Coun
Nottinghamshire County Council,1111/1001,Adult Social Care and Health,ASCH,Transport Related,CBA,03/06/2016,03-10308,2500,Community Transport for Town & Coun
Nottinghamshire County Council,1111/1001,Adult Social Care and Health,ASCH,Transport Related,CBA,03/06/2016,03-10549,2303.8,Ja Travel Ltd
Nottinghamshire County Council,1111/1001,Adult Social Care and Health,ASCH,Transport Related,CBA,03/06/2016,03-10555,3389.4,Vallances Coaches
Nottinghamshire County Council,1111/1001,Adult Social Care and Health,ASCH,Transport Related,CBA,03/06/2016,03-10600,2380,Aj Travel
Nottinghamshire County Council,1111/1001,Adult Social Care and Health,ASCH,Transport Related,CBA,08/06/2016,03-12101,3177.18,Mct Uk Ltd
Nottinghamshire County Council,1111/1001,Adult Social Care and Health,ASCH,Transport Related,CBA,14/06/2016,03-15088,2500,Community Transport for Town & Coun
Nottinghamshire County Council,1111/1001,Adult Social Care and Health,ASCH,Transport Related,CBA,14/06/2016,03-15089,3000,Community Transport for Town & Coun
Nottinghamshire County Council,1111/1001,Adult Social Care and Health,ASCH,Transport Related,CBA,17/06/2016,03-15412,2996.43,BN Gibson Ltd
Nottinghamshire County Council,1111/1001,Adult Social Care and Health,ASCH,Transport Related,CCA,03/06/2016,03-10394,730.93,Arrow Specialised Transport Ltd
Nottinghamshire County Council,1111/1001,Adult Social Care and Health,ASCH,Transport Related,CCA,06/06/2016,03-10645,2245.23,F4Control Ltd (t/a First4care)
Nottinghamshire County Council,1111/1001,Adult Social Care and Health,ASCH,Transport Related,CCA,06/06/2016,03-10652,181.31,F4Control Ltd (t/a First4care)
Nottinghamshire County Council,1111/1001,Adult Social Care and Health,ASCH,Transport Related,CDA,01/06/2016,03-17389,945,Autism East Midlands
Nottinghamshire County Council,1111/1001,Adult Social Care and Health,ASCH,Transport Related,CDA,03/06/2016,03-10315,596.6,Southside Cars
Nottinghamshire County Council,1111/1001,Adult Social Care and Health,ASCH,Transport Related,CDA,03/06/2016,03-10325,995.94,All Wayz Travel
Nottinghamshire County Council,1111/1001,Adult Social Care and Health,ASCH,Transport Related,CDA,03/06/2016,03-10331,501.36,SJW (Muskham) Ltd T/A Z Cars
Nottinghamshire County Council,1111/1001,Adult Social Care and Health,ASCH,Transport Related,CDA,03/06/2016,03-10333,680.12,SJW (Muskham) Ltd T/A Z Cars
Nottinghamshire County Council,1111/1001,Adult Social Care and Health,ASCH,Transport Related,CDA,03/06/2016,03-10335,353.5,Alpha Cars
Nottinghamshire County Council,1111/1001,Adult Social Care and Health,ASCH,Transport Related,CDA,03/06/2016,03-10338,2242.7,Alpha Cars
Nottinghamshire County Council,1111/1001,Adult Social Care and Health,ASCH,Transport Related,CDA,03/06/2016,03-10360,2343.2,Arrow Specialised Transport Ltd
Nottinghamshire County Council,1111/1001,Adult Social Care and Health,ASCH,Transport Related,CDA,03/06/2016,03-10373,393.68,Arrow Specialised Transport Ltd
Nottinghamshire County Council,1111/1001,Adult Social Care and Health,ASCH,Transport Related,CDA,03/06/2016,03-10375,283.24,Arrow Specialised Transport Ltd
Nottinghamshire County Council,1111/1001,Adult Social Care and Health,ASCH,Transport Related,CDA,03/06/2016,03-10377,749.01,Arrow Specialised Transport Ltd
Nottinghamshire County Council,1111/1001,Adult Social Care and Health,ASCH,Transport Related,CDA,03/06/2016,03-10384,2840,Arrow Specialised Transport Ltd
Nottinghamshire County Council,1111/1001,Adult Social Care and Health,ASCH,Transport Related,CDA,03/06/2016,03-10401,3180,Arrow Specialised Transport Ltd
Nottinghamshire County Council,1111/1001,Adult Social Care and Health,ASCH,Transport Related,CDA,03/06/2016,03-10414,1650,Fozcabs Newark Taxis
Nottinghamshire County Council,1111/1001,Adult Social Care and Health,ASCH,Transport Related,CDA,03/06/2016,03-10438,1356,P & P Taxis
Nottinghamshire County Council,1111/1001,Adult Social Care and Health,ASCH,Transport Related,CDA,03/06/2016,03-10461,143.2,Forest Cars
Nottinghamshire County Council,1111/1001,Adult Social Care and Health,ASCH,Transport Related,CDA,03/06/2016,03-10475,2525,Taxicover Uk Ltd
Nottinghamshire County Council,1111/1001,Adult Social Care and Health,ASCH,Transport Related,CDA,03/06/2016,03-10488,1417.68,Acorn Contracts
Nottinghamshire County Council,1111/1001,Adult Social Care and Health,ASCH,Transport Related,CDA,03/06/2016,03-10509,1173.44,Arrow Specialised Transport Ltd
Nottinghamshire County Council,1111/1001,Adult Social Care and Health,ASCH,Transport Related,CDA,03/06/2016,03-10511,989.04,Bridges Transport Services
Nottinghamshire County Council,1111/1001,Adult Social Care and Health,ASCH,Transport Related,CDA,03/06/2016,03-10512,3251.2,Bridges Transport Services
Nottinghamshire County Council,1111/1001,Adult Social Care and Health,ASCH,Transport Related,CDA,03/06/2016,03-10513,2008.6,Bridges Transport Services
Nottinghamshire County Council,1111/1001,Adult Social Care and Health,ASCH,Transport Related,CDA,03/06/2016,03-10514,875.67,Bridges Transport Services
Nottinghamshire County Council,1111/1001,Adult Social Care and Health,ASCH,Transport Related,CDA,03/06/2016,03-10515,1269.91,Bridges Transport Services
Nottinghamshire County Council,1111/1001,Adult Social Care and Health,ASCH,Transport Related,CDA,03/06/2016,03-10517,2987.6,Bridges Transport Services
Nottinghamshire County Council,1111/1001,Adult Social Care and Health,ASCH,Transport Related,CDA,03/06/2016,03-10518,700.57,Bridges Transport Services
Nottinghamshire County Council,1111/1001,Adult Social Care and Health,ASCH,Transport Related,CDA,03/06/2016,03-10543,780,Bridges Transport Services
Nottinghamshire County Council,1111/1001,Adult Social Care and Health,ASCH,Transport Related,CDA,03/06/2016,03-10544,2047,Bridges Transport Services
Nottinghamshire County Council,1111/1001,Adult Social Care and Health,ASCH,Transport Related,CDA,03/06/2016,03-10545,2179.44,Hawkins Taxis & Transport
Nottinghamshire County Council,1111/1001,Adult Social Care and Health,ASCH,Transport Related,CDA,03/06/2016,03-10550,2523.4,Midfield Travel
Nottinghamshire County Council,1111/1001,Adult Social Care and Health,ASCH,Transport Related,CDA,03/06/2016,03-10567,1442.4,Abacus Cars
Nottinghamshire County Council,1111/1001,Adult Social Care and Health,ASCH,Transport Related,CDA,03/06/2016,03-10569,659.36,Abacus Cars
Nottinghamshire County Council,1111/1001,Adult Social Care and Health,ASCH,Transport Related,CDA,03/06/2016,03-10570,504.3,Abacus Cars
Nottinghamshire County Council,1111/1001,Adult Social Care and Health,ASCH,Transport Related,CDA,03/06/2016,03-10571,1190,Abacus Cars
Nottinghamshire County Council,1111/1001,Adult Social Care and Health,ASCH,Transport Related,CDA,03/06/2016,03-10572,523.24,Abacus Cars
Nottinghamshire County Council,1111/1001,Adult Social Care and Health,ASCH,Transport Related,CDA,03/06/2016,03-10573,1891.6,Abacus Cars
Nottinghamshire County Council,1111/1001,Adult Social Care and Health,ASCH,Transport Related,CDA,03/06/2016,03-10574,659.52,Abacus Cars
Nottinghamshire County Council,1111/1001,Adult Social Care and Health,ASCH,Transport Related,CDA,03/06/2016,03-10575,971.62,Abacus Cars
Nottinghamshire County Council,1111/1001,Adult Social Care and Health,ASCH,Transport Related,CDA,03/06/2016,03-10576,809.16,Abacus Cars
